Workbook

Sheet Appendix 8.3 - TRM Spreadsheet
A1: Appendix 8.3 - KCP&L Technical Resource Manual
AC2: Link to CDD | AD2: Link to HDD
A4: Measure Description | H4: Gross Measure Values | S4: Efficiency Values | Y4: Algorithms | AA4: Start/End Dates | AC4: Quantities
A5: Program | B5: Measure Name | C5: Primary Key | D5: Segment | E5: End Use | F5: Notes | G5: Unit Definition | H5: Incremental Measure Cost ($/Unit) | I5: Electric Energy Savings (Annual kWh/unit) | J5: Electric Energy Savings (Annual kWh/unit) Source | K5: Nameplate Demand Savings (kW/unit) | L5: Peak Coincidence Factor | M5: Peak Coincident Factor Source | N5: Coincident Peak Demand Savings (kW/unit) | O5: Coincident Peak Demand Savings (kW/unit) Source | P5: Annual Operating Hours | Q5: Annual Operating Hours Source | R5: Measure Life (Years) | S5: Measure Definition | T5: Measure Efficiency Value | U5: Measure Efficiency Value Source | V5: Baseline Definition | W5: Baseline Efficiency Value | X5: Baseline Efficiency Value Source | Y5: Electric Energy Savings Algorithm | Z5: Electric Demand Savings Algorithm | AA5: Effective Start Date | AB5: Effective End Date | AC5: Cooling Degree Days (CDD) | AD5: Heating Degree Days (HDD) | AE5: Quantity 1 | AF5: Quantity 1 Description | AG5: Quantity 1 Source | AH5: Quantity 2 | AI5: Quantity 2 Description | AJ5: Quantity 2 Source | AK5: Quantity 3 | AL5: Quantity 3 Description | AM5: Quantity 3 Source | AN5: Quantity 4 | AO5: Quantity 4 Description | AP5: Quantity 4 Source | AQ5: Quantity 5 | AR5: Quantity 5 Description | AS5: Quantity 5 Source | AT5: Quantity 6 | AU5: Quantity 6 Description | AV5: Quantity 6 Source | AW5: Quantity 7 | AX5: Quantity 7 Description | AY5: Quantity 7 Source | AZ5: Quantity 8 | BA5: Quantity 8 Description | BB5: Quantity 8 Source | BC5: Quantity 9 | BD5: Quantity 9 Description | BE5: Quantity 9 Source | BF5: Quantity 10 | BG5: Quantity 10 Description | BH5: Quantity 10 Source | BI5: Quantity 11 | BJ5: Quantity 11 Description | BK5: Quantity 11 Source | BL5: Quantity 12 | BM5: Quantity 12 Description | BN5: Quantity 12 Source | BO5: Quantity 13 | BP5: Quantity 13 Description | BQ5: Quantity 13 Source | BR5: Quantity 14 | BS5: Quantity 14 Description | BT5: Quantity 14 Source | BU5: Quantity 15 | BV5: Quantity 15 Description | BW5: Quantity 15 Source | BX5: Quantity 16 | BY5: Quantity 16 Description | BZ5: Quantity 16 Source | CA5: Quantity 17 | CB5: Quantity 17 Description | CC5: Quantity 17 Source | CD5: Quantity 18 | CE5: Quantity 18 Description | CF5: Quantity 18 Source
A6: Energy Saving Products | B6: Screw In - LEDs | C6: 2.1 | D6: All | E6: Lighting | G6: per lamp | H6: 3.93 | I6: =ROUND(($W6-$T6)/1000*$P6*$AE6*$AK6,4) -> 28.2745 | J6: IL TRM v5 | K6: =I6/P6 -> 0.03366011905 | L6: 0.08 | M6: IL TRM v5 | N6: =ROUND(($W6-$T6)/1000*L6*$AH6*$AK6,4) -> 0.0028 | O6: IL TRM v5 | P6: 840 | Q6: IL TRM v5 | R6: 10 | S6: Screw In - LEDs | T6: 9.29 | U6: Program Tracking Database | V6: 43 watts based on halogen equivalent to average of bulbs sold in program | W6: 43 | Y6: =cellformula(I6) -> =ROUND(($W6-$T6)/1000*$P6*$AE6*$AK6,4) | Z6: =cellformula(N6) -> =ROUND(($W6-$T6)/1000*L6*$AH6*$AK6,4) | AA6: 2018-04-01 | AE6: 1.06 | AF6: Waste Heat Factor, Energy | AG6: IL TRM v5 | AH6: 1.11 | AI6: Waste Heat Factor, Demand | AJ6: IL TRM v5 | AK6: 0.942 | AL6: ISR | AM6: Navigant MEEIA Cycle 1 Research
A7: Energy Saving Products | B7: Screw In - Specialty LEDs | C7: 244 | D7: All | E7: Lighting | G7: per lamp | H7: 7.39 | I7: =ROUND((W7-T7)/1000*P7*AE7*AK7,4) -> 29.0294 | J7: IL TRM v5 | K7: =I7/P7 -> 0.03455880952 | L7: 0.08 | M7: IL TRM v5 | N7: =ROUND(($W7-$T7)/1000*L7*$AH7*$AK7,4) -> 0.0029 | O7: IL TRM v5 | P7: 840 | Q7: IL TRM v5 | R7: 10 | S7: Screw In - Specialty LEDs | T7: 8.39 | U7: Program Tracking Database | V7: 43 watts based on halogen equivalent to average of bulbs sold in program | W7: 43 | Y7: =cellformula(I7) -> =ROUND((W7-T7)/1000*P7*AE7*AK7,4) | Z7: =cellformula(N7) -> =ROUND(($W7-$T7)/1000*L7*$AH7*$AK7,4) | AA7: 2018-04-01 | AB7: 2019-03-31 | AE7: 1.06 | AF7: Waste Heat Factor, Energy | AG7: IL TRM v5 | AH7: 1.11 | AI7: Waste Heat Factor, Demand | AJ7: IL TRM v5 | AK7: 0.942 | AL7: ISR | AM7: Navigant MEEIA Cycle 1 Research
A8: Energy Saving Products | B8: Screw In - Specialty LEDs | C8: 244.1 | D8: All | E8: Lighting | G8: per lamp | H8: 7.39 | I8: =ROUND((W8-T8)/1000*P8*AE8*AK8,4) -> 34.075 | J8: IL TRM v5 | K8: =I8/P8 -> 0.03455882353 | L8: 0.08 | M8: IL TRM v5 | N8: =ROUND(($W8-$T8)/1000*L8*$AH8*$AK8,4) -> 0.0029 | O8: IL TRM v5 | P8: 986 | Q8: IL TRM v5 | R8: 10 | S8: Screw In - Specialty LEDs | T8: 8.39 | U8: Program Tracking Database | V8: 43 watts based on halogen equivalent to average of bulbs sold in program | W8: 43 | Y8: =cellformula(I8) -> =ROUND((W8-T8)/1000*P8*AE8*AK8,4) | Z8: =cellformula(N8) -> =ROUND(($W8-$T8)/1000*L8*$AH8*$AK8,4) | AA8: 2019-04-01 | AE8: 1.06 | AF8: Waste Heat Factor, Energy | AG8: IL TRM v5 | AH8: 1.11 | AI8: Waste Heat Factor, Demand | AJ8: IL TRM v5 | AK8: 0.942 | AL8: ISR | AM8: Navigant MEEIA Cycle 1 Research
A9: Energy Saving Products | B9: Dehumidifiers | C9: 270 | D9: All | E9: Misc | G9: per unit | H9: 60 | I9: =ROUND(140,4) -> 140 | J9: IL TRM v6 | L9: 0.37 | M9: IL TRM v6 | N9: =ROUND(0.032,4) -> 0.032 | O9: IL TRM v6 | P9: 1632 | Q9: IL TRM v6 | R9: 12 | S9: Dehumidifier that meets ENERGY STAR criteria | V9: Non-ENERGY STAR dehumidifier | Y9: =cellformula(I9) -> =ROUND(140,4) | Z9: =cellformula(N9) -> =ROUND(0.032,4) | AA9: 2019-04-01
A10: Energy Saving Products | B10: Room AC Units | C10: 271 | D10: All | E10: HVAC | G10: per unit | H10: 40 | I10: =ROUND((AE10*AH10*((1/AK10)-(1/AN10)))/1000,4) -> 14.6387 | J10: IL TRM v6 | L10: 0.3 | M10: IL TRM v6 | N10: =ROUND(AH10*(((1/(AK10*1.01))-(1/(AN10*1.01))))/1000*L10,4) -> 0.0102 | O10: IL TRM v6 | P10: 428 | Q10: IL TRM v6 | R10: 12 | S10: Room AC unit that meets ENERGY STAR criteria | V10: Non-ENERGY STAR room AC | Y10: =cellformula(I10) -> =ROUND((AE10*AH10*((1/AK10)-(1/AN10)))/1000,4) | Z10: =cellformula(N10) -> =ROUND(AH10*(((1/(AK10*1.01))-(1/(AN10*1.01))))/1000*L10,4) | AA10: 2019-04-01 | AE10: 428 | AF10: FLH_RoomAC | AG10: IL TRM v6 | AH10: 8500 | AI10: Btu/H | AJ10: IL TRM v6 | AK10: 10.9 | AL10: CEERbase | AM10: IL TRM v6 | AN10: 11.4 | AO10: CEERee | AP10: IL TRM v6
A11: Energy Saving Products | B11: Room Air Purifiers - CADR 51-100 | C11: 272 | D11: All | E11: Misc | G11: per unit | H11: 70 | I11: =ROUND(AE11-AH11,4) -> 293 | J11: IL TRM v6 | L11: 0.667 | M11: IL TRM v6 | N11: =ROUND(I11/P11*L11,4) -> 0.0334 | O11: IL TRM V6 | P11: 5844 | Q11: IL TRM v6 | R11: 9 | S11: Air purifier that meets ENERGY STAR criteria | V11: Non-ENERGY STAR air purifier | Y11: =cellformula(I11) -> =ROUND(AE11-AH11,4) | Z11: =cellformula(N11) -> =ROUND(I11/P11*L11,4) | AA11: 2019-04-01 | AE11: 441 | AF11: Baseline Unit Energy Consumption | AG11: IL TRM v6 | AH11: 148 | AI11: Energy Star Unit Energy Consumption | AJ11: IL TRM v6
A12: Energy Saving Products | B12: Room Air Purifiers - CADR 101-150 | C12: 412 | D12: All | E12: Misc | G12: per unit | H12: 70 | I12: =ROUND(AE12-AH12,4) -> 488 | J12: IL TRM v6 | L12: 0.667 | M12: IL TRM v6 | N12: =ROUND(I12/P12*L12,4) -> 0.0557 | O12: IL TRM V6 | P12: 5844 | Q12: IL TRM v6 | R12: 9 | S12: Air purifier that meets ENERGY STAR criteria | V12: Non-ENERGY STAR air purifier | Y12: =ROUND(AE12-AH12,4) | Z12: =ROUND(I12/P12*L12,4) | AA12: 2019-04-01 | AE12: 733 | AF12: Baseline Unit Energy Consumption | AG12: IL TRM v6 | AH12: 245 | AI12: Energy Star Unit Energy Consumption | AJ12: IL TRM v6
A13: Energy Saving Products | B13: Room Air Purifiers - CADR 151-200 | C13: 413 | D13: All | E13: Misc | G13: per unit | H13: 70 | I13: 683 | J13: IL TRM v6 | L13: 0.667 | M13: IL TRM v6 | N13: 0.078 | O13: IL TRM V6 | P13: 5844 | Q13: IL TRM v6 | R13: 9 | S13: Air purifier that meets ENERGY STAR criteria | V13: Non-ENERGY STAR air purifier | Y13: =ROUND(AE13-AH13,4) | Z13: =ROUND(I13/P13*L13,4) | AA13: 2019-04-01 | AE13: 1025 | AF13: Baseline Unit Energy Consumption | AG13: IL TRM v6 | AH13: 342 | AI13: Energy Star Unit Energy Consumption | AJ13: IL TRM v6
A14: Energy Saving Products | B14: Room Air Purifiers - CADR 201-250 | C14: 414 | D14: All | E14: Misc | G14: per unit | H14: 70 | I14: 877 | J14: IL TRM v6 | L14: 0.667 | M14: IL TRM v6 | N14: 0.1001 | O14: IL TRM V6 | P14: 5844 | Q14: IL TRM v6 | R14: 9 | S14: Air purifier that meets ENERGY STAR criteria | V14: Non-ENERGY STAR air purifier | Y14: =ROUND(AE14-AH14,4) | Z14: =ROUND(I14/P14*L14,4) | AA14: 2019-04-01 | AE14: 1317 | AF14: Baseline Unit Energy Consumption | AG14: IL TRM v6 | AH14: 440 | AI14: Energy Star Unit Energy Consumption | AJ14: IL TRM v6
A15: Energy Saving Products | B15: Room Air Purifiers - CADR Over 250 | C15: 415 | D15: All | E15: Misc | G15: per unit | H15: 70 | I15: 1169 | J15: IL TRM v6 | L15: 0.667 | M15: IL TRM v6 | N15: 0.1334 | O15: IL TRM V6 | P15: 5844 | Q15: IL TRM v6 | R15: 9 | S15: Air purifier that meets ENERGY STAR criteria | V15: Non-ENERGY STAR air purifier | Y15: =ROUND(AE15-AH15,4) | Z15: =ROUND(I15/P15*L15,4) | AA15: 2019-04-01 | AE15: 1755 | AF15: Baseline Unit Energy Consumption | AG15: IL TRM v6 | AH15: 586 | AI15: Energy Star Unit Energy Consumption | AJ15: IL TRM v6
A16: Energy Saving Products | B16: Smart Thermostat - ASHP heating / cooling SF | C16: 273 | D16: Single Family | E16: HVAC | G16: per unit | H16: 175 | I16: =ROUND((AE16*AH16*AK16*AN16*AQ16)+(AT16*((AW16*AZ16*(1/BC16))/1000)*BF16*AQ16),4) -> 862.7238 | J16: IL TRM V6 | L16: 0.34 | M16: IL TRM v6 | N16: =ROUND(AT16*(BF16*AZ16*(1/BI16))/1000*AQ16*L16,4) -> 0.093 | O16: IL TRM v6 | R16: 10 | S16: Smart thermostat | V16: Actual thermostat replaced by smart thermostat, or 44% programmable and 56% manual thermostats may be assumed | Y16: =cellformula(I16) -> =ROUND((AE16*AH16*AK16*AN16*AQ16)+(AT16*((AW16*AZ16*(1/BC16))/1000)*BF16*AQ16),4) | Z16: =cellformula(N16) -> =ROUND(AT16*(BF16*AZ16*(1/BI16))/1000*AQ16*L16,4) | AA16: 2019-04-01 | AE16: 1 | AF16: %ElectricHeat | AG16: IL TRM v6 | AH16: 8072 | AI16: Elec_Heating_Consumption | AJ16: IL TRM v6 | AK16: 0.074 | AL16: Heating_Reduction | AM16: IL TRM v6 | AN16: 1 | AO16: HF | AP16: IL TRM v6 | AQ16: 1 | AR16: Eff_ISR | AS16: IL TRM v6 | AT16: 0.87 | AU16: %AC | AV16: IL TRM v6 | AW16: 1035 | AX16: FLH | AY16: IL TRM v6 | AZ16: 33600 | BA16: BTU/hr | BB16: IL TRM v6 | BC16: 9.12 | BD16: SEER | BE16: IL TRM v6 | BF16: 0.08 | BG16: Cooling_Reduction | BH16: IL TRM v6 | BI16: 8.55 | BJ16: EER | BK16: IL TRM v6
A17: Energy Saving Products | B17: Smart Thermostat - ASHP heating / cooling MF | C17: 416 | D17: Multi-Family | E17: HVAC | G17: per unit | H17: 175 | I17: =ROUND((AE17*AH17*AK17*AN17*AQ17)+(AT17*((AW17*AZ17*(1/BC17))/1000)*BF17*AQ17),4) -> 515.7074 | J17: IL TRM V6 | L17: 0.34 | M17: IL TRM v6 | N17: 0.0492 | O17: IL TRM v6 | R17: 10 | S17: Smart thermostat | V17: Actual thermostat replaced by smart thermostat, or 44% programmable and 56% manual thermostats may be assumed | Y17: =ROUND((AE17*AH17*AK17*AN17*AQ17)+(AT17*((AW17*AZ17*(1/BC17))/1000)*BF17*AQ17),4) | Z17: =ROUND(AT17*(BF17*AZ17*(1/BI17))/1000*AQ17*L17,4) | AA17: 2019-04-01 | AE17: 1 | AF17: %ElectricHeat | AG17: IL TRM v6 | AH17: 8072 | AI17: Elec_Heating_Consumption | AJ17: IL TRM v6 | AK17: 0.074 | AL17: Heating_Reduction | AM17: IL TRM v6 | AN17: 0.65 | AO17: HF | AP17: IL TRM v6 | AQ17: 1 | AR17: Eff_ISR | AS17: IL TRM v6 | AT17: 0.46 | AU17: %AC | AV17: IL TRM v6 | AW17: 940 | AX17: FLH | AY17: IL TRM v6 | AZ17: 33600 | BA17: BTU/hr | BB17: IL TRM v6 | BC17: 9.12 | BD17: SEER | BE17: IL TRM v6 | BF17: 0.08 | BG17: Cooling_Reduction | BH17: IL TRM v6 | BI17: 8.55 | BJ17: EER | BK17: IL TRM v6
A18: Energy Saving Products | B18: Smart Thermostat - electric furnace heating / CAC SF | C18: 417 | D18: Single Family | E18: HVAC | G18: per unit | H18: 175 | I18: =ROUND((AE18*AH18*AK18*AN18*AQ18)+(AT18*((AW18*AZ18*(1/BC18))/1000)*BF18*AQ18),4) -> 1296.871 | J18: IL TRM V6 | L18: 0.34 | M18: IL TRM v6 | N18: 0.0976 | O18: IL TRM v6 | R18: 10 | S18: Smart thermostat | V18: Actual thermostat replaced by smart thermostat, or 44% programmable and 56% manual thermostats may be assumed | Y18: =ROUND((AE18*AH18*AK18*AN18*AQ18)+(AT18*((AW18*AZ18*(1/BC18))/1000)*BF18*AQ18),4) | Z18: =ROUND(AT18*(BF18*AZ18*(1/BI18))/1000*AQ18*L18,4) | AA18: 2019-04-01 | AE18: 1 | AF18: %ElectricHeat | AG18: IL TRM v6 | AH18: 13722 | AI18: Elec_Heating_Consumption | AJ18: IL TRM v6 | AK18: 0.074 | AL18: Heating_Reduction | AM18: IL TRM v6 | AN18: 1 | AO18: HF | AP18: IL TRM v6 | AQ18: 1 | AR18: Eff_ISR | AS18: IL TRM v6 | AT18: 0.87 | AU18: %AC | AV18: IL TRM v6 | AW18: 1035 | AX18: FLH | AY18: IL TRM v6 | AZ18: 33600 | BA18: BTU/hr | BB18: IL TRM v6 | BC18: 8.6 | BD18: SEER | BE18: IL TRM v6 | BF18: 0.08 | BG18: Cooling_Reduction | BH18: IL TRM v6 | BI18: 8.15 | BJ18: EER | BK18: IL TRM v6
A19: Energy Saving Products | B19: Smart Thermostat - electric furnace heating / CAC MF | C19: 418 | D19: Multi-Family | E19: HVAC | G19: per unit | H19: 175 | I19: =ROUND((AE19*AH19*AK19*AN19*AQ19)+(AT19*((AW19*AZ19*(1/BC19))/1000)*BF19*AQ19),4) -> 795.1783 | J19: IL TRM V6 | L19: 0.34 | M19: IL TRM v6 | N19: 0.0516 | O19: IL TRM v6 | R19: 10 | S19: Smart thermostat | V19: Actual thermostat replaced by smart thermostat, or 44% programmable and 56% manual thermostats may be assumed | Y19: =ROUND((AE19*AH19*AK19*AN19*AQ19)+(AT19*((AW19*AZ19*(1/BC19))/1000)*BF19*AQ19),4) | Z19: =ROUND(AT19*(BF19*AZ19*(1/BI19))/1000*AQ19*L19,4) | AA19: 2019-04-01 | AE19: 1 | AF19: %ElectricHeat | AG19: IL TRM v6 | AH19: 13722 | AI19: Elec_Heating_Consumption | AJ19: IL TRM v6 | AK19: 0.074 | AL19: Heating_Reduction | AM19: IL TRM v6 | AN19: 0.65 | AO19: HF | AP19: IL TRM v6 | AQ19: 1 | AR19: Eff_ISR | AS19: IL TRM v6 | AT19: 0.46 | AU19: %AC | AV19: IL TRM v6 | AW19: 940 | AX19: FLH | AY19: IL TRM v6 | AZ19: 33600 | BA19: BTU/hr | BB19: IL TRM v6 | BC19: 8.6 | BD19: SEER | BE19: IL TRM v6 | BF19: 0.08 | BG19: Cooling_Reduction | BH19: IL TRM v6 | BI19: 8.15 | BJ19: EER | BK19: IL TRM v6
A20: Energy Saving Products | B20: Smart Thermostat - Gas Heated / CAC SF | C20: 419 | D20: Single Family | E20: HVAC | G20: per unit | H20: 175 | I20: =ROUND((AE20*AH20*AK20*AN20*AQ20)+(BO20*BL20*29.3)+(AT20*((AW20*AZ20*(1/BC20))/1000)*BF20*AQ20),4) -> 326.6491 | J20: IL TRM V6 | L20: 0.34 | M20: IL TRM v6 | N20: 0.0976 | O20: IL TRM v6 | R20: 10 | S20: Smart thermostat | V20: Actual thermostat replaced by smart thermostat, or 44% programmable and 56% manual thermostats may be assumed | Y20: =cellformula(I20) -> =ROUND((AE20*AH20*AK20*AN20*AQ20)+(BO20*BL20*29.3)+(AT20*((AW20*AZ20*(1/BC20))/1000)*BF20*AQ20),4) | Z20: =cellformula(N20) -> =ROUND(AT20*(BF20*AZ20*(1/BI20))/1000*AQ20*L20,4) | AA20: 2019-04-01 | AE20: 0 | AF20: %ElectricHeat | AG20: IL TRM v6 | AK20: 0.074 | AL20: Heating_Reduction | AM20: IL TRM v6 | AN20: 1 | AO20: HF | AP20: IL TRM v6 | AQ20: 1 | AR20: Eff_ISR | AS20: IL TRM v6 | AT20: 0.87 | AU20: %AC | AV20: IL TRM v6 | AW20: 1035 | AX20: FLH | AY20: IL TRM v6 | AZ20: 33600 | BA20: BTU/hr | BB20: IL TRM v6 | BC20: 8.6 | BD20: SEER | BE20: IL TRM v6 | BF20: 0.08 | BG20: Cooling_Reduction | BH20: IL TRM v6 | BI20: 8.15 | BJ20: EER | BK20: IL TRM v6 | BL20: 0.0314 | BM20: Fe | BN20: IL TRM V6 | BO20: =BR20*BU20*AK20*AN20*AQ20 -> 49.136 | BP20: Therms difference | BQ20: IL TRM V6 | BR20: 1 | BS20: %FossilHeat | BT20: IL TRM V6 | BU20: 664 | BV20: Gas Heating Consumption | BW20: IL TRM V6
A21: Energy Saving Products | B21: Smart Thermostat - Gas Heated / CAC MF | C21: 420 | D21: Multi-Family | E21: HVAC | G21: per unit | H21: 175 | I21: =ROUND((AE21*AH21*AK21*AN21*AQ21)+(BO21*BL21*29.3)+(AT21*((AW21*AZ21*(1/BC21))/1000)*BF21*AQ21),4) -> 164.5341 | J21: IL TRM V6 | L21: 0.34 | M21: IL TRM v6 | N21: 0.0516 | O21: IL TRM v6 | R21: 10 | S21: Smart thermostat | V21: Actual thermostat replaced by smart thermostat, or 44% programmable and 56% manual thermostats may be assumed | Y21: =ROUND((AE21*AH21*AK21*AN21*AQ21)+(BO21*BL21*29.3)+(AT21*((AW21*AZ21*(1/BC21))/1000)*BF21*AQ21),4) | Z21: =ROUND(AT21*(BF21*AZ21*(1/BI21))/1000*AQ21*L21,4) | AA21: 2019-04-01 | AE21: 0 | AF21: %ElectricHeat | AG21: IL TRM v6 | AK21: 0.074 | AL21: Heating_Reduction | AM21: IL TRM v6 | AN21: 0.65 | AO21: HF | AP21: IL TRM v6 | AQ21: 1 | AR21: Eff_ISR | AS21: IL TRM v6 | AT21: 0.46 | AU21: %AC | AV21: IL TRM v6 | AW21: 940 | AX21: FLH | AY21: IL TRM v6 | AZ21: 33600 | BA21: BTU/hr | BB21: IL TRM v6 | BC21: 8.6 | BD21: SEER | BE21: IL TRM v6 | BF21: 0.08 | BG21: Cooling_Reduction | BH21: IL TRM v6 | BI21: 8.15 | BJ21: EER | BK21: IL TRM v6 | BL21: 0.0314 | BM21: Fe | BN21: IL TRM V6 | BO21: =BR21*BU21*AK21*AN21*AQ21 -> 31.9384 | BP21: Therms difference | BQ21: IL TRM V6 | BR21: 1 | BS21: %FossilHeat | BT21: IL TRM V6 | BU21: 664 | BV21: Gas Heating Consumption | BW21: IL TRM V6
A22: Energy Saving Products | B22: Smart Power Strip - Wh7-Plug | C22: 312 | D22: All | E22: Electronics | G22: per unit | H22: 16 | I22: =ROUND(103,4) -> 103 | J22: IL TRM v6 | K22: =ROUND(I22/P22,4) -> 0.0144 | L22: 0.8 | M22: IL TRM v6 | N22: =ROUND(I22/P22*L22,4) -> 0.0116 | O22: IL TRM v6 | P22: 7129 | Q22: IL TRM v6 | R22: 5 | S22: Smart strip | V22: Standard outlet strip | Y22: =cellformula(I22) -> =ROUND(103,4) | Z22: =cellformula(N22) -> =ROUND(I22/P22*L22,4) | AA22: 2019-04-01
A23: Energy Saving Products | B23: ENERGY STAR Refrigerators | C23: 399 | D23: All | E23: Appliances | G23: per unit | H23: 40 | I23: =ROUND(AE23-AH23,4) -> 43.14 | J23: IL TRM v6 | N23: =ROUND(I23/P23*AN23*AQ23,4) -> 0.0065 | O23: IL TRM v6 | P23: 8766 | Q23: IL TRM v6 | R23: 12 | S23: A refrigerator meeting the efficiency specifications of Energy Star | V23: A refrigerator meeting the minimum federal efficiency standard for refrigerator efficiency | Y23: =cellformula(I23) -> =ROUND(AE23-AH23,4) | Z23: =cellformula(N23) -> =ROUND(I23/P23*AN23*AQ23,4) | AA23: 2019-04-01 | AE23: =7.99*AK23+225 -> 431.142 | AF23: Federal Baseline Maximum Energy Usage in kWh/year | AG23: IL TRM v6 | AH23: =7.19*AK23+202.5 -> 388.002 | AI23: Federal Energy Star Maximum Energy Usage in kWh/YEAR | AJ23: IL TRM v6 | AK23: 25.8 | AL23: Adjusted volume | AM23: IL TRM v6 | AN23: 1.25 | AO23: Temperature Adjustment Factor | AP23: IL TRM v6 | AQ23: 1.057 | AR23: Load Shape Adjustment Factor | AS23: IL TRM v6
A24: Energy Saving Products | B24: ENERGY STAR Freezers | C24: 400 | D24: All | E24: Appliances | G24: per unit | H24: 35 | I24: =ROUND(AE24-AH24,4) -> 34.3305 | J24: IL TRM v6 | L24: 0.95 | M24: IL TRM v6 | N24: =ROUND(I24/P24*L24,4) -> 0.0055 | O24: IL TRM v6 | P24: 5890 | Q24: IL TRM v6 | R24: 11 | S24: A freezer meeting the efficiency specifications of Energy Star | V24: A freezer meeting the federal minimum standard efficiency | Y24: =cellformula(I24) -> =ROUND(AE24-AH24,4) | Z24: =cellformula(N24) -> =ROUND(I24/P24*L24,4) | AA24: 2019-04-01 | AE24: =8.62*AK24+228.3 -> 343.87265 | AF24: Federal Baseline Maximum Energy Usage in kWh/year | AG24: IL TRM v6 | AH24: =7.76*AK24+205.5 -> 309.5422 | AI24: Federal Energy Star Maximum Energy Usage in kWh/YEAR | AJ24: IL TRM v6 | AK24: =1.73*7.75 -> 13.4075 | AL24: Adjusted volume | AM24: IL TRM v6
A25: Energy Saving Products | B25: LED String Lights | C25: 401 | D25: All | E25: Lighting | G25: per unit | H25: 10 | I25: =ROUND((W25-T25)/1000*AE25*AH25*P25,4) -> 29.7518 | J25: Minnesota TRM | L25: 0 | M25: Minnesota TRM | N25: =ROUND(0,4) -> 0 | O25: Minnesota TRM | P25: 150 | Q25: Minnesota TRM | R25: 8 | S25: LED string lights | T25: =50%*0.043+25%*2+25%*0.48 -> 0.6415 | U25: Minnesota TRM | V25: Incandescent holiday light strings | W25: =50%*0.45+25%*7+25%*6 -> 3.475 | X25: Minnesota TRM | Y25: =cellformula(I25) -> =ROUND((W25-T25)/1000*AE25*AH25*P25,4) | Z25: =cellformula(N25) -> =ROUND(0,4) | AA25: 2019-04-01 | AE25: 1 | AF25: Number of light strings | AG25: Minnesota TRM | AH25: 70 | AI25: Number of lights in string | AJ25: Minnesota TRM
A26: Energy Saving Products | B26: SMART Home Products (Alexa, Google Home, etc.) | C26: 402 | D26: Single Family | E26: Misc | G26: per unit | H26: 440.9629286 | I26: =ROUND(1305.85412860453,4) -> 1305.8541 | J26: Southwestern Utility Program | N26: =ROUND(0,4) -> 0 | O26: Southwestern Utility Program | R26: 8 | S26: Smart Home Products | V26: No Smart Home Products | Y26: =cellformula(I26) -> =ROUND(1305.85412860453,4) | Z26: =cellformula(N26) -> =ROUND(0,4) | AA26: 2019-04-01
A27: Energy Saving Products | B27: ENERGY STAR Pool Pump and motor w/ auto controls - multi speed | C27: 403 | D27: All | E27: Misc | G27: per unit | H27: 235 | I27: =ROUND(((AE27*AH27*60)/AK27-((AN27*AQ27*60)/AT27+(AW27*AZ27*60)/BC27))/1000*BF27,4) -> 1596.0278 | J27: IL TRM v6 | K27: =ROUND(BI27/AE27-BL27/BO27,4) -> 1.3765 | L27: 0.831 | M27: IL TRM v6 | N27: =ROUND((BI27/AE27-BL27/BO27)*L27,4) -> 1.1439 | R27: 10 | S27: Two speed pool pump | V27: Single speed residential pool pump | Y27: =cellformula(I27) -> =ROUND(((AE27*AH27*60)/AK27-((AN27*AQ27*60)/AT27+(AW27*AZ27*60)/BC27))/1000*BF27,4) | Z27: =cellformula(N27) -> =ROUND((BI27/AE27-BL27/BO27)*L27,4) | AA27: 2019-04-01 | AE27: 11.4 | AF27: Hours/Daybase | AG27: IL TRM v6 | AH27: 64.4 | AI27: GPMbase | AJ27: IL TRM v6 | AK27: 2.1 | AL27: EFbase | AM27: IL TRM v6 | AN27: 2 | AO27: Hours/Day2spH | AP27: IL TRM v6 | AQ27: 56 | AR27: GPM2spH | AS27: IL TRM v6 | AT27: 2.4 | AU27: EF2spH | AV27: IL TRM v6 | AW27: 15.7 | AX27: Hours/Day2spL | AY27: IL TRM v6 | AZ27: 31 | BA27: GPM2spL | BB27: IL TRM v6 | BC27: 5.4 | BD27: EF2spL | BE27: IL TRM v6 | BF27: 125 | BG27: Days | BH27: IL TRM v6 | BI27: 20.98 | BJ27: kWh/daybase | BK27: IL TRM v6 | BL27: 8.21 | BM27: kWh/day2sp | BN27: IL TRM v6 | BO27: 17.7 | BP27: Hours/day2sp | BQ27: IL TRM v6
A28: Energy Saving Products | B28: ENERGY STAR VFDs on Residential Swimming Pool Pumps | C28: 404 | D28: All | E28: Misc | G28: per unit | H28: 549 | I28: =ROUND(((AE28*AH28*60)/AK28-((AN28*AQ28*60)/AT28+(AW28*AZ28*60)/BC28))/1000*BF28,4) -> 1921.6179 | J28: IL TRM v6 | K28: =ROUND((BI28/AE28)-(BL28/BO28),4) -> 1.5292 | L28: 0.831 | M28: IL TRM v6 | N28: =ROUND(((BI28/AE28)-(BL28/BO28))*L28,4) -> 1.2708 | R28: 10 | S28: Variable speed pool pump | V28: Single speed residential pool pump | Y28: =cellformula(I28) -> =ROUND(((AE28*AH28*60)/AK28-((AN28*AQ28*60)/AT28+(AW28*AZ28*60)/BC28))/1000*BF28,4) | Z28: =cellformula(N28) -> =ROUND(((BI28/AE28)-(BL28/BO28))*L28,4) | AA28: 2019-04-01 | AE28: 11.4 | AF28: Hours/Daybase | AG28: IL TRM v6 | AH28: 64.4 | AI28: GPMbase | AJ28: IL TRM v6 | AK28: 2.1 | AL28: EFbase | AM28: IL TRM v6 | AN28: 2 | AO28: Hours/DayvsH | AP28: IL TRM v6 | AQ28: 50 | AR28: GPMvsH | AS28: IL TRM v6 | AT28: 3.8 | AU28: EFvsH | AV28: IL TRM v6 | AW28: 16 | AX28: Hours/DayvsL | AY28: IL TRM v6 | AZ28: 30.6 | BA28: GPMvsL | BB28: IL TRM v6 | BC28: 7.3 | BD28: EFvsL | BE28: IL TRM v6 | BF28: 125 | BG28: Days | BH28: IL TRM v6 | BI28: 20.98 | BJ28: kWh/daybase | BK28: IL TRM v6 | BL28: 5.6 | BM28: kWh/dayvar | BN28: IL TRM v6 | BO28: 18 | BP28: Hours/dayvar | BQ28: IL TRM v6
A29: Heating, Cooling & Weatherization | B29: Screw In - LEDs | C29: 8.2 | D29: Single Family | E29: Lighting | F29: Kits | G29: per lamp | H29: 3.93 | I29: =ROUND(($W29-$T29)/1000*$P29*$AE29*$AK29,4) -> 28.2745 | J29: IL TRM v5 | K29: =I29/P29 -> 0.03366011905 | L29: 0.08 | M29: IL TRM v5 | N29: =ROUND(($W29-$T29)/1000*L29*$AH29*$AK29,4) -> 0.0028 | O29: IL TRM v5 | P29: 840 | Q29: IL TRM v5 | R29: 10 | S29: Screw In - LEDs | T29: 9.29 | U29: Program Tracking Database | V29: 43 watts based on halogen equivalent to average of bulbs sold in program | W29: 43 | Y29: =cellformula(I29) -> =ROUND(($W29-$T29)/1000*$P29*$AE29*$AK29,4) | Z29: =cellformula(N29) -> =ROUND(($W29-$T29)/1000*L29*$AH29*$AK29,4) | AA29: 2018-04-01 | AB29: 2019-03-31 | AE29: 1.06 | AF29: Waste Heat Factor, Energy | AG29: IL TRM v5 | AH29: 1.11 | AI29: Waste Heat Factor, Demand | AJ29: IL TRM v5 | AK29: 0.942 | AL29: ISR | AM29: Navigant MEEIA Cycle 1 Research
A30: Heating, Cooling & Weatherization | B30: Screw In - LEDs | C30: 8.3 | D30: Single Family | E30: Lighting | F30: Kits | G30: per lamp | H30: 3.93 | I30: =ROUND(($W30-$T30)/1000*$P30*$AE30*$AK30,4) -> 28.5101 | J30: IL TRM v5 | K30: =I30/P30 -> 0.03366009445 | L30: 0.08 | M30: IL TRM v5 | N30: =ROUND(($W30-$T30)/1000*L30*$AH30*$AK30,4) -> 0.0028 | O30: IL TRM v5 | P30: 847 | Q30: IL TRM v5 | R30: 10 | S30: Screw In - LEDs | T30: 9.29 | U30: Program Tracking Database | V30: 43 watts based on halogen equivalent to average of bulbs sold in program | W30: 43 | Y30: =cellformula(I30) -> =ROUND(($W30-$T30)/1000*$P30*$AE30*$AK30,4) | Z30: =cellformula(N30) -> =ROUND(($W30-$T30)/1000*L30*$AH30*$AK30,4) | AA30: 2019-04-01 | AE30: 1.06 | AF30: Waste Heat Factor, Energy | AG30: IL TRM v5 | AH30: 1.11 | AI30: Waste Heat Factor, Demand | AJ30: IL TRM v5 | AK30: 0.942 | AL30: ISR | AM30: Navigant MEEIA Cycle 1 Research
A31: Heating, Cooling & Weatherization | B31: Low Flow Faucet Aerator-Bathroom | C31: 245 | D31: Single Family | E31: Hot Water | F31: Kits | G31: per unit | H31: 8 | I31: =ROUND(((W31-T31)*AH31*AK31*365.25)*AE31*AN31,4) -> 25.1533 | J31: IL TRM v5 | K31: =I31/P31 -> 1.796664286 | L31: 0.022 | M31: IL TRM v5 | N31: =ROUND((((W31-T31)*AH31*AK31*365.25)*AE31*AN31)/P31*L31,4) -> 0.0395 | O31: IL TRM v5 | P31: 14 | Q31: IL TRM v5 | R31: 9 | S31: Low Flow (GPM) | T31: 1.5 | U31: Program Tracking Database | V31: Standard (GPM) | W31: 2.2 | X31: Federal Baseline | Y31: =cellformula(I31) -> =ROUND(((W31-T31)*AH31*AK31*365.25)*AE31*AN31,4) | Z31: =cellformula(N31) -> =ROUND((((W31-T31)*AH31*AK31*365.25)*AE31*AN31)/P31*L31,4) | AA31: 2018-04-01 | AB31: 2019-03-31 | AE31: 0.0795 | AF31: kWh per gallon hot water, bathroom | AG31: IL TRM v5 | AH31: 0.5088339223 | AI31: Faucet Coefficient, Bathroom: Minutes/day * Drain Factor / Faucets per Household | AJ31: IL TRM v5 | AK31: 2.56 | AL31: Persons per household | AM31: IL TRM v5 | AN31: 0.95 | AO31: Installation Rate | AP31: IL TRM v5
A32: Heating, Cooling & Weatherization | B32: Low Flow Faucet Aerator-Bathroom | C32: 245.1 | D32: Single Family | E32: Hot Water | F32: Kits | G32: per unit | H32: 8 | I32: =ROUND(((W32-T32)*AH32*AK32*365.25)*AE32*AN32,4) -> 43.1199 | J32: IL TRM v5 | K32: 3.079992857 | L32: 0.022 | M32: IL TRM v5 | N32: =ROUND((((W32-T32)*AH32*AK32*365.25)*AE32*AN32)/P32*L32,4) -> 0.0678 | O32: IL TRM v5 | P32: 14 | Q32: IL TRM v5 | R32: 9 | S32: Low Flow (GPM) | T32: 1 | U32: Program Tracking Database | V32: Standard (GPM) | W32: 2.2 | X32: Federal Baseline | Y32: =cellformula(I32) -> =ROUND(((W32-T32)*AH32*AK32*365.25)*AE32*AN32,4) | Z32: =cellformula(N32) -> =ROUND((((W32-T32)*AH32*AK32*365.25)*AE32*AN32)/P32*L32,4) | AA32: 2019-04-01 | AE32: 0.0795 | AF32: kWh per gallon hot water, bathroom | AG32: IL TRM v5 | AH32: 0.5088339223 | AI32: Faucet Coefficient, Bathroom: Minutes/day * Drain Factor / Faucets per Household | AJ32: IL TRM v5 | AK32: 2.56 | AL32: Persons per household | AM32: IL TRM v5 | AN32: 0.95 | AO32: Installation Rate | AP32: IL TRM v5
A33: Heating, Cooling & Weatherization | B33: Low Flow Faucet Aerator-Kitchen | C33: 246 | D33: Single Family | E33: Hot Water | F33: Kits | G33: per unit | H33: 8 | I33: =ROUND(((W33-T33)*AH33*AK33*365.25)*AE33*AN33,4) -> 203.3524 | J33: IL TRM v5 | K33: 2.163323404 | L33: 0.022 | M33: IL TRM v5 | N33: =ROUND((((W33-T33)*AH33*AK33*365.25)*AE33*AN33)/P33*L33,4) -> 0.0476 | O33: IL TRM v5 | P33: 94 | Q33: IL TRM v5 | R33: 9 | S33: Low Flow (GPM) | T33: 1.5 | U33: Program Tracking Database | V33: Standard (GPM) | W33: 2.2 | X33: Federal Baseline | Y33: =ROUND(((W33-T33)*AH33*AK33*365.25)*AE33*AN33,4) | Z33: =ROUND((((W33-T33)*AH33*AK33*365.25)*AE33*AN33)/P33*L33,4) | AA33: 2018-04-01 | AE33: 0.0969 | AF33: kWh per gallon hot water, kitchen | AG33: IL TRM v5 | AH33: 3.375 | AI33: Faucet Coefficient, Kitchen | AJ33: IL TRM v5 | AK33: 2.56 | AL33: Persons per household | AM33: IL TRM v5 | AN33: 0.95 | AO33: Installation Rate | AP33: IL TRM v5
A34: Heating, Cooling & Weatherization | B34: Pipe Insulated | C34: 10.1 | D34: Single Family | E34: Hot Water | F34: Kits | G34: per unit | H34: 18 | I34: =ROUND(((((AE34*PI()*AK34)/W34) - ((AH34*PI()*AK34)/T34))*AN34)/AQ34/3412,4) -> 72.065 | J34: IL TRM v5, modified to account for larger diameter due to added pipe insulation | K34: 0.008220965535 | N34: =ROUND(I34/8766,4) -> 0.0082 | O34: IL TRM v5 | Q34: IL TRM v5 | R34: 15 | S34: Efficient R-Value due to added insulation | T34: =1+5 -> 6 | U34: IL TRM v5 | V34: R-Value of bare pipe | W34: 1 | X34: IL TRM v5 | Y34: =ROUND(((((AE34*PI()*AK34)/W34) - ((AH34*PI()*AK34)/T34))*AN34)/AQ34/3412,4) | Z34: =ROUND(I34/8766,4) | AA34: 2018-04-01 | AE34: =0.75/12 -> 0.0625 | AF34: Dbase = Pipe Diameter (ft) | AG34: IL TRM v5 | AH34: =(0.75+1*2)/12 -> 0.2291666667 | AI34: Dee = Updated Pipe Diameter, due to added insulation (ft) | AJ34: IL TRM v5 | AK34: 6 | AL34: Length of added pipe insulation | AM34: Verified through EEP | AN34: =60*8766 -> 525960 | AO34: Pipe Insulated Coefficient 1 = ∆T * Hours = 60 * 8766 | AP34: IL TRM v5 | AQ34: 0.98 | AR34: Recovery efficiency of electric water heater | AS34: IL TRM v5
A35: Heating, Cooling & Weatherization | B35: Low Flow Showerhead | C35: 11.1 | D35: Single Family | E35: Hot Water | F35: Kits | G35: per unit | H35: 12 | I35: =ROUND(((W35-T35)*AH35*AK35*365.25)*AE35*AN35,4) -> 327.9599 | J35: IL TRM v5 | K35: =I35/P35 -> 1.085959934 | L35: 0.0278 | M35: IL TRM v5 | N35: =ROUND((((W35-T35)*AH35*AK35*365.25)*AE35*AN35)/P35*L35,4) -> 0.0302 | O35: IL TRM v5 | P35: 302 | Q35: IL TRM v5 | R35: 10 | S35: Low Flow (GPM) | T35: 1.5 | U35: EEP from ICF | V35: Standard (GPM) | W35: 2.67 | X35: IL TRM v5 | Y35: =ROUND(((W35-T35)*AH35*AK35*365.25)*AE35*AN35,4) | Z35: =ROUND((((W35-T35)*AH35*AK35*365.25)*AE35*AN35)/P35*L35,4) | AA35: 2018-04-01 | AE35: 0.117 | AF35: kWh per gallon hot water | AG35: IL TRM v5 | AH35: 2.61452514 | AI35: Showerhead Coefficient: Minutes per day * Showers per day / Showers per household | AJ35: IL TRM v5 | AK35: 2.56 | AL35: Persons per household | AM35: IL TRM v5 | AN35: 0.98 | AO35: Installation Rate | AP35: IL TRM v5
A36: Heating, Cooling & Weatherization | B36: Water Heater Tank Wrap | C36: 12 | D36: Single Family | E36: Hot Water | F36: Kits | G36: per unit | H36: 18 | I36: =ROUND(131.295784945569,4) -> 131.2958 | K36: 0.01498810502 | N36: =ROUND(0.0149881033042887,4) -> 0.015 | P36: 8760 | R36: 5 | S36: Water Heater Blanket/Tank Wrap | V36: No Blanket | Y36: =ROUND(131.295784945569,4) | Z36: =ROUND(0.0149881033042887,4) | AA36: 2016-04-01
A37: Heating, Cooling & Weatherization | B37: Smart Power Strip - Wh7-Plug | C37: 13.1 | D37: Single Family | E37: Electronics | F37: Kits | G37: per unit | H37: 16 | I37: =ROUND(103,4) -> 103 | J37: IL TRM v5 | K37: 0.01444802918 | L37: 0.8 | M37: IL TRM v5 | N37: =ROUND(I37/P37*L37,4) -> 0.0116 | O37: IL TRM v5 | P37: 7129 | Q37: IL TRM v5 | R37: 5 | S37: Smart strip | V37: Standard outlet strip | Y37: =ROUND(103,4) | Z37: =ROUND(I37/P37*L37,4) | AA37: 2018-04-01
A38: Heating, Cooling & Weatherization | B38: Air Sealing | C38: 14.1 | D38: Single Family | E38: HVAC - Shell | G38: per sq ft (floor area) | H38: 0.12 | I38: =ROUND((AW38*((W38-T38)/AN38*AE38*AT38*AC38)/AK38)/AZ38+(((W38-T38)/AQ38*AE38*AD38)/AH38)/AZ38,4) -> 0.4337 | J38: IL TRM v5, PY2016 averages | K38: 0.0004416496945 | L38: 0.72 | M38: IL TRM v5 | N38: =ROUND((((AW38*((W38-T38)/AN38*AE38*AT38*AC38)/AK38)/AZ38)/P38)*L38,8) -> 6.149e-05 | O38: IL TRM v5, PY2016 averages | P38: 982 | Q38: EFLHcool, from PY2016 analysis | R38: 15 | S38: Efficient CFM | T38: 3083.594156 | U38: PY2016 average | V38: Baseline CFM | W38: 4342.996753 | X38: PY2016 average | Y38: =ROUND((AW38*((W38-T38)/AN38*AE38*AT38*AC38)/AK38)/AZ38+(((W38-T38)/AQ38*AE38*AD38)/AH38)/AZ38,4) | Z38: =ROUND((((AW38*((W38-T38)/AN38*AE38*AT38*AC38)/AK38)/AZ38)/P38)*L38,8) | AA38: 2018-04-01 | AC38: 1445 | AD38: 5155 | AE38: 25.92 | AF38: Air Sealing Coefficient: 60 * 24 * 0.018 | AG38: IL TRM v5 | AH38: 6551.04 | AI38: Heating Coefficient: COP * 3,412 COP = 1.7 for units before 2006 COP = 1.92 for units between 2006-2014 COP = 2.4 for units after 2014 | AJ38: IL TRM v5 | AK38: 13000 | AL38: Cooling Coefficient | AM38: IL TRM v5: SEER * 1,000. SEER 10 for units before 2006 SEER 13 for units after 2006 | AN38: 35.8 | AO38: Ncool: Infiltration conversion factor | AP38: IL TRM v5 | AQ38: 22.5 | AR38: Nheat: Infiltration conversion factor | AS38: IL TRM v5 | AT38: 0.75 | AU38: DUA: Discretionary Use Adjustment | AV38: IL TRM v5 | AW38: 3.6 | AX38: LM: Latent Cooling Multiplier | AY38: IL TRM v5 | AZ38: 3263 | BA38: Square footage installed | BB38: PY2016 average
A39: Heating, Cooling & Weatherization | B39: Increased Ceiling Insulation | C39: 15.1 | D39: Single Family | E39: HVAC - Shell | G39: per sq ft (ceiling area) | H39: 0.76 | I39: =ROUND(((((1/W39-1/T39)*(1-AN39)*24*AC39*AK39)/AH39)*AQ39)+((((1/W39-1/T39)*(1-AN39)*24*AD39)/AE39)*AT39),4) -> 0.4028 | J39: IL TRM v5, PY2016 averages | K39: 0.0004101832994 | L39: 0.7 | M39: IL TRM v5 | N39: =ROUND((((((1/W39-1/T39)*(1-AN39)*24*AC39*AK39)/AH39)*AQ39)/P39)*L39,8) -> 3.554e-05 | O39: IL TRM v5, PY2016 averages | P39: 982 | Q39: EFLHcool, from PY2016 analysis | R39: 25 | S39: Final R-value | T39: 41.03164557 | U39: PY2016 average | V39: Previous R-value | W39: 17.28280255 | X39: PY2016 average | Y39: =ROUND(((((1/W39-1/T39)*(1-AN39)*24*AC39*AK39)/AH39)*AQ39)+((((1/W39-1/T39)*(1-AN39)*24*AD39)/AE39)*AT39),4) | Z39: =ROUND((((((1/W39-1/T39)*(1-AN39)*24*AC39*AK39)/AH39)*AQ39)/P39)*L39,8) | AA39: 2018-04-01 | AC39: 1445 | AD39: 5155 | AE39: 6551.04 | AF39: Heating Coefficient: COP * 3,412 COP = 1.7 for units before 2006 COP = 1.92 for units between 2006-2014 COP = 2.4 for units after 2014 | AG39: IL TRM v5 | AH39: 13000 | AI39: Cooling Coefficient | AJ39: IL TRM v5: SEER * 1,000. SEER 10 for units before 2006 SEER 13 for units after 2006 | AK39: 0.75 | AL39: DUA: Discretionary Use Adjustment | AM39: IL TRM v5 | AN39: 0.07 | AO39: Framing Factor, Ceiling | AP39: IL TRM v5 | AQ39: 0.8 | AR39: ADJcool: adjustment for cooling savings from basement wall insulation | AS39: IL TRM v5 | AT39: 0.6 | AU39: ADJheat: adjustment for wall and attic insulation | AV39: IL TRM v5
A40: Heating, Cooling & Weatherization | B40: Increased Wall Insulation | C40: 16.1 | D40: Single Family | E40: HVAC - Shell | G40: per sq ft (wall area) | H40: 1.32 | I40: =ROUND(((((1/W40-1/T40)*(1-AN40)*24*AC40*AK40)/AH40)*AQ40)+((((1/W40-1/T40)*(1-AN40)*24*AD40)/AE40)*AT40),4) -> 0.8476 | J40: IL TRM v5, PY2016 averages | K40: 0.0008631364562 | L40: 0.7 | M40: IL TRM v5 | N40: =ROUND((((((1/W40-1/T40)*(1-AN40)*24*AC40*AK40)/AH40)*AQ40)/P40)*L40,8) -> 7.478e-05 | O40: IL TRM v5, PY2016 averages | P40: 982 | Q40: EFLHcool, from PY2016 analysis | R40: 25 | S40: Final R-value | T40: 17.23484848 | U40: PY2016 average | V40: Previous R-value | W40: 6.876923077 | X40: PY2016 average | Y40: =ROUND(((((1/W40-1/T40)*(1-AN40)*24*AC40*AK40)/AH40)*AQ40)+((((1/W40-1/T40)*(1-AN40)*24*AD40)/AE40)*AT40),4) | Z40: =ROUND((((((1/W40-1/T40)*(1-AN40)*24*AC40*AK40)/AH40)*AQ40)/P40)*L40,8) | AA40: 2018-04-01 | AC40: 1445 | AD40: 5155 | AE40: 6551.04 | AF40: Heating Coefficient: COP * 3,412 COP = 1.7 for units before 2006 COP = 1.92 for units between 2006-2014 COP = 2.4 for units after 2014 | AG40: IL TRM v5 | AH40: 13000 | AI40: Cooling Coefficient | AJ40: IL TRM v5: SEER * 1,000. SEER 10 for units before 2006 SEER 13 for units after 2006 | AK40: 0.75 | AL40: DUA: Discretionary Use Adjustment | AM40: IL TRM v5 | AN40: 0.25 | AO40: Framing Factor, Wall | AP40: IL TRM v5 | AQ40: 0.8 | AR40: ADJcool: adjustment for cooling savings from basement wall insulation | AS40: IL TRM v5 | AT40: 0.6 | AU40: ADJheat: adjustment for wall and attic insulation | AV40: IL TRM v5
A41: Heating, Cooling & Weatherization | B41: ENERGY STAR Windows | C41: 17 | D41: Single Family | E41: HVAC - Shell | G41: per sq ft (window area) | H41: 1.5 | I41: =ROUND((W41-T41)*(AC41*AE41 + AD41*AH41),4) -> 2.05 | N41: =ROUND(0.000828,4) -> 0.0008 | R41: 25 | S41: Efficient U-factor | T41: 0.3 | V41: Baseline U-factor | W41: 0.9 | Y41: =ROUND((W41-T41)*(AC41*AE41 + AD41*AH41),4) | Z41: =ROUND(0.000828,4) | AA41: 2016-04-01 | AC41: 1325 | AD41: 5249 | AE41: 0.0005197241659 | AF41: Cooling Coefficient | AH41: =AE41 -> 0.0005197241659 | AI41: Heating Coefficient
A42: Heating, Cooling & Weatherization | B42: Heat Pump Water Heater | C42: 18.1 | D42: Single Family | E42: Hot Water | G42: per unit | H42: 1000 | I42: =ROUND(((1/W42-1/T42)*AE42*AH42)+((((AE42*AH42-(1/(AE42*AH42*T42)))*AN42*0.27)/AQ42)*AK42)-(((AE42*AH42-(1/(AE42*AH42*T42)))*AN42*0.27)/AT42),4) -> 1484.4151 | J42: IL TRM v5 | K42: =I42/P42 -> 0.5860304382 | L42: 0.12 | M42: IL TRM v5 | N42: =ROUND(I42/P42*L42,4) -> 0.0703 | O42: IL TRM v5 | P42: 2533 | Q42: IL TRM v5 | R42: 13 | S42: Efficient EF | T42: 2 | U42: KCP&L Meta Data Analysis | V42: Baseline EF | W42: 0.945 | X42: IL TRM v5 | Y42: =ROUND(((1/W42-1/T42)*AE42*AH42)+((((AE42*AH42-(1/(AE42*AH42*T42)))*AN42*0.27)/AQ42)*AK42)-(((AE42*AH42-(1/(AE42*AH42*T42)))*AN42*0.27)/AT42),4) | Z42: =ROUND(I42/P42*L42,4) | AA42: 2018-04-01 | AE42: 45.143 | AF42: Gallons per day: 17.6 gal/day * 2.56 persons/household | AG42: IL TRM v5 | AH42: 63.31178414 | AI42: WHC = Water Heating Coefficient: (365.25 * γWater * (Tout - Tin))/3,412 Assume: γWater = 8.33lbs / Gallon Tout = Tank Temperature = 125 °F Tin = Incoming Water Temperature = 54 °F | AJ42: IL TRM v5 | AK42: 1.33 | AL42: Latent multiplier to account for latent cooling demand | AM42: IL TRM v5 | AN42: 0.5 | AO42: Location Factor | AP42: IL TRM v5 | AQ42: 3.08 | AR42: COPcool | AS42: IL TRM v5 | AT42: 1.39 | AU42: COPheat: For Heat Pumps: Before 2006, COP = 2.00 2006-2014, COP = 2.26 2015 and later, COP = 2.40 For Electric Resistance, COP = 1.00 For Unknown, COP = 1.39 | AV42: IL TRM v5
A43: Heating, Cooling & Weatherization | B43: Efficient ECM Fan | C43: 19.1 | D43: Single Family | E43: All | G43: per unit | H43: 97 | I43: =ROUND(710,4) -> 710 | J43: -IL TRM v5: If no AC, 644 kWh. If AC exists, 732 kWh. If AC unknown, 710 kWh. | K43: 0.7230142566 | L43: 0.68 | M43: IL TRM v5 | N43: =ROUND(241 / AE43* L43,4) -> 0.1669 | P43: 982 | Q43: EFLHcool, from PY2016 analysis | R43: 10 | S43: ECM Fan | V43: Std Fan | Y43: =ROUND(710,4) | Z43: =cellformula(N43) -> =ROUND(241 / AE43* L43,4) | AA43: 2018-04-01 | AB43: 2019-03-31 | AE43: 982 | AF43: EFLHcool | AH43: n/a | AI43: EFLHheat
A44: Heating, Cooling & Weatherization | B44: Heat Pump Ductless Mini Split | C44: 20.1 | D44: Single Family | E44: All | G44: per unit | H44: 3787.974684 | I44: =ROUND((AT44*AE44*(1/W44-1/T44))/1000+(AW44*AE44*(1/AK44-1/AH44)/1000),4) -> 2329.3857 | J44: IL TRM v5 | K44: 2.372083198 | L44: 0.43 | M44: IL TRM v5 | N44: =ROUND((AE44*(1/AQ44-1/AN44)/1000)*L44,4) -> 0.1999 | P44: 982 | Q44: EFLHcool, from PY2016 analysis | R44: 18 | S44: SEER | T44: 22.94 | U44: PY2016 Metadata | V44: SEER | W44: 9.12 | X44: IL TRM v5; assumes existing equimpment is ASHP | Y44: =cellformula(I44) -> =ROUND((AT44*AE44*(1/W44-1/T44))/1000+(AW44*AE44*(1/AK44-1/AH44)/1000),4) | Z44: =ROUND((AE44*(1/AQ44-1/AN44)/1000)*L44,4) | AA44: 2018-04-01 | AE44: 12000 | AF44: Allows for Capacity input in Tons; converts tons to BTUs | AH44: 11.12424242 | AI44: HSPFee | AJ44: Calculated per PY2016 Metadata | AK44: 5.44 | AL44: HSPFbase | AM44: Illinois TRM - Assumes Air Source Heat Pump | AN44: 12.78461538 | AO44: EERee | AP44: Calculated per PY2016 Metadata | AQ44: 8.55 | AR44: EERbase | AS44: Illinois TRM - Assumes Air Source Heat Pump | AT44: 982 | AU44: EFLHcool | AV44: The EFLH Cooling and Heating hours are based on a EnergyStar study that was normalized (based on HDD and CDD) to Kansas City. This was for both AC and HP units. | AW44: 1376 | AX44: EFLHheat | AY44: The EFLH Cooling and Heating hours are based on a EnergyStar study that was normalized (based on HDD and CDD) to Kansas City. This was for both AC and HP units.
A45: Heating, Cooling & Weatherization | B45: CAC SEER 15 | C45: 21.1 | D45: Single Family | E45: HVAC | G45: per ton | H45: 238 | I45: =ROUND((AN45*AH45*(1/W45-1/T45))/1000,4) -> 127.0965 | J45: IL TRM v5 | K45: 0.1294261711 | L45: 0.68 | M45: IL TRM v5 | N45: =ROUND(((AH45*((1/AK45)-(1/AE45)))/1000)*L45,4) -> 0.0685 | P45: 982 | Q45: EFLHcool, from PY2016 analysis | R45: 18 | S45: SEER | T45: 15.12 | U45: per PY2016 Metadata | V45: SEER | W45: 13 | X45: IL TRM v5 | Y45: =ROUND((AN45*AH45*(1/W45-1/T45))/1000,4) | Z45: =ROUND(((AH45*((1/AK45)-(1/AE45)))/1000)*L45,4) | AA45: 2018-04-01 | AE45: 12.362112 | AF45: EERee | AG45: IL TRMv5 | AH45: 12000 | AI45: Allows for Capacity input in Tons; converts tons to BTUs | AK45: 11.2 | AL45: EERbase | AM45: IL TRMv5, Early Replacement | AN45: 982 | AO45: EFLHcool | AP45: The EFLH Cooling and Heating hours are based on a EnergyStar study that was normalized (based on HDD and CDD) to Kansas City. This was for both AC and HP units. | AQ45: 1376 | AR45: EFLHheat | AS45: The EFLH Cooling and Heating hours are based on a EnergyStar study that was normalized (based on HDD and CDD) to Kansas City. This was for both AC and HP units.
A46: Heating, Cooling & Weatherization | B46: CAC SEER 15 - Early Replacement | C46: 22.1 | D46: Single Family | E46: HVAC | G46: per ton | H46: 267 | I46: =ROUND((AN46*AH46*(1/W46-1/T46))/1000,4) -> 937.4621 | J46: IL TRM v5 | K46: 0.954645723 | L46: 0.68 | M46: IL TRM v5 | N46: =ROUND(((AH46*((1/AK46)-(1/AE46)))/1000)*L46,4) -> 0.7005 | P46: 982 | Q46: EFLHcool, from PY2016 analysis | R46: 6 | S46: SEER | T46: 15.15 | U46: per PY2016 Metadata | V46: SEER | W46: 6.87 | X46: per PY2015 report | Y46: =ROUND((AN46*AH46*(1/W46-1/T46))/1000,4) | Z46: =ROUND(((AH46*((1/AK46)-(1/AE46)))/1000)*L46,4) | AA46: 2018-04-01 | AE46: 12.37755 | AF46: EERee | AG46: PY2016 evaluation metadata | AH46: 12000 | AI46: Allows for Capacity input in Tons; converts tons to BTUs | AK46: 6.001068314 | AL46: EERbase | AM46: Early Replacement: 2015 Tracking Data Analysis | AN46: 982 | AO46: EFLHcool | AP46: The EFLH Cooling and Heating hours are based on a EnergyStar study that was normalized (based on HDD and CDD) to Kansas City. This was for both AC and HP units. | AQ46: 1376 | AR46: EFLHheat | AS46: The EFLH Cooling and Heating hours are based on a EnergyStar study that was normalized (based on HDD and CDD) to Kansas City. This was for both AC and HP units.
A47: Heating, Cooling & Weatherization | B47: CAC SEER 15 - Early Replacement (future) | C47: 23.1 | D47: Single Family | E47: HVAC | G47: per ton | H47: 267 | I47: =ROUND((AT47*AH47*(1/AN47-1/T47))/1000,4) -> 128.6398 | J47: IL TRM v5 | K47: 0.1309977597 | L47: 0.68 | M47: IL TRM v5 | N47: =ROUND(((AH47*((1/AQ47)-(1/AE47)))/1000)*L47,4) -> 0.0693 | O47: IL TRM V5 | P47: 982 | Q47: EFLHcool, from PY2016 analysis | R47: 12 | S47: SEER | T47: 15.15 | U47: per PY2016 Metadata | V47: SEER | W47: 10 | X47: SEERexist per IL TRM v5 | Y47: =ROUND((AT47*AH47*(1/AN47-1/T47))/1000,4) | Z47: =ROUND(((AH47*((1/AQ47)-(1/AE47)))/1000)*L47,4) | AA47: 2018-04-01 | AE47: 12.37755 | AF47: EERee | AG47: PY2016 evaluation metadata | AH47: 12000 | AI47: Allows for Capacity input in Tons; converts tons to BTUs | AK47: 6.001068314 | AL47: EERexist | AM47: Early Replacement: 2015 Tracking Data Analysis | AN47: 13 | AO47: SEERbase | AP47: IL TRM V5 | AQ47: 11.2 | AR47: EERbase | AS47: IL TRM V5 | AT47: 982 | AU47: EFLHcool | AV47: The EFLH Cooling and Heating hours are based on a EnergyStar study that was normalized (based on HDD and CDD) to Kansas City. This was for both AC and HP units. | AW47: 1376 | AX47: EFLHheat | AY47: The EFLH Cooling and Heating hours are based on a EnergyStar study that was normalized (based on HDD and CDD) to Kansas City. This was for both AC and HP units.
A48: Heating, Cooling & Weatherization | B48: CAC SEER 16 | C48: 24.1 | D48: Single Family | E48: HVAC | G48: per ton | H48: 357 | I48: =ROUND((AN48*AH48*(1/W48-1/T48))/1000,4) -> 192.2797 | J48: IL TRM v5 | K48: 0.1958041752 | L48: 0.68 | M48: IL TRM v5 | N48: =ROUND(((AH48*((1/AK48)-(1/AE48)))/1000)*L48,4) -> 0.1026 | P48: 982 | Q48: EFLHcool, from PY2016 analysis | R48: 18 | S48: SEER | T48: 16.5 | U48: per PY2016 Metadata | V48: SEER | W48: 13 | X48: IL TRM v5 | Y48: =ROUND((AN48*AH48*(1/W48-1/T48))/1000,4) | Z48: =ROUND(((AH48*((1/AK48)-(1/AE48)))/1000)*L48,4) | AA48: 2018-04-01 | AE48: 13.035 | AF48: EERee | AG48: IL TRMv5 | AH48: 12000 | AI48: Allows for Capacity input in Tons; converts tons to BTUs | AK48: 11.2 | AL48: EERbase | AM48: IL TRMv5, Early Replacement | AN48: 982 | AO48: EFLHcool | AP48: The EFLH Cooling and Heating hours are based on a EnergyStar study that was normalized (based on HDD and CDD) to Kansas City. This was for both AC and HP units. | AQ48: 1376 | AR48: EFLHheat | AS48: The EFLH Cooling and Heating hours are based on a EnergyStar study that was normalized (based on HDD and CDD) to Kansas City. This was for both AC and HP units.
A49: Heating, Cooling & Weatherization | B49: CAC SEER 16 - Early Replacement | C49: 25.1 | D49: Single Family | E49: HVAC | G49: per ton | H49: 418 | I49: =ROUND((AN49*AH49*(1/W49-1/T49))/1000,4) -> 1002.3982 | J49: IL TRM v5 | K49: 1.020772098 | L49: 0.68 | M49: IL TRM v5 | N49: =ROUND(((AH49*((1/AK49)-(1/AE49)))/1000)*L49,4) -> 0.7344 | P49: 982 | Q49: EFLHcool, from PY2016 analysis | R49: 6 | S49: SEER | T49: 16.53 | U49: per PY2016 Metadata | V49: SEER | W49: 6.87 | X49: per PY2015 report | Y49: =ROUND((AN49*AH49*(1/W49-1/T49))/1000,4) | Z49: =ROUND(((AH49*((1/AK49)-(1/AE49)))/1000)*L49,4) | AA49: 2018-04-01 | AE49: 13.048782 | AF49: EERee | AG49: PY2016 evaluation metadata | AH49: 12000 | AI49: Allows for Capacity input in Tons; converts tons to BTUs | AK49: 6.001068314 | AL49: EERbase | AM49: Early Replacement: 2015 Tracking Data Analysis | AN49: 982 | AO49: EFLHcool | AP49: The EFLH Cooling and Heating hours are based on a EnergyStar study that was normalized (based on HDD and CDD) to Kansas City. This was for both AC and HP units. | AQ49: 1376 | AR49: EFLHheat | AS49: The EFLH Cooling and Heating hours are based on a EnergyStar study that was normalized (based on HDD and CDD) to Kansas City. This was for both AC and HP units.
A50: Heating, Cooling & Weatherization | B50: CAC SEER 16 - Early Replacement (future) | C50: 26.1 | D50: Single Family | E50: HVAC | G50: per ton | H50: 418 | I50: =ROUND((AT50*AH50*(1/AN50-1/T50))/1000,4) -> 193.5759 | J50: IL TRM v5 | K50: 0.1971241344 | L50: 0.68 | M50: IL TRM v5 | N50: =ROUND(((AH50*((1/AQ50)-(1/AE50)))/1000)*L50,4) -> 0.1032 | O50: IL TRM V5 | P50: 982 | Q50: EFLHcool, from PY2016 analysis (Normalized EnergyStar KC Cooling Hours to IL TRM CDD) | R50: 12 | S50: SEER | T50: 16.53 | U50: per PY2016 Metadata | V50: SEER | W50: 10 | X50: SEERexist per IL TRM v5 | Y50: =ROUND((AT50*AH50*(1/AN50-1/T50))/1000,4) | Z50: =ROUND(((AH50*((1/AQ50)-(1/AE50)))/1000)*L50,4) | AA50: 2018-04-01 | AE50: 13.048782 | AF50: EERee | AG50: PY2016 evaluation metadata | AH50: 12000 | AI50: Allows for Capacity input in Tons; converts tons to BTUs | AK50: 6.001068314 | AL50: EERexist | AM50: Early Replacement: 2015 Tracking Data Analysis | AN50: 13 | AO50: SEERbase | AP50: IL TRM V5 | AQ50: 11.2 | AR50: EERbase | AS50: IL TRM V5 | AT50: 982 | AU50: EFLHcool | AV50: The EFLH Cooling and Heating hours are based on a EnergyStar study that was normalized (based on HDD and CDD) to Kansas City. This was for both AC and HP units. | AW50: 1376 | AX50: EFLHheat | AY50: The EFLH Cooling and Heating hours are based on a EnergyStar study that was normalized (based on HDD and CDD) to Kansas City. This was for both AC and HP units.
A51: Heating, Cooling & Weatherization | B51: CAC SEER 17 | C51: 27.1 | D51: Single Family | E51: HVAC | G51: per ton | H51: 368.51 | I51: =ROUND((AN51*AH51*(1/W51-1/T51))/1000,4) -> 213.2851 | J51: IL TRM v5 | K51: 0.2171946029 | L51: 0.68 | M51: IL TRM v5 | N51: =ROUND(((AH51*((1/AK51)-(1/AE51)))/1000)*L51,4) -> 0.1132 | P51: 982 | Q51: EFLHcool, from PY2016 analysis | R51: 18 | S51: SEER | T51: 17 | U51: No PY2016 participants | V51: SEER | W51: 13 | X51: IL TRM v5 | Y51: =ROUND((AN51*AH51*(1/W51-1/T51))/1000,4) | Z51: =ROUND(((AH51*((1/AK51)-(1/AE51)))/1000)*L51,4) | AA51: 2018-04-01 | AE51: 13.26 | AF51: EERee | AG51: IL TRMv5 | AH51: 12000 | AI51: Allows for Capacity input in Tons; converts tons to BTUs | AK51: 11.2 | AL51: EERbase | AM51: IL TRMv5, Early Replacement | AN51: 982 | AO51: EFLHcool | AP51: The EFLH Cooling and Heating hours are based on a EnergyStar study that was normalized (based on HDD and CDD) to Kansas City. This was for both AC and HP units. | AQ51: 1376 | AR51: EFLHheat | AS51: The EFLH Cooling and Heating hours are based on a EnergyStar study that was normalized (based on HDD and CDD) to Kansas City. This was for both AC and HP units.
A52: Heating, Cooling & Weatherization | B52: CAC SEER 17 - Early Replacement | C52: 28.1 | D52: Single Family | E52: HVAC | G52: per ton | H52: 791.34 | I52: =ROUND((AN52*AH52*(1/W52-1/T52))/1000,4) -> 1022.1074 | J52: IL TRM v5 | K52: 1.040842566 | L52: 0.68 | M52: IL TRM v5 | N52: =ROUND(((AH52*((1/AK52)-(1/AE52)))/1000)*L52,4) -> 0.7444 | P52: 982 | Q52: EFLHcool, from PY2016 analysis | R52: 6 | S52: SEER | T52: 17 | U52: No PY2016 participants | V52: SEER | W52: 6.87 | X52: per PY2015 report | Y52: =ROUND((AN52*AH52*(1/W52-1/T52))/1000,4) | Z52: =ROUND(((AH52*((1/AK52)-(1/AE52)))/1000)*L52,4) | AA52: 2018-04-01 | AE52: 13.26 | AF52: EERee | AG52: IL TRMv5 | AH52: 12000 | AI52: Allows for Capacity input in Tons; converts tons to BTUs | AK52: 6.001068314 | AL52: EERbase | AM52: Early Replacement: 2015 Tracking Data Analysis | AN52: 982 | AO52: EFLHcool | AP52: The EFLH Cooling and Heating hours are based on a EnergyStar study that was normalized (based on HDD and CDD) to Kansas City. This was for both AC and HP units. | AQ52: 1376 | AR52: EFLHheat | AS52: The EFLH Cooling and Heating hours are based on a EnergyStar study that was normalized (based on HDD and CDD) to Kansas City. This was for both AC and HP units.
A53: Heating, Cooling & Weatherization | B53: CAC SEER 17 - Early Replacement (future) | C53: 29.1 | D53: Single Family | E53: HVAC | G53: per ton | H53: 422.84 | I53: =ROUND((AT53*AH53*(1/AN53-1/T53))/1000,4) -> 213.2851 | J53: IL TRM v5 | K53: 0.2171946029 | L53: 0.68 | M53: IL TRM v5 | N53: =ROUND(((AH53*((1/AQ53)-(1/AE53)))/1000)*L53,4) -> 0.1132 | O53: IL TRM V5 | P53: 982 | Q53: EFLHcool, from PY2016 analysis (Normalized EnergyStar KC Cooling Hours to IL TRM CDD) | R53: 12 | S53: SEER | T53: 17 | U53: No PY2016 participants | V53: SEER | W53: 10 | X53: SEERexist per IL TRM v5 | Y53: =ROUND((AT53*AH53*(1/AN53-1/T53))/1000,4) | Z53: =ROUND(((AH53*((1/AQ53)-(1/AE53)))/1000)*L53,4) | AA53: 2018-04-01 | AE53: 13.26 | AF53: EERee | AG53: IL TRMv5 | AH53: 12000 | AI53: Allows for Capacity input in Tons; converts tons to BTUs | AK53: 6.001068314 | AL53: EERexist | AM53: Early Replacement: 2015 Tracking Data Analysis | AN53: 13 | AO53: SEERbase | AP53: IL TRM V5 | AQ53: 11.2 | AR53: EERbase | AS53: IL TRM V5 | AT53: 982 | AU53: EFLHcool | AV53: The EFLH Cooling and Heating hours are based on a EnergyStar study that was normalized (based on HDD and CDD) to Kansas City. This was for both AC and HP units. | AW53: 1376 | AX53: EFLHheat | AY53: The EFLH Cooling and Heating hours are based on a EnergyStar study that was normalized (based on HDD and CDD) to Kansas City. This was for both AC and HP units.
A54: Heating, Cooling & Weatherization | B54: CAC Dual-Speed Compressor | C54: 395 | D54: Single Family | E54: HVAC | G54: per ton | H54: =(952*(AH54/12000)+620)/AZ54 -> 1262 | I54: =ROUND((AE54*AH54*(1/AK54-1/AN54))/1000/AZ54,4) -> 265.3846 | J54: IL TRM v6.0 | K54: =ROUND(N54/L54,4) -> 0.2143 | L54: 0.68 | M54: IL TRM v6.0 | N54: =ROUND((AH54*(1/AQ54-1/AT54))/1000*AW54/AZ54,4) -> 0.1457 | O54: IL TRM v6.0 | R54: 18 | S54: SEER | T54: 18 | U54: Daikin DX18TC Series Indoor Model Number: DV29PTCB14A | V54: SEER | W54: 13 | X54: IL TRM v6.0 for baseline unit | Y54: =cellformula(I54) -> =ROUND((AE54*AH54*(1/AK54-1/AN54))/1000/AZ54,4) | Z54: =cellformula(N54) -> =ROUND((AH54*(1/AQ54-1/AT54))/1000*AW54/AZ54,4) | AA54: 2019-04-01 | AE54: 1035 | AF54: FLHcool | AG54: IL TRM v6.0 | AH54: 24000 | AI54: Capacity (Btu/hr) | AJ54: Daikin DX18TC Series Indoor Model Number: DV29PTCB14A | AK54: 13 | AL54: SEERbase | AM54: IL TRM v6.0 | AN54: 18 | AO54: SEERee | AP54: Daikin DX18TC Series Indoor Model Number: DV29PTCB14A | AQ54: 11.2 | AR54: EERbase | AS54: IL TRM v6.0 | AT54: 14 | AU54: EERee | AV54: Daikin DX18TC Series Indoor Model Number: DV29PTCB14A | AW54: 0.68 | AX54: CF | AY54: IL TRM v6.0 | AZ54: =AH54/12000 -> 2 | BA54: Tons | BB54: IL TRM v6.0 | BC54: Daikin DX18TC Series Indoor Model Number: DV29PTCB14A
A55: Heating, Cooling & Weatherization | B55: CAC Variable-Speed Compressor | C55: 396 | D55: Single Family | E55: HVAC | G55: per ton | H55: =(952*(AH55/12000)+620)/AZ55 -> 1278.315789 | I55: =ROUND((AE55*AH55*(1/AK55-1/AN55))/1000/AZ55,4) -> 415.3846 | J55: IL TRM v6.0 | K55: =ROUND(N55/L55,4) -> 0.2143 | L55: 0.68 | M55: IL TRM v6.0 | N55: =ROUND((AH55*(1/AQ55-1/AT55))/1000*AW55/AZ55,4) -> 0.1457 | O55: IL TRM v6.0 | R55: 18 | S55: SEER | T55: 23 | U55: Amana AVXC20 Indoor Model Number: AVPVC24C14A | V55: SEER | W55: 13 | X55: IL TRM v6.0 for baseline unit | Y55: =cellformula(I55) -> =ROUND((AE55*AH55*(1/AK55-1/AN55))/1000/AZ55,4) | Z55: =cellformula(N55) -> =ROUND((AH55*(1/AQ55-1/AT55))/1000*AW55/AZ55,4) | AA55: 2019-04-01 | AE55: 1035 | AF55: FLHcool | AG55: IL TRM v6.0 | AH55: 22800 | AI55: Capacity (Btu/hr) | AJ55: Amana AVXC20 Indoor Model Number: AVPVC24C14A | AK55: 13 | AL55: SEERbase | AM55: IL TRM v6.0 | AN55: 23 | AO55: SEERee | AP55: Amana AVXC20 Indoor Model Number: AVPVC24C14A | AQ55: 11.2 | AR55: EERbase | AS55: IL TRM v6.0 | AT55: 14 | AU55: EERee | AV55: Amana AVXC20 Indoor Model Number: AVPVC24C14A | AW55: 0.68 | AX55: CF | AY55: IL TRM v6.0 | AZ55: =AH55/12000 -> 1.9 | BA55: Tons | BB55: IL TRM v6.0 | BC55: Amana AVXC20 Indoor Model Number: AVPVC24C14A
A56: Heating, Cooling & Weatherization | B56: ASHP SEER 15 | C56: 30.1 | D56: Single Family | E56: HVAC | G56: per ton | H56: 137 | I56: =ROUND((AT56*AE56*(1/W56-1/T56))/1000+(AW56*AE56*(1/AK56-1/AH56)/1000),4) -> 146.0447 | J56: IL TRM v5 | K56: 0.1487216904 | L56: 0.72 | M56: IL TRM v5 | N56: =ROUND((AE56*(1/AQ56-1/AN56)/1000)*L56,4) -> 0.041 | P56: 982 | Q56: EFLHcool, from PY2016 analysis | R56: 18 | S56: SEER | T56: 15 | U56: per PY2016 Metadata | V56: SEER | W56: 14 | X56: IL TRM v5 | Y56: =ROUND((AT56*AE56*(1/W56-1/T56))/1000+(AW56*AE56*(1/AK56-1/AH56)/1000),4) | Z56: =ROUND((AE56*(1/AQ56-1/AN56)/1000)*L56,4) | AA56: 2018-04-01 | AE56: 12000 | AF56: Allows for Capacity input in Tons; converts tons to BTUs | AH56: 8.583333333 | AI56: HSPFee | AJ56: Calculated per PY2016 Metadata | AK56: 8.2 | AL56: HSPFbase | AM56: Illinois TRM | AN56: 12.5 | AO56: EERee | AP56: Calculated per PY2016 Metadata | AQ56: 11.8 | AR56: EERbase | AS56: Illinois TRM | AT56: 982 | AU56: EFLHcool | AV56: The EFLH Cooling and Heating hours are based on a EnergyStar study that was normalized (based on HDD and CDD) to Kansas City. This was for both AC and HP units. | AW56: 1376 | AX56: EFLHheat | AY56: The EFLH Cooling and Heating hours are based on a EnergyStar study that was normalized (based on HDD and CDD) to Kansas City. This was for both AC and HP units.
A57: Heating, Cooling & Weatherization | B57: ASHP SEER 15 - Early Replacement | C57: 31.1 | D57: Single Family | E57: HVAC | G57: per ton | H57: 317 | I57: =ROUND((AT57*AE57*(1/W57-1/T57))/1000+(AW57*AE57*(1/AK57-1/AH57)/1000),4) -> 2078.4959 | J57: IL TRM v5 | K57: 2.116594603 | L57: 0.72 | M57: IL TRM v5 | N57: =ROUND((AE57*(1/AQ57-1/AN57)/1000)*L57,4) -> 0.5979 | P57: 982 | Q57: EFLHcool, from PY2016 analysis | R57: 6 | S57: SEER | T57: 15.17 | U57: per PY2016 Metadata | V57: SEER | W57: 6.87 | X57: per PY2015 report | Y57: =ROUND((AT57*AE57*(1/W57-1/T57))/1000+(AW57*AE57*(1/AK57-1/AH57)/1000),4) | Z57: =ROUND((AE57*(1/AQ57-1/AN57)/1000)*L57,4) | AA57: 2018-04-01 | AE57: 12000 | AF57: Allows for Capacity input in Tons; converts tons to BTUs | AH57: 8.712142857 | AI57: HSPFee | AJ57: Calculated per PY2016 Metadata | AK57: 5.44 | AL57: HSPFbase | AM57: Illinois TRM | AN57: 12.51818182 | AO57: EERee | AP57: Calculated per PY2016 Metadata | AQ57: 6.70764 | AR57: EERbase | AS57: 2015 Tracking Data Analysis for GMO | AT57: 982 | AU57: EFLHcool | AV57: The EFLH Cooling and Heating hours are based on a EnergyStar study that was normalized (based on HDD and CDD) to Kansas City. This was for both AC and HP units. | AW57: 1376 | AX57: EFLHheat | AY57: The EFLH Cooling and Heating hours are based on a EnergyStar study that was normalized (based on HDD and CDD) to Kansas City. This was for both AC and HP units.
A58: Heating, Cooling & Weatherization | B58: ASHP SEER 15 - Early Replacement (future) | C58: 32.1 | D58: Single Family | E58: HVAC | G58: per ton | H58: 317 | I58: =ROUND((BC58*AE58*(1/AT58-1/T58))/1000+(BF58*AE58*(1/AZ58-1/AH58)/1000),4) -> 183.2908 | J58: IL TRM v5 | K58: 0.1866505092 | L58: 0.72 | M58: IL TRM v5 | N58: =ROUND((AE58*(1/AW58-1/AN58)/1000)*L58,4) -> 0.3203 | O58: IL TRM V5 | P58: 982 | Q58: EFLHcool, from PY2016 analysis (Normalized EnergyStar KC Cooling Hours to IL TRM CDD) | R58: 12 | S58: SEER | T58: 15.17 | U58: per PY2016 Metadata | V58: SEER | W58: 9.12 | X58: SEERexist per IL TRM v5 | Y58: =ROUND((BC58*AE58*(1/AT58-1/T58))/1000+(BF58*AE58*(1/AZ58-1/AH58)/1000),4) | Z58: =ROUND((AE58*(1/AW58-1/AN58)/1000)*L58,4) | AA58: 2018-04-01 | AE58: 12000 | AF58: Allows for Capacity input in Tons; converts tons to BTUs | AH58: 8.712142857 | AI58: HSPFee | AJ58: Calculated per PY2016 Metadata | AK58: 5.44 | AL58: HSPFexist | AM58: Illinois TRM | AN58: 12.51818182 | AO58: EERee | AP58: Calculated per PY2016 Metadata | AQ58: 6.70764 | AR58: EERexist | AS58: 2015 Tracking Data Analysis for GMO | AT58: 14 | AU58: SEERbase | AV58: IL TRM V5 | AW58: 8.55 | AX58: EERbase | AY58: IL TRM V5 | AZ58: 8.2 | BA58: HSPFbase | BB58: Illinois TRM | BC58: 982 | BD58: EFLHcool | BE58: The EFLH Cooling and Heating hours are based on a EnergyStar study that was normalized (based on HDD and CDD) to Kansas City. This was for both AC and HP units. | BF58: 1376 | BG58: EFLHheat | BH58: The EFLH Cooling and Heating hours are based on a EnergyStar study that was normalized (based on HDD and CDD) to Kansas City. This was for both AC and HP units.
A59: Heating, Cooling & Weatherization | B59: ASHP SEER 15 - Replace Electric Resistance Heat | C59: 33.1 | D59: Single Family | E59: HVAC | G59: per ton | H59: 137 | I59: =ROUND((AT59*AE59*(1/W59-1/T59))/1000+(AW59*AE59*(1/AK59-1/AH59)/1000),4) -> 217.7936 | J59: IL TRM v5 | K59: 0.2217857434 | L59: 0.72 | M59: IL TRM v5 | N59: =ROUND((AE59*(1/AQ59-1/AN59)/1000)*L59,4) -> 0.0546 | P59: 982 | Q59: EFLHcool, from PY2016 analysis | R59: 18 | S59: SEER | T59: 15.17 | U59: per PY2016 Metadata | V59: SEERbase | W59: 14 | X59: IL TRM v5 | Y59: =ROUND((AT59*AE59*(1/W59-1/T59))/1000+(AW59*AE59*(1/AK59-1/AH59)/1000),4) | Z59: =ROUND((AE59*(1/AQ59-1/AN59)/1000)*L59,4) | AA59: 2018-04-01 | AE59: 12000 | AF59: Allows for Capacity input in Tons; converts tons to BTUs | AH59: 8.873684211 | AI59: HSPFee | AJ59: Calculated per PY2016 Metadata | AK59: 8.2 | AL59: HSPFbase | AM59: Illinois TRM | AN59: 12.75 | AO59: EERee | AP59: Calculated per PY2016 Metadata | AQ59: 11.8 | AR59: EERbase | AS59: Illinois TRM | AT59: 982 | AU59: EFLHcool | AV59: The EFLH Cooling and Heating hours are based on a EnergyStar study that was normalized (based on HDD and CDD) to Kansas City. This was for both AC and HP units. | AW59: 1376 | AX59: EFLHheat | AY59: The EFLH Cooling and Heating hours are based on a EnergyStar study that was normalized (based on HDD and CDD) to Kansas City. This was for both AC and HP units.
A60: Heating, Cooling & Weatherization | B60: ASHP SEER 15 - Replace Electric Resistance Heat - Early Replacement | C60: 314 | D60: Single Family | E60: HVAC | G60: per ton | H60: 1482 | I60: =ROUND((AT60*AE60*(1/W60-1/T60))/1000+(AW60*AE60*(1/AK60-1/AH60)/1000),4) -> 3885.4305 | J60: IL TRM v5 | K60: =I60/P60 -> 3.956650204 | L60: 0.72 | M60: IL TRM v5 | N60: =ROUND((AE60*(1/AQ60-1/AN60)/1000)*L60,4) -> 0.5906 | P60: 982 | Q60: EFLHcool, from PY2016 analysis (Normalized EnergyStar KC Cooling Hours to IL TRM CDD) | R60: 6 | S60: SEER | T60: 15.17 | U60: per PY2016 Metadata | V60: SEER | W60: 6.87 | X60: per PY2015 report | Y60: =cellformula(I60) -> =ROUND((AT60*AE60*(1/W60-1/T60))/1000+(AW60*AE60*(1/AK60-1/AH60)/1000),4) | Z60: =cellformula(N60) -> =ROUND((AE60*(1/AQ60-1/AN60)/1000)*L60,4) | AA60: 2018-04-01 | AE60: 12000 | AF60: Allows for Capacity input in Tons; converts tons to BTUs | AH60: 8.712142857 | AI60: HSPF_ee | AJ60: Calculated per PY2016 Metadata | AK60: 3.41 | AL60: HSPF_exist | AM60: Illinois TRM | AN60: =(-0.02*T60^2)+(1.12*T60) -> 12.387822 | AO60: EER_ee | AP60: IL TRM V5 | AQ60: 6.70764 | AR60: EERbase | AS60: IL TRM V5 | AT60: 982 | AU60: EFLHcool | AV60: The EFLH Cooling and Heating hours are based on a EnergyStar study that was normalized (based on HDD and CDD) to Kansas City. This was for both AC and HP units. | AW60: 1376 | AX60: EFLHheat | AY60: The EFLH Cooling and Heating hours are based on a EnergyStar study that was normalized (based on HDD and CDD) to Kansas City. This was for both AC and HP units.
A61: Heating, Cooling & Weatherization | B61: ASHP SEER 15 - Replace Electric Resistance Heat - Early Replacement (future) | C61: 315 | D61: Single Family | E61: HVAC | G61: per ton | H61: 644.56 | I61: =ROUND((BC61*AE61*(1/AT61-1/T61))/1000+(BF61*AE61*(1/AZ61-1/AH61)/1000),4) -> 183.2908 | J61: IL TRM v5 | K61: 0.1866505092 | L61: 0.72 | M61: IL TRM v5 | N61: =ROUND((AE61*(1/AW61-1/AN61)/1000)*L61,4) -> 0.3131 | P61: 982 | Q61: EFLHcool, from PY2016 analysis (Normalized EnergyStar KC Cooling Hours to IL TRM CDD) | R61: 12 | S61: SEER | T61: 15.17 | U61: per PY2016 Metadata | V61: SEER | X61: SEERexist per IL TRM v5 | Y61: =ROUND((BC61*AE61*(1/AT61-1/T61))/1000+(BF61*AE61*(1/AZ61-1/AH61)/1000),4) | Z61: =ROUND((AE61*(1/AW61-1/AN61)/1000)*L61,4) | AA61: 2018-04-01 | AE61: 12000 | AF61: Allows for Capacity input in Tons; converts tons to BTUs | AH61: 8.712142857 | AI61: HSPF_ee | AJ61: Calculated per PY2016 Metadata | AK61: 8.2 | AL61: HSPF_base | AM61: Illinois TRM | AN61: 12.387822 | AO61: EER_ee | AP61: IL TRM V5 | AR61: EERbase | AS61: IL TRM V5 | AT61: 14 | AU61: SEERbase | AV61: IL TRM V5 | AW61: 8.55 | AX61: EERbase | AY61: IL TRM V5 | AZ61: 8.2 | BA61: HSPFbase | BB61: Arkansas TRM v7 | BC61: 982 | BD61: EFLHcool | BE61: The EFLH Cooling and Heating hours are based on a EnergyStar study that was normalized (based on HDD and CDD) to Kansas City. This was for both AC and HP units. | BF61: 1376 | BG61: EFLHheat | BH61: The EFLH Cooling and Heating hours are based on a EnergyStar study that was normalized (based on HDD and CDD) to Kansas City. This was for both AC and HP units.
A62: Heating, Cooling & Weatherization | B62: ASHP SEER 16 | C62: 34.1 | D62: Single Family | E62: HVAC | G62: per ton | H62: 274 | I62: =ROUND((AT62*AE62*(1/W62-1/T62))/1000+(AW62*AE62*(1/AK62-1/AH62)/1000),4) -> 302.0404 | J62: IL TRM v5 | K62: =I62/P62 -> 0.3075767821 | L62: 0.72 | M62: IL TRM v5 | N62: =ROUND((AE62*(1/AQ62-1/AN62)/1000)*L62,4) -> 0.0644 | P62: 982 | Q62: EFLHcool, from PY2016 analysis | R62: 18 | S62: SEER | T62: 16.04 | U62: per PY2016 Metadata | V62: SEER | W62: 14 | X62: IL TRM v5 | Y62: =ROUND((AT62*AE62*(1/W62-1/T62))/1000+(AW62*AE62*(1/AK62-1/AH62)/1000),4) | Z62: =ROUND((AE62*(1/AQ62-1/AN62)/1000)*L62,4) | AA62: 2018-04-01 | AE62: 12000 | AF62: Allows for Capacity input in Tons; converts tons to BTUs | AH62: 9.079166667 | AI62: HSPFee | AJ62: Calculated per PY2016 Metadata | AK62: 8.2 | AL62: HSPFbase | AM62: Illinois TRM | AN62: 12.9375 | AO62: EERee | AP62: Calculated per PY2016 Metadata | AQ62: 11.8 | AR62: EERbase | AS62: Illinois TRM | AT62: 982 | AU62: EFLHcool | AV62: The EFLH Cooling and Heating hours are based on a EnergyStar study that was normalized (based on HDD and CDD) to Kansas City. This was for both AC and HP units. | AW62: 1376 | AX62: EFLHheat | AY62: The EFLH Cooling and Heating hours are based on a EnergyStar study that was normalized (based on HDD and CDD) to Kansas City. This was for both AC and HP units.
A63: Heating, Cooling & Weatherization | B63: ASHP SEER 16 - Early Replacement | C63: 35.1 | D63: Single Family | E63: HVAC | G63: per ton | H63: 415 | I63: =ROUND((AT63*AE63*(1/W63-1/T63))/1000+(AW63*AE63*(1/AK63-1/AH63)/1000),4) -> 2178.6968 | J63: IL TRM v5 | K63: =I63/P63 -> 2.218632179 | L63: 0.72 | M63: IL TRM v5 | N63: =ROUND((AE63*(1/AQ63-1/AN63)/1000)*L63,4) -> 0.6158 | P63: 982 | Q63: EFLHcool, from PY2016 analysis | R63: 6 | S63: SEER | T63: 16.08 | U63: per PY2016 Metadata | V63: SEER | W63: 6.87 | X63: per PY2015 report | Y63: =ROUND((AT63*AE63*(1/W63-1/T63))/1000+(AW63*AE63*(1/AK63-1/AH63)/1000),4) | Z63: =cellformula(N63) -> =ROUND((AE63*(1/AQ63-1/AN63)/1000)*L63,4) | AA63: 2018-04-01 | AE63: 12000 | AF63: Allows for Capacity input in Tons; converts tons to BTUs | AH63: 8.978571429 | AI63: HSPFee | AJ63: Calculated per PY2016 Metadata | AK63: 5.44 | AL63: HSPFbase | AM63: Illinois TRM | AN63: 12.85185185 | AO63: EERee | AP63: Calculated per PY2016 Metadata | AQ63: 6.70764 | AR63: EERbase | AS63: Calculated per PY2016 Metadata | AT63: 982 | AU63: EFLHcool | AV63: The EFLH Cooling and Heating hours are based on a EnergyStar study that was normalized (based on HDD and CDD) to Kansas City. This was for both AC and HP units. | AW63: 1376 | AX63: EFLHheat | AY63: The EFLH Cooling and Heating hours are based on a EnergyStar study that was normalized (based on HDD and CDD) to Kansas City. This was for both AC and HP units.
A64: Heating, Cooling & Weatherization | B64: ASHP SEER 16 - Early Replacement (future) | C64: 36.1 | D64: Single Family | E64: HVAC | G64: per ton | H64: 415 | I64: =ROUND((BC64*AE64*(1/AT64-1/T64))/1000+(BF64*AE64*(1/AZ64-1/AH64)/1000),4) -> 283.4917 | J64: IL TRM v5 | K64: =I64/P64 -> 0.2886880855 | L64: 0.72 | M64: IL TRM v5 | N64: =ROUND((AE64*(1/AW64-1/AN64)/1000)*L64,4) -> 0.3382 | O64: IL TRM V5 | P64: 982 | Q64: EFLHcool, from PY2016 analysis (Normalized EnergyStar KC Cooling Hours to IL TRM CDD) | R64: 12 | S64: SEER | T64: 16.08 | U64: per PY2016 Metadata | V64: SEER | W64: 9.12 | X64: SEERexist per IL TRM v5 | Y64: =cellformula(I64) -> =ROUND((BC64*AE64*(1/AT64-1/T64))/1000+(BF64*AE64*(1/AZ64-1/AH64)/1000),4) | Z64: =ROUND((AE64*(1/AW64-1/AN64)/1000)*L64,4) | AA64: 2018-04-01 | AE64: 12000 | AF64: Allows for Capacity input in Tons; converts tons to BTUs | AH64: 8.978571429 | AI64: HSPFee | AJ64: Calculated per PY2016 Metadata | AK64: 5.44 | AL64: HSPFexist | AM64: Illinois TRM | AN64: 12.85185185 | AO64: EERee | AP64: Calculated per PY2016 Metadata | AQ64: 6.70764 | AR64: EERexist | AS64: Calculated per PY2016 Metadata | AT64: 14 | AU64: SEERbase | AV64: IL TRM V5 | AW64: 8.55 | AX64: EERbase | AY64: IL TRM V5 | AZ64: 8.2 | BA64: HSPFbase | BB64: Illinois TRM | BC64: 982 | BD64: EFLHcool | BE64: The EFLH Cooling and Heating hours are based on a EnergyStar study that was normalized (based on HDD and CDD) to Kansas City. This was for both AC and HP units. | BF64: 1376 | BG64: EFLHheat | BH64: The EFLH Cooling and Heating hours are based on a EnergyStar study that was normalized (based on HDD and CDD) to Kansas City. This was for both AC and HP units.
A65: Heating, Cooling & Weatherization | B65: ASHP SEER 16 - Replace Electric Resistance Heat | C65: 37.1 | D65: Single Family | E65: HVAC | G65: per ton | H65: 793.1578947 | I65: =ROUND((AT65*AE65*(1/W65-1/T65))/1000+(AW65*AE65*(1/AK65-1/AH65)/1000),4) -> 300.6852 | J65: IL TRM v5 | K65: =I65/P65 -> 0.3061967413 | L65: 0.72 | M65: IL TRM v5 | N65: =ROUND((AE65*(1/AQ65-1/AN65)/1000)*L65,4) -> 0.0478 | P65: 982 | Q65: EFLHcool, from PY2016 analysis | R65: 18 | S65: SEER | T65: 16.11 | U65: per PY2016 Metadata | V65: SEERbase | W65: 14 | X65: IL TRM v5 | Y65: =ROUND((AT65*AE65*(1/W65-1/T65))/1000+(AW65*AE65*(1/AK65-1/AH65)/1000),4) | Z65: =ROUND((AE65*(1/AQ65-1/AN65)/1000)*L65,4) | AA65: 2018-04-01 | AE65: 12000 | AF65: Allows for Capacity input in Tons; converts tons to BTUs | AH65: 9.056521739 | AI65: HSPFee | AJ65: Calculated per PY2016 Metadata | AK65: 8.2 | AL65: HSPFbase | AM65: Illinois TRM | AN65: 12.625 | AO65: EERee | AP65: Calculated per PY2016 Metadata | AQ65: 11.8 | AR65: EERbase | AS65: Illinois TRM | AT65: 982 | AU65: EFLHcool | AV65: The EFLH Cooling and Heating hours are based on a EnergyStar study that was normalized (based on HDD and CDD) to Kansas City. This was for both AC and HP units. | AW65: 1376 | AX65: EFLHheat | AY65: The EFLH Cooling and Heating hours are based on a EnergyStar study that was normalized (based on HDD and CDD) to Kansas City. This was for both AC and HP units.
A66: Heating, Cooling & Weatherization | B66: ASHP SEER 16 - Replace Electric Resistance Heat - Early Replacement | C66: 316 | D66: Single Family | E66: HVAC | G66: per ton | H66: 1527 | I66: =ROUND((AT66*AE66*(1/W66-1/T66))/1000+(AW66*AE66*(1/AK66-1/AH66)/1000),4) -> 3985.6314 | J66: IL TRM v5 | K66: =I66/P66 -> 4.05868778 | L66: 0.72 | M66: IL TRM v5 | N66: =ROUND((AE66*(1/AQ66-1/AN66)/1000)*L66,4) -> 0.6151 | P66: 982 | Q66: EFLHcool, from PY2016 analysis (Normalized EnergyStar KC Cooling Hours to IL TRM CDD) | R66: 6 | S66: SEER | T66: 16.08 | U66: per PY2016 Metadata | V66: SEER | W66: 6.87 | X66: per PY2015 report | Y66: =cellformula(I66) -> =ROUND((AT66*AE66*(1/W66-1/T66))/1000+(AW66*AE66*(1/AK66-1/AH66)/1000),4) | Z66: =cellformula(N66) -> =ROUND((AE66*(1/AQ66-1/AN66)/1000)*L66,4) | AA66: 2018-04-01 | AE66: 12000 | AF66: Allows for Capacity input in Tons; converts tons to BTUs | AH66: 8.978571429 | AI66: HSPF_ee | AJ66: Calculated per PY2016 Metadata | AK66: 3.41 | AL66: HSPF_exist | AM66: Illinois TRM | AN66: =(-0.02*T66^2)+(1.12*T66) -> 12.838272 | AO66: EER_ee | AP66: IL TRM V5 | AQ66: 6.70764 | AR66: EERbase | AS66: IL TRM V5 | AT66: 982 | AU66: EFLHcool | AV66: The EFLH Cooling and Heating hours are based on a EnergyStar study that was normalized (based on HDD and CDD) to Kansas City. This was for both AC and HP units. | AW66: 1376 | AX66: EFLHheat | AY66: The EFLH Cooling and Heating hours are based on a EnergyStar study that was normalized (based on HDD and CDD) to Kansas City. This was for both AC and HP units.
A67: Heating, Cooling & Weatherization | B67: ASHP SEER 16 - Replace Electric Resistance Heat - Early Replacement (future) | C67: 317 | D67: Single Family | E67: HVAC | G67: per ton | H67: 644.56 | I67: =ROUND((BC67*AE67*(1/AT67-1/T67))/1000+(BF67*AE67*(1/AZ67-1/AH67)/1000),4) -> 283.4917 | J67: IL TRM v5 | K67: 0.2886880855 | L67: 0.72 | M67: IL TRM v5 | N67: =ROUND((AE67*(1/AW67-1/AN67)/1000)*L67,4) -> 0.3375 | P67: 982 | Q67: EFLHcool, from PY2016 analysis (Normalized EnergyStar KC Cooling Hours to IL TRM CDD) | R67: 12 | S67: SEER | T67: 16.08 | U67: per PY2016 Metadata | V67: SEER | X67: SEERexist per IL TRM v5 | Y67: =ROUND((BC67*AE67*(1/AT67-1/T67))/1000+(BF67*AE67*(1/AZ67-1/AH67)/1000),4) | Z67: =ROUND((AE67*(1/AW67-1/AN67)/1000)*L67,4) | AA67: 2018-04-01 | AE67: 12000 | AF67: Allows for Capacity input in Tons; converts tons to BTUs | AH67: 8.978571429 | AI67: HSPF_ee | AJ67: Calculated per PY2016 Metadata | AK67: 8.2 | AL67: HSPF_base | AM67: Illinois TRM | AN67: 12.838272 | AO67: EER_ee | AP67: IL TRM V5 | AR67: EERbase | AS67: IL TRM V5 | AT67: 14 | AU67: SEERbase | AV67: IL TRM V5 | AW67: 8.55 | AX67: EERbase | AY67: IL TRM V5 | AZ67: 8.2 | BA67: HSPFbase | BB67: Arkansas TRM v7 | BC67: 982 | BD67: EFLHcool | BE67: The EFLH Cooling and Heating hours are based on a EnergyStar study that was normalized (based on HDD and CDD) to Kansas City. This was for both AC and HP units. | BF67: 1376 | BG67: EFLHheat | BH67: The EFLH Cooling and Heating hours are based on a EnergyStar study that was normalized (based on HDD and CDD) to Kansas City. This was for both AC and HP units.
A68: Heating, Cooling & Weatherization | B68: ASHP SEER 17 | C68: 38.1 | D68: Single Family | E68: HVAC | G68: per ton | H68: 411 | I68: =ROUND((AT68*AE68*(1/W68-1/T68))/1000+(AW68*AE68*(1/AK68-1/AH68)/1000),4) -> 357.7369 | J68: IL TRM v5 | K68: =I68/P68 -> 0.3642941955 | L68: 0.72 | M68: IL TRM v5 | N68: =ROUND((AE68*(1/AQ68-1/AN68)/1000)*L68,4) -> 0.041 | P68: 982 | Q68: EFLHcool, from PY2016 analysis | R68: 18 | S68: SEER | T68: 17.25 | U68: per PY2016 Metadata | V68: SEER | W68: 14 | X68: IL TRM v5 | Y68: =ROUND((AT68*AE68*(1/W68-1/T68))/1000+(AW68*AE68*(1/AK68-1/AH68)/1000),4) | Z68: =ROUND((AE68*(1/AQ68-1/AN68)/1000)*L68,4) | AA68: 2018-04-01 | AE68: 12000 | AF68: Allows for Capacity input in Tons; converts tons to BTUs | AH68: 9.1 | AI68: HSPFee | AJ68: Calculated per PY2016 Metadata | AK68: 8.2 | AL68: HSPFbase | AM68: Illinois TRM | AN68: 12.5 | AO68: EERee | AP68: Calculated per PY2016 Metadata | AQ68: 11.8 | AR68: EERbase | AS68: Illinois TRM | AT68: 982 | AU68: EFLHcool | AV68: The EFLH Cooling and Heating hours are based on a EnergyStar study that was normalized (based on HDD and CDD) to Kansas City. This was for both AC and HP units. | AW68: 1376 | AX68: EFLHheat | AY68: The EFLH Cooling and Heating hours are based on a EnergyStar study that was normalized (based on HDD and CDD) to Kansas City. This was for both AC and HP units.
A69: Heating, Cooling & Weatherization | B69: ASHP SEER 17 - Early Replacement | C69: 39.1 | D69: Single Family | E69: HVAC | G69: per ton | H69: 689 | I69: =ROUND((AT69*AE69*(1/W69-1/T69))/1000+(AW69*AE69*(1/AK69-1/AH69)/1000),4) -> 2380.9608 | J69: IL TRM v5 | K69: =I69/P69 -> 2.424603666 | L69: 0.72 | M69: IL TRM v5 | N69: =ROUND((AE69*(1/AQ69-1/AN69)/1000)*L69,4) -> 0.7506 | P69: 982 | Q69: EFLHcool, from PY2016 analysis | R69: 6 | S69: SEER | T69: 18.34 | U69: per PY2016 Metadata | V69: SEER | W69: 6.87 | X69: per PY2015 report | Y69: =ROUND((AT69*AE69*(1/W69-1/T69))/1000+(AW69*AE69*(1/AK69-1/AH69)/1000),4) | Z69: =ROUND((AE69*(1/AQ69-1/AN69)/1000)*L69,4) | AA69: 2018-04-01 | AE69: 12000 | AF69: Allows for Capacity input in Tons; converts tons to BTUs | AH69: 9.560606061 | AI69: HSPFee | AJ69: Calculated per PY2016 Metadata | AK69: 5.44 | AL69: HSPFbase | AM69: Illinois TRM | AN69: 16.075 | AO69: EERee | AP69: Calculated per PY2016 Metadata | AQ69: 6.70764 | AR69: EERbase | AS69: Calculated per PY2016 Metadata | AT69: 982 | AU69: EFLHcool | AV69: The EFLH Cooling and Heating hours are based on a EnergyStar study that was normalized (based on HDD and CDD) to Kansas City. This was for both AC and HP units. | AW69: 1376 | AX69: EFLHheat | AY69: The EFLH Cooling and Heating hours are based on a EnergyStar study that was normalized (based on HDD and CDD) to Kansas City. This was for both AC and HP units.
A70: Heating, Cooling & Weatherization | B70: ASHP SEER 17 - Early Replacement (future) | C70: 40.1 | D70: Single Family | E70: HVAC | G70: per ton | H70: 689 | I70: =ROUND((BC70*AE70*(1/AT70-1/T70))/1000+(BF70*AE70*(1/AZ70-1/AH70)/1000),4) -> 485.7557 | J70: IL TRM v5 | K70: =I70/P70 -> 0.4946595723 | L70: 0.72 | M70: IL TRM v5 | N70: =ROUND((AE70*(1/AW70-1/AN70)/1000)*L70,4) -> 0.473 | O70: IL TRM V5 | P70: 982 | Q70: EFLHcool, from PY2016 analysis (Normalized EnergyStar KC Cooling Hours to IL TRM CDD) | R70: 12 | S70: SEER | T70: 18.34 | U70: per PY2016 Metadata | V70: SEER | W70: 9.12 | X70: SEERexist per IL TRM v5 | Y70: =ROUND((BC70*AE70*(1/AT70-1/T70))/1000+(BF70*AE70*(1/AZ70-1/AH70)/1000),4) | Z70: =ROUND((AE70*(1/AW70-1/AN70)/1000)*L70,4) | AA70: 2018-04-01 | AE70: 12000 | AF70: Allows for Capacity input in Tons; converts tons to BTUs | AH70: 9.560606061 | AI70: HSPFee | AJ70: Calculated per PY2016 Metadata | AK70: 5.44 | AL70: HSPFexist | AM70: Illinois TRM | AN70: 16.075 | AO70: EERee | AP70: Calculated per PY2016 Metadata | AQ70: 6.70764 | AR70: EERexist | AS70: Calculated per PY2016 Metadata | AT70: 14 | AU70: SEERbase | AV70: IL TRM V5 | AW70: 8.55 | AX70: EERbase | AY70: IL TRM V5 | AZ70: 8.2 | BA70: HSPFbase | BB70: Illinois TRM | BC70: 982 | BD70: EFLHcool | BE70: The EFLH Cooling and Heating hours are based on a EnergyStar study that was normalized (based on HDD and CDD) to Kansas City. This was for both AC and HP units. | BF70: 1376 | BG70: EFLHheat | BH70: The EFLH Cooling and Heating hours are based on a EnergyStar study that was normalized (based on HDD and CDD) to Kansas City. This was for both AC and HP units.
A71: Heating, Cooling & Weatherization | B71: ASHP SEER 17 - Replace Electric Resistance Heat | C71: 41.1 | D71: Single Family | E71: HVAC | G71: per ton | H71: 1307.727273 | I71: =ROUND((AT71*AE71*(1/W71-1/T71))/1000+(AW71*AE71*(1/AK71-1/AH71)/1000),4) -> 495.4849 | J71: IL TRM v5 | K71: =I71/P71 -> 0.5045671079 | L71: 0.72 | M71: IL TRM v5 | N71: =ROUND((AE71*(1/AQ71-1/AN71)/1000)*L71,4) -> 0.1819 | P71: 982 | Q71: EFLHcool, from PY2016 analysis | R71: 18 | S71: SEER | T71: 18.27 | U71: per PY2016 Metadata | V71: SEERbase | W71: 14 | X71: IL TRM v5 | Y71: =ROUND((AT71*AE71*(1/W71-1/T71))/1000+(AW71*AE71*(1/AK71-1/AH71)/1000),4) | Z71: =ROUND((AE71*(1/AQ71-1/AN71)/1000)*L71,4) | AA71: 2018-04-01 | AE71: 12000 | AF71: Allows for Capacity input in Tons; converts tons to BTUs | AH71: 9.628571429 | AI71: HSPFee | AJ71: Calculated per PY2016 Metadata | AK71: 8.2 | AL71: HSPFbase | AM71: Illinois TRM | AN71: 15.7 | AO71: EERee | AP71: Calculated per PY2016 Metadata | AQ71: 11.8 | AR71: EERbase | AS71: Illinois TRM | AT71: 982 | AU71: EFLHcool | AV71: The EFLH Cooling and Heating hours are based on a EnergyStar study that was normalized (based on HDD and CDD) to Kansas City. This was for both AC and HP units. | AW71: 1376 | AX71: EFLHheat | AY71: The EFLH Cooling and Heating hours are based on a EnergyStar study that was normalized (based on HDD and CDD) to Kansas City. This was for both AC and HP units.
A72: Heating, Cooling & Weatherization | B72: ASHP SEER 17 - Replace Electric Resistance Heat - Early Replacement | C72: 318 | D72: Single Family | E72: HVAC | G72: per ton | H72: 1622.333333 | I72: =ROUND((AT72*AE72*(1/W72-1/T72))/1000+(AW72*AE72*(1/AK72-1/AH72)/1000),4) -> 4187.8954 | J72: IL TRM v5 | K72: =I72/P72 -> 4.264659267 | L72: 0.72 | M72: IL TRM v5 | N72: =ROUND((AE72*(1/AQ72-1/AN72)/1000)*L72,4) -> 0.6626 | P72: 982 | Q72: EFLHcool, from PY2016 analysis (Normalized EnergyStar KC Cooling Hours to IL TRM CDD) | R72: 6 | S72: SEER | T72: 18.34 | U72: per PY2016 Metadata | V72: SEER | W72: 6.87 | X72: per PY2015 report | Y72: =cellformula(I72) -> =ROUND((AT72*AE72*(1/W72-1/T72))/1000+(AW72*AE72*(1/AK72-1/AH72)/1000),4) | Z72: =cellformula(N72) -> =ROUND((AE72*(1/AQ72-1/AN72)/1000)*L72,4) | AA72: 2018-04-01 | AE72: 12000 | AF72: Allows for Capacity input in Tons; converts tons to BTUs | AH72: 9.560606061 | AI72: HSPF_ee | AJ72: Calculated per PY2016 Metadata | AK72: 3.41 | AL72: HSPF_exist | AM72: Illinois TRM | AN72: =(-0.02*T72^2)+(1.12*T72) -> 13.813688 | AO72: EER_ee | AP72: IL TRM V5 | AQ72: 6.70764 | AR72: EERbase | AS72: IL TRM V5 | AT72: 982 | AU72: EFLHcool | AV72: The EFLH Cooling and Heating hours are based on a EnergyStar study that was normalized (based on HDD and CDD) to Kansas City. This was for both AC and HP units. | AW72: 1376 | AX72: EFLHheat | AY72: The EFLH Cooling and Heating hours are based on a EnergyStar study that was normalized (based on HDD and CDD) to Kansas City. This was for both AC and HP units.
A73: Heating, Cooling & Weatherization | B73: ASHP SEER 17 - Replace Electric Resistance Heat - Early Replacement (future) | C73: 319 | D73: Single Family | E73: HVAC | G73: per ton | H73: 644.56 | I73: =ROUND((BC73*AE73*(1/AT73-1/T73))/1000+(BF73*AE73*(1/AZ73-1/AH73)/1000),4) -> 485.7557 | J73: IL TRM v5 | K73: 0.4946595723 | L73: 0.72 | M73: IL TRM v5 | N73: =ROUND((AE73*(1/AW73-1/AN73)/1000)*L73,4) -> 0.3851 | P73: 982 | Q73: EFLHcool, from PY2016 analysis (Normalized EnergyStar KC Cooling Hours to IL TRM CDD) | R73: 12 | S73: SEER | T73: 18.34 | U73: per PY2016 Metadata | V73: SEER | X73: SEERexist per IL TRM v5 | Y73: =ROUND((BC73*AE73*(1/AT73-1/T73))/1000+(BF73*AE73*(1/AZ73-1/AH73)/1000),4) | Z73: =ROUND((AE73*(1/AW73-1/AN73)/1000)*L73,4) | AA73: 2018-04-01 | AE73: 12000 | AF73: Allows for Capacity input in Tons; converts tons to BTUs | AH73: 9.560606061 | AI73: HSPF_ee | AJ73: Calculated per PY2016 Metadata | AK73: 8.2 | AL73: HSPF_base | AM73: Illinois TRM | AN73: 13.813688 | AO73: EER_ee | AP73: IL TRM V5 | AR73: EERbase | AS73: IL TRM V5 | AT73: 14 | AU73: SEERbase | AV73: IL TRM V5 | AW73: 8.55 | AX73: EERbase | AY73: IL TRM V5 | AZ73: 8.2 | BA73: HSPFbase | BB73: Arkansas TRM v7 | BC73: 982 | BD73: EFLHcool | BE73: The EFLH Cooling and Heating hours are based on a EnergyStar study that was normalized (based on HDD and CDD) to Kansas City. This was for both AC and HP units. | BF73: 1376 | BG73: EFLHheat | BH73: The EFLH Cooling and Heating hours are based on a EnergyStar study that was normalized (based on HDD and CDD) to Kansas City. This was for both AC and HP units.
A74: Heating, Cooling & Weatherization | B74: ASHP Dual-Speed Compressor | C74: 397 | D74: Single Family | E74: HVAC | G74: per ton | H74: =(1381*(AH74/12000)+438)/BL74 -> 1603.711864 | I74: =ROUND(((AE74*AH74*(1/AK74-1/AN74))/1000/BL74)+((AQ74*AT74*(1/AW74-1/AZ74))/1000/BO74),4) -> 275.5758 | J74: IL TRM v6.0 | K74: =N74/L74 -> 0.09388888889 | L74: 0.72 | M74: IL TRM v6.0 | N74: =ROUND((AH74*(1/BC74-1/BF74))/1000*BI74/BL74,4) -> 0.0676 | O74: IL TRM v6.0 | R74: 18 | S74: SEER | T74: 16 | U74: Goodman GSZC16 Indoor Units: CA*F3137*6A*+MBVC1200**-1A*+TX, G*VC80603B*C* | V74: SEER | W74: 14 | X74: IL TRM v6.0 | Y74: =cellformula(I74) -> =ROUND(((AE74*AH74*(1/AK74-1/AN74))/1000/BL74)+((AQ74*AT74*(1/AW74-1/AZ74))/1000/BO74),4) | Z74: =cellformula(N74) -> =ROUND((AH74*(1/BC74-1/BF74))/1000*BI74/BL74,4) | AA74: 2019-04-01 | AE74: 1035 | AF74: FLH_cooling | AG74: IL TRM v6.0 | AH74: 23600 | AI74: Capacity_cooling | AJ74: Goodman GSZC16 Indoor Units: CA*F3137*6A*+MBVC1200**-1A*+TX, G*VC80603B*C* | AK74: 14 | AL74: SEER_base | AM74: IL TRM v6.0 | AN74: 16 | AO74: SEER_ee | AP74: Goodman GSZC16 Indoor Units: CA*F3137*6A*+MBVC1200**-1A*+TX, G*VC80603B*C* | AQ74: 1266 | AR74: FLH_heat | AS74: IL TRM v6.0 | AT74: 22800 | AU74: Capacity_heating | AV74: Goodman GSZC16 Indoor Units: CA*F3137*6A*+MBVC1200**-1A*+TX, G*VC80603B*C* | AW74: 8.2 | AX74: HSPF_base | AY74: IL TRM v6.0 | AZ74: 9 | BA74: HSPF_ee | BB74: Goodman GSZC16 Indoor Units: CA*F3137*6A*+MBVC1200**-1A*+TX, G*VC80603B*C* | BC74: 11.8 | BD74: EER_base | BE74: IL TRM v6.0 | BF74: 13 | BG74: EER_ee | BH74: Goodman GSZC16 Indoor Units: CA*F3137*6A*+MBVC1200**-1A*+TX, G*VC80603B*C* | BI74: 0.72 | BJ74: CF | BK74: IL TRM v6.0 | BL74: =AH74/12000 -> 1.966666667 | BM74: Cooling Capacity Tons | BN74: Goodman GSZC16 Indoor Units: CA*F3137*6A*+MBVC1200**-1A*+TX, G*VC80603B*C* | BO74: =AT74/12000 -> 1.9 | BP74: Heating Capacity Tons | BQ74: Goodman GSZC16 Indoor Units: CA*F3137*6A*+MBVC1200**-1A*+TX, G*VC80603B*C*
A75: Heating, Cooling & Weatherization | B75: ASHP Variable-Speed Compressor | C75: 398 | D75: Single Family | E75: HVAC | G75: per ton | H75: =(1381*(AH75/12000)+724)/BL75 -> 1752.282051 | I75: =ROUND(((AE75*AH75*(1/AK75-1/AN75))/1000/BL75)+((AQ75*AT75*(1/AW75-1/AZ75))/1000/BO75),4) -> 629.1972 | J75: IL TRM v6.0 | K75: =N75/L75 -> 0.09388888889 | L75: 0.72 | M75: IL TRM v6.0 | N75: =ROUND((AH75*(1/BC75-1/BF75))/1000*BI75/BL75,4) -> 0.0676 | O75: IL TRM v6.0 | R75: 18 | S75: SEER | T75: 21 | U75: Daikin DZ20VC Inddor Units: CA*F3642*6D*+MBVC1200**-1A*+TXV | V75: SEER | W75: 14 | X75: IL TRM v6.0 | Y75: =cellformula(I75) -> =ROUND(((AE75*AH75*(1/AK75-1/AN75))/1000/BL75)+((AQ75*AT75*(1/AW75-1/AZ75))/1000/BO75),4) | Z75: =cellformula(N75) -> =ROUND((AH75*(1/BC75-1/BF75))/1000*BI75/BL75,4) | AA75: 2019-04-01 | AE75: 1035 | AF75: FLH_cooling | AG75: IL TRM v6.0 | AH75: 23400 | AI75: Capacity_cooling | AJ75: Daikin DZ20VC Inddor Units: CA*F3642*6D*+MBVC1200**-1A*+TXV | AK75: 14 | AL75: SEER_base | AM75: IL TRM v6.0 | AN75: 21 | AO75: SEER_ee | AP75: Daikin DZ20VC Inddor Units: CA*F3642*6D*+MBVC1200**-1A*+TXV | AQ75: 1266 | AR75: FLH_heat | AS75: IL TRM v6.0 | AT75: 23600 | AU75: Capacity_heating | AV75: Daikin DZ20VC Inddor Units: CA*F3642*6D*+MBVC1200**-1A*+TXV | AW75: 8.2 | AX75: HSPF_base | AY75: IL TRM v6.0 | AZ75: 10 | BA75: HSPF_ee | BB75: Daikin DZ20VC Inddor Units: CA*F3642*6D*+MBVC1200**-1A*+TXV | BC75: 11.8 | BD75: EER_base | BE75: IL TRM v6.0 | BF75: 13 | BG75: EER_ee | BH75: Daikin DZ20VC Inddor Units: CA*F3642*6D*+MBVC1200**-1A*+TXV | BI75: 0.72 | BJ75: CF | BK75: IL TRM v6.0 | BL75: =AH75/12000 -> 1.95 | BM75: Cooling Capacity Tons | BN75: Daikin DZ20VC Inddor Units: CA*F3642*6D*+MBVC1200**-1A*+TXV | BO75: =AT75/12000 -> 1.966666667 | BP75: Heating Capacity Tons | BQ75: Daikin DZ20VC Inddor Units: CA*F3642*6D*+MBVC1200**-1A*+TXV
A76: Heating, Cooling & Weatherization | B76: Furnace Filter Alarm | C76: 234.1 | D76: Single Family | E76: HVAC | F76: Kits | G76: per unit | H76: 2.8 | I76: =ROUND((AE76*AQ76*AH76*AK76)+(AE76*AN76*AH76*AK76),4) -> 83.8269 | J76: PA TRM | K76: =I76/P76 -> 0.05077341005 | L76: 0.647 | M76: PA TRM | N76: =ROUND(((AE76*AN76*AH76*AK76)/AN76)*L76,4) -> 0.023 | O76: PA TRM | P76: 1651 | Q76: PA TRM | R76: 14 | S76: Furnace Filter Alarm | V76: No Filter | Y76: =cellformula(I76) -> =ROUND((AE76*AQ76*AH76*AK76)+(AE76*AN76*AH76*AK76),4) | Z76: =cellformula(N76) -> =ROUND(((AE76*AN76*AH76*AK76)/AN76)*L76,4) | AA76: 2018-04-01 | AE76: 0.5 | AF76: Average motor full load electric demand | AG76: PA TRM | AH76: 0.15 | AI76: Efficiency Improvement | AJ76: PA TRM | AK76: 0.474 | AL76: Installation Rate | AM76: PA TRM | AN76: 982 | AO76: EFLHcool | AP76: The EFLH Cooling and Heating hours are based on a EnergyStar study that was normalized (based on HDD and CDD) to Kansas City. This was for both AC and HP units. | AQ76: 1376 | AR76: EFLHheat | AS76: The EFLH Cooling and Heating hours are based on a EnergyStar study that was normalized (based on HDD and CDD) to Kansas City. This was for both AC and HP units.
A77: Heating, Cooling & Weatherization | B77: Indoor Coil Cleaning_SF:CAC | C77: 262 | D77: Single Family | E77: HVAC | G77: per measure | H77: 63 | I77: =ROUND((AT77*AK77*(1/AN77))/1000*AE77,4) -> 58.92 | J77: IL TRM v5 | L77: 0.68 | N77: =ROUND(AK77*(1/AQ77)/1000*AH77*L77,4) -> 0.0177 | O77: IL TRM v5 | R77: 5 | S77: Sub-measure of HVAC Maintenance and Tune-up | V77: kWh, kW | Y77: =ROUND((AT77*AK77*(1/AN77))/1000*AE77,4) | Z77: =ROUND(AK77*(1/AQ77)/1000*AH77*L77,4) | AA77: 2018-04-01 | AE77: 0.05 | AF77: MFe | AG77: IL TRM v5 | AH77: 0.02 | AI77: MFd | AJ77: IL TRM v5 | AK77: 12000 | AL77: Allows for Capacity input in Tons; converts tons to BTUs | AN77: 10 | AO77: SEERCAC | AP77: IL TRM v5 | AQ77: 9.2 | AR77: EER | AS77: IL TRM v5 | AT77: 982 | AU77: EFLHcool | AV77: The EFLH Cooling and Heating hours are based on a EnergyStar study that was normalized (based on HDD and CDD) to Kansas City. This was for both AC and HP units. | AW77: 1376 | AX77: EFLHheat | AY77: The EFLH Cooling and Heating hours are based on a EnergyStar study that was normalized (based on HDD and CDD) to Kansas City. This was for both AC and HP units.
A78: Heating, Cooling & Weatherization | B78: Indoor Coil Cleaning_SF:ASHP | C78: 263 | D78: Single Family | E78: HVAC | G78: per measure | H78: 63 | I78: =ROUND((AW78*AK78*(1/AN78))/1000*AE78+(AZ78*AK78*(1/AT78))/1000*AE78,4) -> 180.3318 | J78: IL TRM v5 | L78: 0.72 | N78: 0.0188 | O78: IL TRM v5 | R78: 5 | S78: Sub-measure of HVAC Maintenance and Tune-up | V78: kWh, kW | Y78: =ROUND((AW78*AK78*(1/AN78))/1000*AE78+(AZ78*AK78*(1/AT78))/1000*AE78,4) | Z78: =ROUND(AK78*(1/AQ78)/1000*AH78*L78,4) | AA78: 2018-04-01 | AE78: 0.05 | AF78: MFe | AG78: IL TRM v5 | AH78: 0.02 | AI78: MFd | AJ78: IL TRM v5 | AK78: 12000 | AL78: Allows for Capacity input in Tons; converts tons to BTUs | AN78: 10 | AO78: SEERASHP | AP78: IL TRM v5 | AQ78: 9.2 | AR78: EER | AS78: IL TRM v5 | AT78: 6.8 | AU78: HSPFASHP | AV78: IL TRM v5 | AW78: 982 | AX78: EFLHcool | AZ78: 1376 | BA78: EFLHheat | BB78: The EFLH Cooling and Heating hours are based on a EnergyStar study that was normalized (based on HDD and CDD) to Kansas City. This was for both AC and HP units.
A79: Heating, Cooling & Weatherization | B79: Outdoor Coil Cleaning_SF:CAC | C79: 264 | D79: Single Family | E79: HVAC | G79: per measure | H79: 31 | I79: =ROUND((AT79*AK79*(1/AN79))/1000*AE79,4) -> 58.92 | J79: IL TRM v5 | L79: 0.68 | N79: 0.0177 | O79: IL TRM v5 | R79: 5 | S79: Sub-measure of HVAC Maintenance and Tune-up | V79: kWh, kW | Y79: =ROUND((AT79*AK79*(1/AN79))/1000*AE79,4) | Z79: =ROUND(AK79*(1/AQ79)/1000*AH79*L79,4) | AA79: 2018-04-01 | AE79: 0.05 | AF79: MFe | AG79: IL TRM v5 | AH79: 0.02 | AI79: MFd | AJ79: IL TRM v5 | AK79: 12000 | AL79: Allows for Capacity input in Tons; converts tons to BTUs | AN79: 10 | AO79: SEERCAC | AP79: IL TRM v5 | AQ79: 9.2 | AR79: EER | AS79: IL TRM v5 | AT79: 982 | AU79: EFLHcool | AV79: The EFLH Cooling and Heating hours are based on a EnergyStar study that was normalized (based on HDD and CDD) to Kansas City. This was for both AC and HP units. | AW79: 1376 | AX79: EFLHheat | AY79: The EFLH Cooling and Heating hours are based on a EnergyStar study that was normalized (based on HDD and CDD) to Kansas City. This was for both AC and HP units.
A80: Heating, Cooling & Weatherization | B80: Outdoor Coil Cleaning_SF:ASHP | C80: 265 | D80: Single Family | E80: HVAC | G80: per measure | H80: 31 | I80: =ROUND((AW80*AK80*(1/AN80))/1000*AE80+(AZ80*AK80*(1/AT80))/1000*AE80,4) -> 180.3318 | J80: IL TRM v5 | L80: 0.72 | N80: 0.0188 | O80: IL TRM v5 | R80: 5 | S80: Sub-measure of HVAC Maintenance and Tune-up | V80: kWh, kW | Y80: =ROUND((AW80*AK80*(1/AN80))/1000*AE80+(AZ80*AK80*(1/AT80))/1000*AE80,4) | Z80: =ROUND(AK80*(1/AQ80)/1000*AH80*L80,4) | AA80: 2018-04-01 | AE80: 0.05 | AF80: MFe | AG80: IL TRM v5 | AH80: 0.02 | AI80: MFd | AJ80: IL TRM v5 | AK80: 12000 | AL80: Allows for Capacity input in Tons; converts tons to BTUs | AN80: 10 | AO80: SEERASHP | AP80: IL TRM v5 | AQ80: 9.2 | AR80: EER | AS80: IL TRM v5 | AT80: 6.8 | AU80: HSPFASHP | AV80: IL TRM v5 | AW80: 982 | AX80: EFLHcool | AZ80: 1376 | BA80: EFLHheat | BB80: The EFLH Cooling and Heating hours are based on a EnergyStar study that was normalized (based on HDD and CDD) to Kansas City. This was for both AC and HP units.
A81: Heating, Cooling & Weatherization | B81: Refrigerant Charge Adjustment (RCA)_SF: CAC | C81: 266 | D81: Single Family | E81: HVAC | G81: per measure | H81: 127 | I81: =ROUND((AT81*AK81*(1/AN81))/1000*AE81,4) -> 58.92 | J81: IL TRM v5 | L81: 0.68 | N81: 0.0177 | O81: IL TRM v5 | R81: 5 | S81: Sub-measure of HVAC Maintenance and Tune-up | V81: kWh, kW | Y81: =ROUND((AT81*AK81*(1/AN81))/1000*AE81,4) | Z81: =ROUND(AK81*(1/AQ81)/1000*AH81*L81,4) | AA81: 2018-04-01 | AE81: 0.05 | AF81: MFe | AG81: IL TRM v5 | AH81: 0.02 | AI81: MFd | AJ81: IL TRM v5 | AK81: 12000 | AL81: Allows for Capacity input in Tons; converts tons to BTUs | AN81: 10 | AO81: SEERCAC | AP81: IL TRM v5 | AQ81: 9.2 | AR81: EER | AS81: IL TRM v5 | AT81: 982 | AU81: EFLHcool | AV81: The EFLH Cooling and Heating hours are based on a EnergyStar study that was normalized (based on HDD and CDD) to Kansas City. This was for both AC and HP units. | AW81: 1376 | AX81: EFLHheat | AY81: The EFLH Cooling and Heating hours are based on a EnergyStar study that was normalized (based on HDD and CDD) to Kansas City. This was for both AC and HP units.
A82: Heating, Cooling & Weatherization | B82: Refrigerant Charge Adjustment (RCA)_SF: ASHP | C82: 267 | D82: Single Family | E82: HVAC | G82: per measure | H82: 127 | I82: =ROUND((AW82*AK82*(1/AN82))/1000*AE82+(AZ82*AK82*(1/AT82))/1000*AE82,4) -> 180.3318 | J82: IL TRM v5 | L82: 0.72 | N82: 0.0188 | O82: IL TRM v5 | R82: 5 | S82: Sub-measure of HVAC Maintenance and Tune-up | V82: kWh, kW | Y82: =ROUND((AW82*AK82*(1/AN82))/1000*AE82+(AZ82*AK82*(1/AT82))/1000*AE82,4) | Z82: =ROUND(AK82*(1/AQ82)/1000*AH82*L82,4) | AA82: 2018-04-01 | AE82: 0.05 | AF82: MFe | AG82: IL TRM v5 | AH82: 0.02 | AI82: MFd | AJ82: IL TRM v5 | AK82: 12000 | AL82: Allows for Capacity input in Tons; converts tons to BTUs | AN82: 10 | AO82: SEERASHP | AP82: IL TRM v5 | AQ82: 9.2 | AR82: EER | AS82: IL TRM v5 | AT82: 6.8 | AU82: HSPFASHP | AV82: IL TRM v5 | AW82: 982 | AX82: EFLHcool | AZ82: 1376 | BA82: EFLHheat | BB82: The EFLH Cooling and Heating hours are based on a EnergyStar study that was normalized (based on HDD and CDD) to Kansas City. This was for both AC and HP units.
A83: Heating, Cooling & Weatherization | B83: HVAC Maintenance and Tune-up_SF: CAC | C83: 238 | D83: Single Family | E83: HVAC | G83: per measure | H83: 70 | I83: =ROUND(173.9,4) -> 173.9 | K83: 0.0165 | L83: 0.68 | N83: =ROUND(K83*L83,4) -> 0.0112 | P83: 8640 | R83: 5 | S83: Sub-measure of HVAC Maintenance and Tune-up | T83: N/A | V83: kWh, kW | W83: N/A | Y83: =ROUND(173.9,4) | Z83: =ROUND(K83*L83,4) | AA83: 2017-04-07 | AC83: 3020 | AD83: 4470
A84: Heating, Cooling & Weatherization | B84: GSHP - EER 23_Early Replacement GSHP_SF: HVAC, replace ASHP | C84: 239.1 | D84: Single Family | E84: HVAC | G84: per unit | H84: 4859 | I84: =ROUND(((BC84*AE84*(1/W84)-(1/T84))/1000)+((BF84*AE84*(1/AH84)-(1/(AK84*3.412)))/1000)+((AN84*AQ84*(1/AT84)*AW84)/1000),4) -> 6554.2619 | J84: IL TRM v5 | K84: =I84/P84 -> 6.67440112 | L84: 0.72 | M84: IL TRM v5 | N84: =ROUND(((AE84*(1/AZ84)-(1/T84))/1000)*L84,4) -> 1.0105 | O84: IL TRM v5 | P84: 982 | Q84: EFLHcool, from PY2016 analysis (Normalized EnergyStar KC Cooling Hours to IL TRM CDD) | R84: 18 | S84: Part Load EER Efficiency of efficient GSHP unit | T84: 23 | U84: Not verified. | V84: SEER Efficiency of existing cooling unit = Actual, if available | W84: 8.55 | X84: IL TRM v5 | Y84: =ROUND(((BC84*AE84*(1/W84)-(1/T84))/1000)+((BF84*AE84*(1/AH84)-(1/(AK84*3.412)))/1000)+((AN84*AQ84*(1/AT84)*AW84)/1000),4) | Z84: =ROUND(((AE84*(1/AZ84)-(1/T84))/1000)*L84,4) | AA84: 2018-04-01 | AE84: 12000 | AF84: Allows for Capacity input in Tons; converts tons to BTUs | AH84: 5.44 | AI84: HSPFexist = Heating System Performance Factor of existing heating system 5.44 for replacing ASHP 3.41 for replacing Electric Resistance Heat | AJ84: IL TRM v5 | AK84: 4.5 | AL84: COPpl = Part Load Coefficient of Performance, Actual installed value | AM84: This example value is the mean of values listed in ENERGY STAR criteria here: https://www.energystar.gov/index.cfm?c=most_efficient.me_geothermal_heat_pumps , https://data.energystar.gov/Active-Specifications/ENERGY-STAR-Most-Efficient-Geothermal-Heat-Pumps/4c82-7ysy . Ideally this value would come from the specs of the actual unit installed. | AN84: 1 | AO84: ElecDHW: = 1 if HW system is electric = 0 if HW system is not electric | AP84: IL TRM v5 | AQ84: 0.44 | AR84: %DHWdisplaced = Percentage of total DHW load the GSHP will provide. = Actual, if known = 0% if no desuperheater installed = 44% if desuperheater installed and actual is unknown | AS84: IL TRM v5 | AT84: 2.0005 | AU84: Efelec = Energy Factor of electric WH. = Actual, if known = 0.96 – (0.0003 * rated volume in gallons) for 55+ gallon DHW = 2.057 – (0.00113 * rated volume in gallons) for < 55 gallon DHW | AV84: IL TRM v5 | AW84: 9732988.447 | AX84: GSHP Coefficient = GPD * Household * 365.25 * γWater * (Tout - Tin) | AY84: IL TRM v5 | AZ84: 8.55 | BA84: Energy Efficiency Ratio of existing cooling unit = Actual, if available = 8.55 for replacing ASHP = 8.15 for replacing Central AC | BB84: IL TRM v5 | BC84: 982 | BD84: EFLHcool | BE84: The EFLH Cooling and Heating hours are based on a EnergyStar study that was normalized (based on HDD and CDD) to Kansas City. This was for both AC and HP units. | BF84: 1376 | BG84: EFLHheat | BH84: The EFLH Cooling and Heating hours are based on a EnergyStar study that was normalized (based on HDD and CDD) to Kansas City. This was for both AC and HP units.
A85: Heating, Cooling & Weatherization | B85: GSHP - EER 23_Replace at Fail GSHP_SF: HVAC | C85: 240.1 | D85: Single Family | E85: HVAC | G85: per unit | H85: 3200 | I85: =ROUND(((BC85*AE85*(1/W85)-(1/T85))/1000)+((BF85*AE85*(1/AH85)-(1/(AK85*3.412)))/1000)+((AN85*AQ85*(1/AT85)*AW85)/1000),4) -> 5225.6534 | J85: IL TRM v5 | K85: =I85/P85 -> 5.321439308 | L85: 0.72 | M85: IL TRM v5 | N85: =ROUND(((AE85*(1/AZ85)-(1/T85))/1000)*L85,4) -> 0.7322 | O85: IL TRM v5 | P85: 982 | Q85: EFLHcool, from PY2016 analysis (Normalized EnergyStar KC Cooling Hours to IL TRM CDD) | R85: 18 | S85: Part Load EER Efficiency of efficient GSHP unit | T85: 23 | U85: Not verified. | V85: GSHP replacing Failed GSHP – 23 EER minimum (EER) | W85: 11 | X85: IL TRM v5 | Y85: =ROUND(((BC85*AE85*(1/W85)-(1/T85))/1000)+((BF85*AE85*(1/AH85)-(1/(AK85*3.412)))/1000)+((AN85*AQ85*(1/AT85)*AW85)/1000),4) | Z85: =ROUND(((AE85*(1/AZ85)-(1/T85))/1000)*L85,4) | AA85: 2018-04-01 | AE85: 12000 | AF85: Allows for Capacity input in Tons; converts tons to BTUs | AH85: 8.2 | AI85: HSPFbase = Heating System Performance Factor of new replacement baseline heating system 8.2 for replacing ASHP 3.41 for replacing Electric Resistance Heat | AJ85: IL TRM v5 | AK85: 4.5 | AL85: COPpl = Part Load Coefficient of Performance, Actual installed value | AM85: This example value is the mean of values listed in ENERGY STAR criteria here: https://www.energystar.gov/index.cfm?c=most_efficient.me_geothermal_heat_pumps , https://data.energystar.gov/Active-Specifications/ENERGY-STAR-Most-Efficient-Geothermal-Heat-Pumps/4c82-7ysy . Ideally this value would come from the specs of the actual unit installed. | AN85: 1 | AO85: ElecDHW: = 1 if HW system is electric = 0 if HW system is not electric | AP85: IL TRM v5 | AQ85: 0.44 | AR85: %DHWdisplaced = Percentage of total DHW load the GSHP will provide. = Actual, if known = 0% if no desuperheater installed = 44% if desuperheater installed and actual is unknown | AS85: IL TRM v5 | AT85: 2.0005 | AU85: Efelec = Energy Factor of electric WH. = Actual, if known = 0.96 – (0.0003 * rated volume in gallons) for 55+ gallon DHW = 2.057 – (0.00113 * rated volume in gallons) for < 55 gallon DHW | AV85: IL TRM v5 | AW85: 9732988.447 | AX85: GSHP Coefficient = GPD * Household * 365.25 * γWater * (Tout - Tin) | AY85: IL TRM v5 | AZ85: 11.8 | BA85: EER Efficiency of new replacement ASHP | BB85: IL TRM v5 | BC85: 982 | BD85: EFLHcool | BE85: The EFLH Cooling and Heating hours are based on a EnergyStar study that was normalized (based on HDD and CDD) to Kansas City. This was for both AC and HP units. | BF85: 1376 | BG85: EFLHheat | BH85: The EFLH Cooling and Heating hours are based on a EnergyStar study that was normalized (based on HDD and CDD) to Kansas City. This was for both AC and HP units.
A86: Heating, Cooling & Weatherization | B86: GSHP - EER 23_AC + Early Replacement Electric Resistance Furnace_SF: HVAC | C86: 241.1 | D86: Single Family | E86: HVAC | G86: per unit | H86: 5250 | I86: =ROUND(((BC86*AE86*(1/W86)-(1/T86))/1000)+((BF86*AE86*(1/AH86)-(1/(AK86*3.412)))/1000)+((AN86*AQ86*(1/AT86)*AW86)/1000),4) -> 8428.8405 | J86: IL TRM v5 | K86: =I86/P86 -> 8.583340631 | L86: 0.72 | M86: IL TRM v5 | N86: =ROUND(((AE86*(1/AZ86)-(1/T86))/1000)*L86,4) -> 1.0601 | P86: 982 | Q86: EFLHcool, from PY2016 analysis (Normalized EnergyStar KC Cooling Hours to IL TRM CDD) | R86: 18 | S86: Part Load EER Efficiency of efficient GSHP unit | T86: 23 | U86: Not verified. | V86: SEER Efficiency of existing cooling unit = Actual, if available | W86: 8.15 | X86: IL TRM v5 | Y86: =ROUND(((BC86*AE86*(1/W86)-(1/T86))/1000)+((BF86*AE86*(1/AH86)-(1/(AK86*3.412)))/1000)+((AN86*AQ86*(1/AT86)*AW86)/1000),4) | Z86: =ROUND(((AE86*(1/AZ86)-(1/T86))/1000)*L86,4) | AA86: 2018-04-01 | AE86: 12000 | AF86: Allows for Capacity input in Tons; converts tons to BTUs | AH86: 3.41 | AI86: HSPFexist = Heating System Performance Factor of existing heating system 5.44 for replacing ASHP 3.41 for replacing Electric Resistance Heat | AJ86: IL TRM v5 | AK86: 4.5 | AL86: COPpl = Part Load Coefficient of Performance, Actual installed value | AM86: This example value is the mean of values listed in ENERGY STAR criteria here: https://www.energystar.gov/index.cfm?c=most_efficient.me_geothermal_heat_pumps , https://data.energystar.gov/Active-Specifications/ENERGY-STAR-Most-Efficient-Geothermal-Heat-Pumps/4c82-7ysy . Ideally this value would come from the specs of the actual unit installed. | AN86: 1 | AO86: ElecDHW: = 1 if HW system is electric = 0 if HW system is not electric | AP86: IL TRM v5 | AQ86: 0.44 | AR86: %DHWdisplaced = Percentage of total DHW load the GSHP will provide. = Actual, if known = 0% if no desuperheater installed = 44% if desuperheater installed and actual is unknown | AS86: IL TRM v5 | AT86: 2.0005 | AU86: Efelec = Energy Factor of electric WH. = Actual, if known = 0.96 – (0.0003 * rated volume in gallons) for 55+ gallon DHW = 2.057 – (0.00113 * rated volume in gallons) for < 55 gallon DHW | AV86: IL TRM v5 | AW86: 9732988.447 | AX86: GSHP Coefficient = GPD * Household * 365.25 * γWater * (Tout - Tin) | AY86: IL TRM v5 | AZ86: 8.15 | BA86: Energy Efficiency Ratio of existing cooling unit = Actual, if available = 8.55 for replacing ASHP = 8.15 for replacing Central AC | BB86: IL TRM v5 | BC86: 982 | BD86: EFLHcool | BE86: The EFLH Cooling and Heating hours are based on a EnergyStar study that was normalized (based on HDD and CDD) to Kansas City. This was for both AC and HP units. | BF86: 1376 | BG86: EFLHheat | BH86: The EFLH Cooling and Heating hours are based on a EnergyStar study that was normalized (based on HDD and CDD) to Kansas City. This was for both AC and HP units.
A87: Heating, Cooling & Weatherization | B87: GSHP - EER 23_AC + Replace at Fail Electric Resistance Furnace_SF: HVAC | C87: 242.1 | D87: Single Family | E87: HVAC | G87: per unit | H87: 4717 | I87: =ROUND(((BC87*AE87*(1/W87)-(1/T87))/1000)+((BF87*AE87*(1/AH87)-(1/(AK87*3.412)))/1000)+((AN87*AQ87*(1/AT87)*AW87)/1000),4) -> 8054.2236 | J87: IL TRM v5 | K87: =I87/P87 -> 8.201857026 | L87: 0.72 | M87: IL TRM v5 | N87: =ROUND(((AE87*(1/AZ87)-(1/T87))/1000)*L87,4) -> 0.7854 | O87: IL TRM v5 | P87: 982 | Q87: EFLHcool, from PY2016 analysis (Normalized EnergyStar KC Cooling Hours to IL TRM CDD) | R87: 18 | S87: Part Load EER Efficiency of efficient GSHP unit | T87: 23 | U87: Not verified. | V87: GSHP replacing failed AC w/ electric furnace – 23 EER minimum (EER) | W87: 11 | X87: IL TRM v5 | Y87: =ROUND(((BC87*AE87*(1/W87)-(1/T87))/1000)+((BF87*AE87*(1/AH87)-(1/(AK87*3.412)))/1000)+((AN87*AQ87*(1/AT87)*AW87)/1000),4) | Z87: =ROUND(((AE87*(1/AZ87)-(1/T87))/1000)*L87,4) | AA87: 2018-04-01 | AE87: 12000 | AF87: Allows for Capacity input in Tons; converts tons to BTUs | AH87: 3.41 | AI87: HSPFbase = Heating System Performance Factor of new replacement baseline heating system 8.2 for replacing ASHP 3.41 for replacing Electric Resistance Heat | AJ87: IL TRM v5 | AK87: 4.5 | AL87: COPpl = Part Load Coefficient of Performance, Actual installed value | AM87: This example value is the mean of values listed in ENERGY STAR criteria here: https://www.energystar.gov/index.cfm?c=most_efficient.me_geothermal_heat_pumps , https://data.energystar.gov/Active-Specifications/ENERGY-STAR-Most-Efficient-Geothermal-Heat-Pumps/4c82-7ysy . Ideally this value would come from the specs of the actual unit installed. | AN87: 1 | AO87: ElecDHW: = 1 if HW system is electric = 0 if HW system is not electric | AP87: IL TRM v5 | AQ87: 0.44 | AR87: %DHWdisplaced = Percentage of total DHW load the GSHP will provide. = Actual, if known = 0% if no desuperheater installed = 44% if desuperheater installed and actual is unknown | AS87: IL TRM v5 | AT87: 2.0005 | AU87: Efelec = Energy Factor of electric WH. = Actual, if known = 0.96 – (0.0003 * rated volume in gallons) for 55+ gallon DHW = 2.057 – (0.00113 * rated volume in gallons) for < 55 gallon DHW | AV87: IL TRM v5 | AW87: 9732988.447 | AX87: GSHP Coefficient = GPD * Household * 365.25 * γWater * (Tout - Tin) | AY87: IL TRM v5 | AZ87: 11 | BA87: EER Efficiency of new replacement Central AC | BB87: IL TRM v5 | BC87: 982 | BD87: EFLHcool | BE87: The EFLH Cooling and Heating hours are based on a EnergyStar study that was normalized (based on HDD and CDD) to Kansas City. This was for both AC and HP units. | BF87: 1376 | BG87: EFLHheat | BH87: The EFLH Cooling and Heating hours are based on a EnergyStar study that was normalized (based on HDD and CDD) to Kansas City. This was for both AC and HP units.
A88: Heating, Cooling & Weatherization | B88: GSHP - EER 23_ASHP + Early Replacement _SF: HVAC | C88: 243.1 | D88: Single Family | E88: HVAC | G88: per unit | H88: 5250 | I88: =ROUND(((BC88*AE88*(1/W88)-(1/T88))/1000)+((BF88*AE88*(1/AH88)-(1/(AK88*3.412)))/1000)+((AN88*AQ88*(1/AT88)*AW88)/1000),4) -> 6554.2619 | J88: IL TRM v5 | K88: =I88/P88 -> 6.67440112 | L88: 0.72 | M88: IL TRM v5 | N88: =ROUND(((AE88*(1/AZ88)-(1/T88))/1000)*L88,4) -> 1.0105 | P88: 982 | Q88: EFLHcool, from PY2016 analysis (Normalized EnergyStar KC Cooling Hours to IL TRM CDD) | R88: 18 | S88: Part Load EER Efficiency of efficient GSHP unit | T88: 23 | U88: Not verified. | V88: SEER Efficiency of existing cooling unit = Actual, if available | W88: 8.55 | X88: IL TRM v5 | Y88: =ROUND(((BC88*AE88*(1/W88)-(1/T88))/1000)+((BF88*AE88*(1/AH88)-(1/(AK88*3.412)))/1000)+((AN88*AQ88*(1/AT88)*AW88)/1000),4) | Z88: =ROUND(((AE88*(1/AZ88)-(1/T88))/1000)*L88,4) | AA88: 2018-04-01 | AE88: 12000 | AF88: Allows for Capacity input in Tons; converts tons to BTUs | AH88: 5.44 | AI88: HSPFexist = Heating System Performance Factor of existing heating system 5.44 for replacing ASHP 3.41 for replacing Electric Resistance Heat | AJ88: IL TRM v5 | AK88: 4.5 | AL88: COPpl = Part Load Coefficient of Performance, Actual installed value | AM88: This example value is the mean of values listed in ENERGY STAR criteria here: https://www.energystar.gov/index.cfm?c=most_efficient.me_geothermal_heat_pumps , https://data.energystar.gov/Active-Specifications/ENERGY-STAR-Most-Efficient-Geothermal-Heat-Pumps/4c82-7ysy . Ideally this value would come from the specs of the actual unit installed. | AN88: 1 | AO88: ElecDHW: = 1 if HW system is electric = 0 if HW system is not electric | AP88: IL TRM v5 | AQ88: 0.44 | AR88: %DHWdisplaced = Percentage of total DHW load the GSHP will provide. = Actual, if known = 0% if no desuperheater installed = 44% if desuperheater installed and actual is unknown | AS88: IL TRM v5 | AT88: 2.0005 | AU88: Efelec = Energy Factor of electric WH. = Actual, if known = 0.96 – (0.0003 * rated volume in gallons) for 55+ gallon DHW = 2.057 – (0.00113 * rated volume in gallons) for < 55 gallon DHW | AV88: IL TRM v5 | AW88: 9732988.447 | AX88: GSHP Coefficient = GPD * Household * 365.25 * γWater * (Tout - Tin) | AY88: IL TRM v5 | AZ88: 8.55 | BA88: Energy Efficiency Ratio of existing cooling unit = Actual, if available = 8.55 for replacing ASHP = 8.15 for replacing Central AC | BB88: IL TRM v5 | BC88: 982 | BD88: EFLHcool | BE88: The EFLH Cooling and Heating hours are based on a EnergyStar study that was normalized (based on HDD and CDD) to Kansas City. This was for both AC and HP units. | BF88: 1376 | BG88: EFLHheat | BH88: The EFLH Cooling and Heating hours are based on a EnergyStar study that was normalized (based on HDD and CDD) to Kansas City. This was for both AC and HP units.
A89: Heating, Cooling & Weatherization | B89: Duct Repair and Sealing | C89: 278 | D89: Single Family | E89: HVAC | G89: per home (25% to 10%) | H89: 497.62 | I89: =ROUND(((((AE89-AH89)/AE89)*AK89*AN89*AQ89)/1000/AT89)+(((((AE89-AH89)/AE89))*AW89*AZ89*BC89)/BF89/3412),4) -> 1218.8362 | J89: IL TRM v6 | L89: 0.466 | M89: IL TRM v6 | N89: =ROUND(((((AE89-AH89)/AE89)*AK89*AN89*AQ89)/1000/AT89)/AK89*L89,8) -> 0.09117391 | O89: IL TRM v6 | R89: 20 | S89: Duct sealing using mastic sealant or metal tape | V89: Unsealed/leaking ductwork | Y89: =cellformula(I89) -> =ROUND(((((AE89-AH89)/AE89)*AK89*AN89*AQ89)/1000/AT89)+(((((AE89-AH89)/AE89))*AW89*AZ89*BC89)/BF89/3412),4) | Z89: =cellformula(N89) -> =ROUND(((((AE89-AH89)/AE89)*AK89*AN89*AQ89)/1000/AT89)/AK89*L89,8) | AA89: 2019-04-01 | AE89: 0.92 | AF89: Deafter | AG89: IL TRM v6, example rating | AH89: 0.85 | AI89: Debefore | AJ89: IL TRM v6, example rating | AK89: 1035 | AL89: FLHcool | AM89: IL TRM v6 for single family home | AN89: 36000 | AO89: CapacityCool | AP89: IL TRM v6, example rating | AQ89: 1 | AR89: TRFcool | AS89: IL TRM v6 | AT89: 14 | AU89: ηCool | AV89: IL TRM v6 for heat pumps after 2015 (assuming upgrades as part of program participation) | AW89: 1266 | AX89: FLHheat | AY89: IL TRM v6 | AZ89: 36000 | BA89: OutputCapacityHeat | BB89: IL TRM v6 | BC89: 1 | BD89: TRFheat | BE89: IL TRM v6 | BF89: 1 | BG89: ηHeat | BH89: IL TRM v6
A90: Heating, Cooling & Weatherization | B90: ECM Continous Fan EUL Early Replacement - SF | C90: 385 | D90: Single Family | E90: Motor | G90: per unit | H90: 97 | I90: =ROUND(AE90*AN90*12*(1/AH90-1/AK90)*AT90+AW90*AZ90+BC90*BF90,4) -> 1346.8467 | J90: Wisconsin Focus on Energy 2018 TRM | K90: =N90/L90 -> 0.8147058824 | L90: 0.68 | M90: IL TRM v6.0 | N90: =ROUND(AE90*12*(1/BI90-1/BL90)*L90*AT90,4) -> 0.554 | O90: Wisconsin Focus on Energy 2018 TRM | R90: 6 | S90: ECM Blower Motor | V90: Non-ECM Blower Motor | Y90: =cellformula(I90) -> =ROUND(AE90*AN90*12*(1/AH90-1/AK90)*AT90+AW90*AZ90+BC90*BF90,4) | Z90: =cellformula(N90) -> =ROUND(AE90*12*(1/BI90-1/BL90)*L90*AT90,4) | AA90: 2019-04-01 | AE90: 2.425 | AF90: Air conditioner capacity in tons | AG90: Wisconsin Focus on Energy 2018 TRM | AH90: 8.86 | AI90: SEERexist | AJ90: This value is from IL TRM v6.0 but should be actual equipment SEER value. | AK90: 13 | AL90: SEERecm | AM90: Wisconsin Focus on Energy 2018 TRM | AN90: 1035 | AO90: FLH_cooling | AP90: IL TRM v6.0 | AQ90: 0.68 | AR90: CF | AS90: IL TRM v6.0 | AT90: 0.925 | AU90: Percentage of furnaces with AC | AV90: Wisconsin Focus on Energy 2018 TRM | AW90: 1158 | AX90: Hours of heating operation | AY90: Wisconsin Focus on Energy 2018 TRM | AZ90: 0.116 | BA90: Energy savings in heating | BB90: Wisconsin Focus on Energy 2018 TRM | BC90: 1020 | BD90: Hours of fan-only operation | BE90: Wisconsin Focus on Energy 2018 TRM | BF90: 0.207 | BG90: Energy savings in fan-only | BH90: Wisconsin Focus on Energy 2018 TRM | BI90: =-0.02*AH90^2+1.12*AH90 -> 8.353208 | BJ90: EERexist | BK90: This value is from IL TRM v6.0 but should be actual equipment SEER value. | BL90: =-0.02*AK90^2+1.12*AK90 -> 11.18 | BM90: EERecm | BN90: Wisconsin Focus on Energy 2018 TRM
A91: Heating, Cooling & Weatherization | B91: ECM Continous Fan EUL Early Replacement - SF (future) | C91: 386 | D91: Single Family | E91: Motor | G91: per unit | H91: 0 | I91: =ROUND(AE91*AN91*12*(1/AH91-1/AK91)*AT91+AW91*AZ91+BC91*BF91,4) -> 524.0553 | J91: Wisconsin Focus on Energy 2018 TRM | K91: =N91/L91 -> 0.1413235294 | L91: 0.68 | M91: IL TRM v6.0 | N91: =ROUND(AE91*12*(1/BI91-1/BL91)*L91*AT91,4) -> 0.0961 | O91: Wisconsin Focus on Energy 2018 TRM | R91: 12 | S91: ECM Blower Motor | V91: Non-ECM Blower Motor | Y91: =cellformula(I91) -> =ROUND(AE91*AN91*12*(1/AH91-1/AK91)*AT91+AW91*AZ91+BC91*BF91,4) | Z91: =cellformula(N91) -> =ROUND(AE91*12*(1/BI91-1/BL91)*L91*AT91,4) | AA91: 2019-04-01 | AE91: 2.425 | AF91: Air conditioner capacity in tons | AG91: Wisconsin Focus on Energy 2018 TRM | AH91: 12 | AI91: SEERbase | AJ91: Wisconsin Focus on Energy 2018 TRM | AK91: 13 | AL91: SEERecm | AM91: Wisconsin Focus on Energy 2018 TRM | AN91: 1035 | AO91: FLH_cooling | AP91: IL TRM v6.0 | AQ91: 0.68 | AR91: CF | AS91: IL TRM v6.0 | AT91: 0.925 | AU91: Percentage of furnaces with AC | AV91: Wisconsin Focus on Energy 2018 TRM | AW91: 1158 | AX91: Hours of heating operation | AY91: Wisconsin Focus on Energy 2018 TRM | AZ91: 0.116 | BA91: Energy savings in heating | BB91: Wisconsin Focus on Energy 2018 TRM | BC91: 1020 | BD91: Hours of fan-only operation | BE91: Wisconsin Focus on Energy 2018 TRM | BF91: 0.207 | BG91: Energy savings in fan-only | BH91: Wisconsin Focus on Energy 2018 TRM | BI91: =-0.02*AH91^2+1.12*AH91 -> 10.56 | BJ91: EERbase | BK91: Wisconsin Focus on Energy 2018 TRM | BL91: =-0.02*AK91^2+1.12*AK91 -> 11.18 | BM91: EERecm | BN91: Wisconsin Focus on Energy 2018 TRM
A92: Heating, Cooling & Weatherization | B92: ECM Continous Fan EUL Early Replacement - MF | C92: 387 | D92: Multi-Family | E92: Motor | G92: per unit | H92: 97 | I92: =ROUND(AE92*AN92*12*(1/AH92-1/AK92)*AT92+AW92*AZ92+BC92*BF92,4) -> 1346.8467 | J92: Wisconsin Focus on Energy 2018 TRM | K92: =N92/L92 -> 0.8147058824 | L92: 0.68 | M92: IL TRM v6.0 | N92: =ROUND(AE92*12*(1/BI92-1/BL92)*L92*AT92,4) -> 0.554 | O92: Wisconsin Focus on Energy 2018 TRM | R92: 6 | S92: ECM Blower Motor | V92: Non-ECM Blower Motor | Y92: =cellformula(I92) -> =ROUND(AE92*AN92*12*(1/AH92-1/AK92)*AT92+AW92*AZ92+BC92*BF92,4) | Z92: =cellformula(N92) -> =ROUND(AE92*12*(1/BI92-1/BL92)*L92*AT92,4) | AA92: 2019-04-01 | AE92: 2.425 | AF92: Air conditioner capacity in tons | AG92: Wisconsin Focus on Energy 2018 TRM | AH92: 8.86 | AI92: SEERexist | AJ92: This value is from IL TRM v6.0 but should be actual equipment SEER value. | AK92: 13 | AL92: SEERecm | AM92: Wisconsin Focus on Energy 2018 TRM | AN92: 1035 | AO92: FLH_cooling | AP92: IL TRM v6.0 | AQ92: 0.68 | AR92: CF | AS92: IL TRM v6.0 | AT92: 0.925 | AU92: Percentage of furnaces with AC | AV92: Wisconsin Focus on Energy 2018 TRM | AW92: 1158 | AX92: Hours of heating operation | AY92: Wisconsin Focus on Energy 2018 TRM | AZ92: 0.116 | BA92: Energy savings in heating | BB92: Wisconsin Focus on Energy 2018 TRM | BC92: 1020 | BD92: Hours of fan-only operation | BE92: Wisconsin Focus on Energy 2018 TRM | BF92: 0.207 | BG92: Energy savings in fan-only | BH92: Wisconsin Focus on Energy 2018 TRM | BI92: 8.353208 | BJ92: EERexist | BK92: This value is from IL TRM v6.0 but should be actual equipment SEER value. | BL92: 11.18 | BM92: EERecm | BN92: Wisconsin Focus on Energy 2018 TRM
A93: Heating, Cooling & Weatherization | B93: ECM Continous Fan EUL Early Replacement - MF (future) | C93: 388 | D93: Multi-Family | E93: Motor | G93: per unit | H93: 0 | I93: =ROUND(AE93*AN93*12*(1/AH93-1/AK93)*AT93+AW93*AZ93+BC93*BF93,4) -> 524.0553 | J93: Wisconsin Focus on Energy 2018 TRM | K93: =N93/L93 -> 0.1413235294 | L93: 0.68 | M93: IL TRM v6.0 | N93: =ROUND(AE93*12*(1/BI93-1/BL93)*L93*AT93,4) -> 0.0961 | O93: Wisconsin Focus on Energy 2018 TRM | R93: 12 | S93: ECM Blower Motor | V93: Non-ECM Blower Motor | Y93: =cellformula(I93) -> =ROUND(AE93*AN93*12*(1/AH93-1/AK93)*AT93+AW93*AZ93+BC93*BF93,4) | Z93: =cellformula(N93) -> =ROUND(AE93*12*(1/BI93-1/BL93)*L93*AT93,4) | AA93: 2019-04-01 | AE93: 2.425 | AF93: Air conditioner capacity in tons | AG93: Wisconsin Focus on Energy 2018 TRM | AH93: 12 | AI93: SEERbase | AJ93: Wisconsin Focus on Energy 2018 TRM | AK93: 13 | AL93: SEERecm | AM93: Wisconsin Focus on Energy 2018 TRM | AN93: 1035 | AO93: FLH_cooling | AP93: IL TRM v6.0 | AQ93: 0.68 | AR93: CF | AS93: IL TRM v6.0 | AT93: 0.925 | AU93: Percentage of furnaces with AC | AV93: Wisconsin Focus on Energy 2018 TRM | AW93: 1158 | AX93: Hours of heating operation | AY93: Wisconsin Focus on Energy 2018 TRM | AZ93: 0.116 | BA93: Energy savings in heating | BB93: Wisconsin Focus on Energy 2018 TRM | BC93: 1020 | BD93: Hours of fan-only operation | BE93: Wisconsin Focus on Energy 2018 TRM | BF93: 0.207 | BG93: Energy savings in fan-only | BH93: Wisconsin Focus on Energy 2018 TRM | BI93: 10.56 | BJ93: EERbase | BK93: Wisconsin Focus on Energy 2018 TRM | BL93: 11.18 | BM93: EERecm | BN93: Wisconsin Focus on Energy 2018 TRM
A94: Income-Eligible Multi-Family | B94: Screw In - LEDs | C94: 53.2 | D94: Multi-Family | E94: Lighting | F94: Kits | G94: per lamp | H94: 3.93 | I94: =ROUND(($W94-$T94)/1000*$P94*$AE94*$AK94,4) -> 28.2745 | J94: IL TRM v5 | K94: =I94/P94 -> 0.03366011905 | L94: 0.08 | M94: IL TRM v5 | N94: =ROUND(($W94-$T94)/1000*L94*$AH94*$AK94,4) -> 0.0028 | O94: IL TRM v5 | P94: 840 | Q94: IL TRM v5 | R94: 10 | S94: Screw In - LEDs | T94: 9.29 | U94: Program Tracking Database | V94: 43 watts based on halogen equivalent to average of bulbs sold in program | W94: 43 | Y94: =cellformula(I94) -> =ROUND(($W94-$T94)/1000*$P94*$AE94*$AK94,4) | Z94: =cellformula(N94) -> =ROUND(($W94-$T94)/1000*L94*$AH94*$AK94,4) | AA94: 2018-04-01 | AB94: 2019-03-31 | AE94: 1.06 | AF94: Waste Heat Factor, Energy | AG94: IL TRM v5 | AH94: 1.11 | AI94: Waste Heat Factor, Demand | AJ94: IL TRM v5 | AK94: 0.942 | AL94: ISR | AM94: Navigant MEEIA Cycle 1 Research
A95: Income-Eligible Multi-Family | B95: Screw In - LEDs (In-Unit) | C95: 53.3 | D95: Multi-Family | E95: Lighting | F95: Kits | G95: per lamp | H95: 3.93 | I95: =ROUND(($W95-$T95)/1000*$P95*$AE95*$AK95,4) -> 26.0063 | J95: IL TRM v5 | K95: =I95/P95 -> 0.03426389987 | L95: 0.071 | M95: IL TRM v5 | N95: =ROUND(($W95-$T95)/1000*L95*$AH95*$AK95,4) -> 0.0025 | O95: IL TRM v5 | P95: 759 | Q95: IL TRM v5 | R95: 10 | S95: Screw In - LEDs | T95: 9 | U95: Program Tracking Database | V95: 43 watts based on halogen equivalent to average of bulbs sold in program | W95: 43 | Y95: =cellformula(I95) -> =ROUND(($W95-$T95)/1000*$P95*$AE95*$AK95,4) | Z95: =cellformula(N95) -> =ROUND(($W95-$T95)/1000*L95*$AH95*$AK95,4) | AA95: 2019-04-01 | AE95: 1.04 | AF95: Waste Heat Factor, Energy | AG95: IL TRM v5 | AH95: 1.07 | AI95: Waste Heat Factor, Demand | AJ95: IL TRM v5 | AK95: 0.969 | AL95: ISR | AM95: IL TRM v5
A96: Income-Eligible Multi-Family | B96: Low Flow Faucet Aerator-Bathroom | C96: 268 | D96: Multi-Family | E96: Hot Water | F96: Kits | G96: per unit | H96: 8 | I96: =ROUND(((W96-T96)*AH96*AK96*365.25)*AE96*AN96,4) -> 38.9287 | J96: IL TRM V.5 | K96: =I96/P96 -> 2.780621429 | L96: 0.022 | M96: IL TRM v5 | N96: =ROUND((((W96-T96)*AH96*AK96*365.25)*AE96*AN96)/P96*L96,4) -> 0.0612 | P96: 14 | Q96: IL TRM V.5 | R96: 9 | S96: Low Flow (GPM) | T96: 1.5 | U96: Program Tracking Database | V96: Standard (GPM) | W96: 2.2 | X96: Federal Baseline | Y96: =cellformula(I96) -> =ROUND(((W96-T96)*AH96*AK96*365.25)*AE96*AN96,4) | Z96: =cellformula(N96) -> =ROUND((((W96-T96)*AH96*AK96*365.25)*AE96*AN96)/P96*L96,4) | AA96: 2018-04-01 | AB96: 2019-03-31 | AE96: 0.0795 | AF96: kWh per gallon hot water, bathroom | AH96: =1.6*0.9/1.5 -> 0.96 | AI96: Faucet Coefficient, Bathroom: Minutes/day * Drain Factor / Faucets per Household | AJ96: IL TRM v5 | AK96: 2.1 | AL96: Persons per household | AM96: IL TRM v5 | AN96: 0.95 | AO96: Installation Rate | AP96: IL TRM v5
A97: Income-Eligible Multi-Family | B97: Low Flow Faucet Aerator-Bathroom | C97: 268.1 | D97: Multi-Family | E97: Hot Water | F97: Kits | G97: per unit | H97: 8 | I97: =ROUND(((W97-T97)*AH97*AK97*365.25)*AE97*AN97,4) -> 66.7349 | J97: IL TRM V.5 | K97: 3.033404545 | L97: 0.022 | M97: IL TRM v5 | N97: =ROUND((((W97-T97)*AH97*AK97*365.25)*AE97*AN97)/P97*L97,4) -> 0.0667 | P97: 22 | Q97: IL TRM V.5 | R97: 9 | S97: Low Flow (GPM) | T97: 1 | U97: Program Tracking Database | V97: Standard (GPM) | W97: 2.2 | X97: Federal Baseline | Y97: =cellformula(I97) -> =ROUND(((W97-T97)*AH97*AK97*365.25)*AE97*AN97,4) | Z97: =cellformula(N97) -> =ROUND((((W97-T97)*AH97*AK97*365.25)*AE97*AN97)/P97*L97,4) | AA97: 2019-04-01 | AE97: 0.0795 | AF97: kWh per gallon hot water, bathroom | AH97: =1.6*0.9/1.5 -> 0.96 | AI97: Faucet Coefficient, Bathroom: Minutes/day * Drain Factor / Faucets per Household | AJ97: IL TRM v5 | AK97: 2.1 | AL97: Persons per household | AM97: IL TRM v5 | AN97: 0.95 | AO97: Installation Rate | AP97: IL TRM v5
A98: Income-Eligible Multi-Family | B98: Low Flow Faucet Aerator-Kitchen | C98: 269 | D98: Multi-Family | E98: Hot Water | F98: Kits | G98: per unit | H98: 8 | I98: =ROUND(((W98-T98)*AH98*AK98*365.25)*AE98*AN98,4) -> 159.7889 | J98: IL TRM V.5 | K98: 1.699881915 | L98: 0.022 | M98: IL TRM v5 | N98: =ROUND((((W98-T98)*AH98*AK98*365.25)*AE98*AN98)/P98*L98,4) -> 0.0374 | P98: 94 | Q98: IL TRM V.5 | R98: 9 | S98: Low Flow (GPM) | T98: 1.5 | U98: Program Tracking Database | V98: Standard (GPM) | W98: 2.2 | X98: Federal Baseline | Y98: =ROUND(((W98-T98)*AH98*AK98*365.25)*AE98*AN98,4) | Z98: =ROUND((((W98-T98)*AH98*AK98*365.25)*AE98*AN98)/P98*L98,4) | AA98: 2018-04-01 | AB98: 2019-03-31 | AE98: 0.0969 | AF98: kWh per gallon hot water, kitchen | AH98: =4.5*0.75/1 -> 3.375 | AI98: Faucet Coefficient, Kitchen | AJ98: IL TRM v5 | AK98: 2.1 | AL98: Persons per household | AM98: IL TRM v5 | AN98: 0.91 | AO98: Installation Rate | AP98: IL TRM v5
A99: Income-Eligible Multi-Family | B99: Low Flow Faucet Aerator-Kitchen | C99: 269.1 | D99: Multi-Family | E99: Hot Water | F99: Kits | G99: per unit | H99: 8 | I99: =ROUND(((W99-T99)*AH99*AK99*365.25)*AE99*AN99,4) -> 159.7889 | J99: IL TRM V.5 | K99: 2.075180519 | L99: 0.022 | M99: IL TRM v5 | N99: =ROUND((((W99-T99)*AH99*AK99*365.25)*AE99*AN99)/P99*L99,4) -> 0.0457 | P99: 77 | Q99: IL TRM V.5 | R99: 9 | S99: Low Flow (GPM) | T99: 1.5 | U99: Program Tracking Database | V99: Standard (GPM) | W99: 2.2 | X99: Federal Baseline | Y99: =cellformula(I99) -> =ROUND(((W99-T99)*AH99*AK99*365.25)*AE99*AN99,4) | Z99: =cellformula(N99) -> =ROUND((((W99-T99)*AH99*AK99*365.25)*AE99*AN99)/P99*L99,4) | AA99: 2019-04-01 | AE99: 0.0969 | AF99: kWh per gallon hot water, kitchen | AH99: =4.5*0.75/1 -> 3.375 | AI99: Faucet Coefficient, Kitchen | AJ99: IL TRM v5 | AK99: 2.1 | AL99: Persons per household | AM99: IL TRM v5 | AN99: 0.91 | AO99: Installation Rate | AP99: IL TRM v5
A100: Income-Eligible Multi-Family | B100: Pipe Insulated | C100: 55.1 | D100: Multi-Family | E100: Hot Water | F100: Kits | G100: per unit | H100: 18 | I100: =ROUND(((((AE100*PI()*AK100)/W100) - ((AH100*PI()*AK100)/T100))*AN100)/AQ100/3412,4) -> 72.065 | J100: IL TRM v5, modified to account for larger diameter due to added pipe insulation | K100: =I100/P100 -> 0.008220967374 | L100: NA | M100: NA | N100: =ROUND(I100/8766,4) -> 0.0082 | P100: 8766 | Q100: IL TRM V.5 | R100: 15 | S100: Efficient R-Value due to added insulation | T100: =1+5 -> 6 | U100: IL TRM v5 | V100: R-Value of bare pipe | W100: 1 | X100: IL TRM v5 | Y100: =cellformula(I100) -> =ROUND(((((AE100*PI()*AK100)/W100) - ((AH100*PI()*AK100)/T100))*AN100)/AQ100/3412,4) | Z100: =cellformula(N100) -> =ROUND(I100/8766,4) | AA100: 2018-04-01 | AE100: =0.75/12 -> 0.0625 | AF100: Dbase = Pipe Diameter (ft) | AG100: IL TRM v5 | AH100: =(0.75+1*2)/12 -> 0.2291666667 | AI100: Dee = Updated Pipe Diameter, due to added insulation (ft) | AJ100: IL TRM v5 | AK100: 6 | AL100: Length of added pipe insulation | AN100: =60*8766 -> 525960 | AO100: Pipe Insulated Coefficient 1 = ∆T * Hours = 60 * 8766 | AP100: IL TRM v5 | AQ100: 0.98 | AR100: Recovery efficiency of electric water heater | AS100: IL TRM v5
A101: Income-Eligible Multi-Family | B101: Low Flow Showerhead | C101: 56.1 | D101: Multi-Family | E101: Hot Water | F101: Kits | G101: per unit | H101: 12 | I101: =ROUND(((W101-T101)*AH101*AK101*365.25)*AE101*AN101,4) -> 260.794 | J101: IL TRM V.5 | K101: =I101/P101 -> 0.8635562914 | L101: 0.0278 | M101: IL TRM v5 | N101: =ROUND((((W101-T101)*AH101*AK101*365.25)*AE101*AN101)/P101*L101,4) -> 0.024 | P101: 302 | Q101: IL TRM V.5 | R101: 10 | S101: Low Flow (GPM) | T101: 1.5 | U101: EEP from ICF | V101: Standard (GPM) | W101: 2.67 | X101: IL TRM v5 | Y101: =ROUND(((W101-T101)*AH101*AK101*365.25)*AE101*AN101,4) | Z101: =ROUND((((W101-T101)*AH101*AK101*365.25)*AE101*AN101)/P101*L101,4) | AA101: 2018-04-01 | AB101: 2019-03-31 | AE101: 0.117 | AF101: kWh per gallon hot water | AG101: IL TRM v5 | AH101: =7.8*0.6/1.79 -> 2.61452514 | AI101: Showerhead Coefficient: Minutes per day * Showers per day / Showers per household | AJ101: IL TRM v5 | AK101: 2.1 | AL101: Persons per household | AM101: IL TRM v5 | AN101: 0.95 | AO101: Installation Rate | AP101: IL TRM v5
A102: Income-Eligible Multi-Family | B102: Low Flow Showerhead | C102: 56.2 | D102: Multi-Family | E102: Hot Water | F102: Kits | G102: per unit | H102: 12 | I102: =ROUND(((W102-T102)*AH102*AK102*365.25)*AE102*AN102,4) -> 359.0933 | J102: IL TRM V.5 | K102: =I102/P102 -> 1.447956855 | L102: 0.0278 | M102: IL TRM v5 | N102: =ROUND((((W102-T102)*AH102*AK102*365.25)*AE102*AN102)/P102*L102,4) -> 0.0403 | P102: 248 | Q102: IL TRM V.5 | R102: 10 | S102: Low Flow (GPM) | T102: 1.5 | U102: EEP from ICF | V102: Standard (GPM) | W102: 2.67 | X102: IL TRM v5 | Y102: =cellformula(I102) -> =ROUND(((W102-T102)*AH102*AK102*365.25)*AE102*AN102,4) | Z102: =cellformula(N102) -> =ROUND((((W102-T102)*AH102*AK102*365.25)*AE102*AN102)/P102*L102,4) | AA102: 2019-04-01 | AE102: 0.117 | AF102: kWh per gallon hot water | AG102: IL TRM v5 | AH102: 3.6 | AI102: Showerhead Coefficient: Minutes per day * Showers per day / Showers per household | AJ102: IL TRM v5 | AK102: 2.1 | AL102: Persons per household | AM102: IL TRM v5 | AN102: 0.95 | AO102: Installation Rate | AP102: IL TRM v5
A103: Income-Eligible Multi-Family | B103: Water Heater Tank Wrap | C103: 57 | D103: Multi-Family | E103: Hot Water | F103: Kits | G103: per unit | H103: 18 | I103: =ROUND(131.295784945569,4) -> 131.2958 | K103: =I103/P103 -> 0.01498810502 | N103: =ROUND(0.0149881033042887,4) -> 0.015 | P103: 8760 | R103: 5 | S103: Water Heater Blanket/Tank Wrap | V103: No Blanket | Y103: =ROUND(131.295784945569,4) | Z103: =ROUND(0.0149881033042887,4) | AA103: 2016-04-01
A104: Income-Eligible Multi-Family | B104: Smart Power Strip - Wh5-Plug | C104: 247 | D104: Multi-Family | E104: Electronics | F104: Kits | G104: per unit | H104: 16 | I104: =ROUND(56.5,4) -> 56.5 | J104: Il TRM v5 | L104: 0.8 | M104: Il TRM v5 | N104: =ROUND(I104/P104*L104,4) -> 0.0063 | O104: IL TRM v5 | P104: 7129 | Q104: Il TRM v5 | R104: 5 | S104: Smart strip | V104: Standard outlet strip | Y104: =ROUND(56.5,4) | Z104: =ROUND(I104/P104*L104,4) | AA104: 2018-04-01 | AB104: 2019-03-31
A105: Income-Eligible Multi-Family | B105: Smart Power Strip - Wh7-Plug | C105: 248 | D105: Multi-Family | E105: Electronics | F105: Kits | G105: per unit | H105: 16 | I105: =ROUND(103,4) -> 103 | J105: Il TRM v5 | K105: =I105/P105 -> 0.01444802918 | L105: 0.8 | M105: Il TRM v5 | N105: =ROUND(I105/P105*L105,4) -> 0.0116 | O105: IL TRM v5 | P105: 7129 | Q105: Il TRM v5 | R105: 5 | S105: Smart strip | V105: Standard outlet strip | Y105: =ROUND(103,4) | Z105: =ROUND(I105/P105*L105,4) | AA105: 2018-04-01 | AB105: 2019-03-31
A106: Income-Eligible Multi-Family | B106: Smart Power Strip - Wh7-Plug | C106: 248.1 | D106: Multi-Family | E106: Electronics | F106: Kits | G106: per unit | H106: 26 | I106: =ROUND(103,4) -> 103 | J106: Il TRM v5 | K106: 0.01444802918 | L106: 0.8 | M106: Il TRM v5 | N106: =ROUND(0.0115,4) -> 0.0115 | O106: IL TRM v5 | P106: 7129 | Q106: Il TRM v5 | R106: 5 | S106: Smart strip | V106: Standard outlet strip | Y106: =cellformula(I106) -> =ROUND(103,4) | Z106: =cellformula(N106) -> =ROUND(0.0115,4) | AA106: 2019-04-01
A107: Income-Eligible Multi-Family | B107: LED Exit Sign | C107: 59.1 | D107: Multi-Family | E107: Lighting | F107: Common Area - DI | G107: per unit | H107: 30 | I107: =ROUND((W107-T107)/1000*P107*AE107,4) -> 82.0498 | J107: Il TRM v5 | K107: =(W107-T107)/1000*AH107 -> 0.00963 | L107: 1 | M107: Il TRM v5 | N107: =ROUND(K107*L107,4) -> 0.0096 | O107: IL TRM v5 | P107: 8766 | Q107: Il TRM v5 | R107: 16 | S107: LED (watts) | T107: 2 | V107: Fluorescent (watts) | W107: 11 | X107: Illinois TRM V.5. | Y107: =ROUND((W107-T107)/1000*P107*AE107,4) | Z107: =ROUND(K107*L107,4) | AA107: 2018-04-01 | AE107: 1.04 | AF107: Waste Heat Factor (energy) | AG107: Il TRM v5 | AH107: 1.07 | AI107: Waste Heat Factor (demand)
A108: Income-Eligible Multi-Family | B108: High Bay Fluorescent Fixture w/ HE Electronic Ballast (T5 >4 lamps) | C108: 60 | D108: Multi-Family | E108: Lighting | F108: Common Area - DI | G108: per fixture | H108: 100 | I108: =ROUND((W108-T108)/1000*P108*AE108,4) -> 701.0069 | K108: 0.21574 | L108: 0.66 | N108: =ROUND(K108*L108,4) -> 0.1424 | P108: 3088 | R108: 15 | S108: High Bay - T5 >4 lamp | T108: 295 | V108: Metal Halide (watts) | W108: 456 | Y108: =ROUND((W108-T108)/1000*P108*AE108,4) | Z108: =ROUND(K108*L108,4) | AA108: 2016-04-01 | AE108: 1.41 | AF108: Waste Heat Factor | AH108: 1.34 | AI108: Waste Heat Factor
A109: Income-Eligible Multi-Family | B109: Low Wattage T8 Lamp | C109: 61 | D109: Multi-Family | E109: Lighting | F109: Common Area - DI | G109: per lamp | H109: 2 | I109: =ROUND((W109-T109)/1000*P109*AE109,4) -> 26.1245 | K109: 0.00804 | L109: 0.66 | N109: =ROUND(K109*L109,4) -> 0.0053 | P109: 3088 | R109: 10 | S109: Low Wattage T8 (watts) | T109: 22 | V109: Standard T8 (watts) | W109: 28 | Y109: =ROUND((W109-T109)/1000*P109*AE109,4) | Z109: =ROUND(K109*L109,4) | AA109: 2016-04-01 | AE109: 1.41 | AF109: Waste Heat Factor | AH109: 1.34 | AI109: Waste Heat Factor
A110: Income-Eligible Multi-Family | B110: LED Flood Light (<15W) (Exterior) | C110: 62.1 | D110: Multi-Family | E110: Lighting | F110: Common Area - DI | G110: per lamp | H110: 35 | I110: =ROUND(($W110-$T110)/1000*$P110*$AE110*$AK110,4) -> 212.465 | K110: 0.04601 | L110: 0 | N110: =ROUND(($W110-$T110)/1000*$L110*$AH110*$AK110,4) -> 0 | P110: 4903 | R110: 10 | S110: LED (watts) | T110: 8.7 | V110: Metal Halide (watts) | W110: 51.7 | Y110: =ROUND(($W110-$T110)/1000*$P110*$AE110*$AK110,4) | Z110: =ROUND(($W110-$T110)/1000*$L110*$AH110*$AK110,4) | AA110: 2018-04-01 | AE110: 1.04 | AF110: Waste Heat Factor (energy) | AG110: IL TRM v5 | AH110: 1.07 | AI110: Waste Heat Factor (demand) | AJ110: IL TRM v5 | AK110: 0.969 | AL110: ISR | AM110: IL TRM v5
A111: Income-Eligible Multi-Family | B111: Screw In - LEDs - Common Area (Interior) | C111: 249 | D111: Multi-Family | E111: Lighting | F111: Common Area - DI | G111: per lamp | H111: 3.93 | I111: =ROUND(($W111-$T111)/1000*$P111*$AE111*$AK111,4) -> 119.9234 | K111: =I111/P111 -> 0.02015519328 | L111: 0.64 | M111: IL TRM v5 | N111: =ROUND(($W111-$T111)/1000*$L111*$AH111*$AK111,4) -> 0.0133 | O111: IL TRM v5 | P111: 5950 | Q111: IL TRM v5 | R111: 5 | S111: LED (watts) | T111: 9 | V111: EISA tier 1 compliant Halogen (watts) | W111: 29 | X111: IL TRM v5 | Y111: =ROUND(($W111-$T111)/1000*$P111*$AE111*$AK111,4) | Z111: =ROUND(($W111-$T111)/1000*$L111*$AH111*$AK111,4) | AA111: 2018-04-01 | AE111: 1.04 | AF111: Waste Heat Factor (energy) | AG111: IL TRM v5 | AH111: 1.07 | AI111: Waste Heat Factor (demand) | AJ111: IL TRM v5 | AK111: 0.969 | AL111: ISR | AM111: IL TRM v5
A112: Income-Eligible Multi-Family | B112: Screw In - LEDs - Common Area (Exterior) | C112: 250 | D112: Multi-Family | E112: Lighting | F112: Common Area - DI | G112: per lamp | H112: 3.93 | I112: =ROUND(($W112-$T112)/1000*$P112*$AE112*$AK112,4) -> 98.8209 | K112: =I112/P112 -> 0.0201551907 | L112: 0 | M112: IL TRM v5 | N112: =ROUND(($W112-$T112)/1000*$L112*$AH112*$AK112,4) -> 0 | O112: IL TRM v5 | P112: 4903 | Q112: IL TRM v5 | R112: 5 | S112: LED (watts) | T112: 9 | V112: EISA tier 1 compliant Halogen (watts) | W112: 29 | X112: IL TRM v5 | Y112: =ROUND(($W112-$T112)/1000*$P112*$AE112*$AK112,4) | Z112: =ROUND(($W112-$T112)/1000*$L112*$AH112*$AK112,4) | AA112: 2018-04-01 | AE112: 1.04 | AF112: Waste Heat Factor (energy) | AG112: IL TRM v5 | AH112: 1.07 | AI112: Waste Heat Factor (demand) | AJ112: IL TRM v5 | AK112: 0.969 | AL112: ISR | AM112: IL TRM v5
A113: Income-Eligible Multi-Family | B113: CAC Tune Up w/o RCA | C113: 274 | D113: Multi-Family | E113: HVAC | G113: per ton | H113: 35 | I113: =ROUND(AH113*AK113/1000*(1/(AQ113*AT113)-1/AQ113),4) -> 148.1408 | J113: Wisconsin Focus on Energy 2017 TRM | K113: =AK113/1000*(1/(AN113*AT113)-1/AN113) -> 0.2855010263 | L113: 0.9 | M113: Wisconsin Focus on Energy 2017 TRM | N113: =ROUND(K113*L113,4) -> 0.257 | O113: Wisconsin Focus on Energy 2017 TRM | R113: 3 | S113: Coil cleaning of packaged air conditioning unit. | V113: The baseline condition is an AC system with fouled condenser coils. | Y113: =cellformula(I113) -> =ROUND(AH113*AK113/1000*(1/(AQ113*AT113)-1/AQ113),4) | Z113: =cellformula(N113) -> =ROUND(K113*L113,4) | AA113: 2019-04-01 | AH113: 564 | AI113: Equivalent Full Load Hours for Mechanical Cooling | AJ113: IL TRM v6 | AK113: 36000 | AL113: Unit Cooling Capacity in Btu/hour | AM113: Installed Equipment; actual value | AN113: =-0.02*AQ113^2+1.12*AQ113 -> 9.2 | AO113: EER | AP113: Installed Equipment; actual nameplate EER | AQ113: 10 | AR113: SEER | AS113: Installed Equipment; actual nameplate EER | AT113: 0.932 | AU113: Condenser coil fouling efficiency degradation factor | AV113: Wisconsin Focus on Energy 2017 TRM
A114: Income-Eligible Multi-Family | B114: CAC Tune Up w/RCA | C114: 275 | D114: Multi-Family | E114: HVAC | G114: per ton | H114: 35 | I114: =ROUND(AH114*AK114/1000*(1/(AQ114*AT114)-1/AQ114),4) -> 35.1137 | J114: Wisconsin Focus on Energy 2017 TRM | K114: =AK114/1000*(1/(AN114*AT114)-1/AN114) -> 0.06767216595 | L114: 0.9 | M114: Wisconsin Focus on Energy 2017 TRM | N114: =ROUND(K114*L114,4) -> 0.0609 | O114: Wisconsin Focus on Energy 2017 TRM | R114: 10 | S114: Refrigerant charging on packaged Air conditioning units. | V114: The baseline condition is an AC system with incorrect refrigerant charge. | Y114: =cellformula(I114) -> =ROUND(AH114*AK114/1000*(1/(AQ114*AT114)-1/AQ114),4) | Z114: =cellformula(N114) -> =ROUND(K114*L114,4) | AA114: 2019-04-01 | AH114: 564 | AI114: Equivalent Full Load Hours for Mechanical Cooling | AJ114: IL TRM v6 | AK114: 36000 | AL114: Unit Cooling Capacity in Btu/hour | AM114: Installed Equipment; actual value | AN114: =-0.02*AQ114^2+1.12*AQ114 -> 9.2 | AO114: EER | AP114: Installed Equipment; actual nameplate EER | AQ114: 10 | AR114: SEER | AS114: Installed Equipment; actual nameplate EER | AT114: 0.983 | AU114: Refrigerant charge efficiency degradation factor | AV114: Wisconsin Focus on Energy 2017 TRM
A115: Income-Eligible Multi-Family | B115: Air Sealing | C115: 320 | D115: Multi-Family | E115: HVAC - Shell | G115: per sq ft (floor area) | H115: 0.12 | I115: =ROUND((AW115*((W115-T115)/AN115*AE115*AT115*AC115)/AK115)/AZ115+(((W115-T115)/AQ115*AE115*AD115)/AH115)/AZ115,4) -> 0.4337 | J115: IL TRM v5, PY2016 averages | K115: =I115/P115 -> 0.0004416496945 | L115: 0.72 | M115: IL TRM v5 | N115: =ROUND((((AW115*((W115-T115)/AN115*AE115*AT115*AC115)/AK115)/AZ115)/P115)*L115,8) -> 6.149e-05 | O115: IL TRM v5, PY2016 averages | P115: 982 | Q115: EFLHcool, from PY2016 analysis | R115: 15 | S115: Efficient CFM | T115: 3083.594156 | U115: PY2016 average | V115: Baseline CFM | W115: 4342.996753 | X115: PY2016 average | Y115: =cellformula(I115) -> =ROUND((AW115*((W115-T115)/AN115*AE115*AT115*AC115)/AK115)/AZ115+(((W115-T115)/AQ115*AE115*AD115)/AH115)/AZ115,4) | Z115: =cellformula(N115) -> =ROUND((((AW115*((W115-T115)/AN115*AE115*AT115*AC115)/AK115)/AZ115)/P115)*L115,8) | AA115: 2019-04-01 | AC115: 1445 | AD115: 5155 | AE115: 25.92 | AF115: Air Sealing Coefficient: 60 * 24 * 0.018 | AG115: IL TRM v5 | AH115: 6551.04 | AI115: Heating Coefficient: COP * 3,412 COP = 1.7 for units before 2006 COP = 1.92 for units between 2006-2014 COP = 2.4 for units after 2014 | AJ115: IL TRM v5 | AK115: 13000 | AL115: Cooling Coefficient | AM115: IL TRM v5: SEER * 1,000. SEER 10 for units before 2006 SEER 13 for units after 2006 | AN115: 35.8 | AO115: Ncool: Infiltration conversion factor | AP115: IL TRM v5 | AQ115: 22.5 | AR115: Nheat: Infiltration conversion factor | AS115: IL TRM v5 | AT115: 0.75 | AU115: DUA: Discretionary Use Adjustment | AV115: IL TRM v5 | AW115: 3.6 | AX115: LM: Latent Cooling Multiplier | AY115: IL TRM v5 | AZ115: 3263 | BA115: Square footage installed | BB115: PY2016 average
A116: Income-Eligible Multi-Family | B116: Interior Directional LED Lamp replacing 50-70W Lamp | C116: 321 | D116: Multi-Family | E116: Lighting | G116: per lamp | H116: 40 | I116: =ROUND((W116-T116)/1000*P116*AE116,4) -> 255.2606 | J116: IL TRM v6 | K116: =(W116-T116)/1000*AH116 -> 0.06614543251 | L116: 0.7197350093 | M116: IL TRM v6 | N116: =ROUND(K116*L116,4) -> 0.0476 | O116: IL TRM v6 | P116: 4528.667131 | R116: 11 | S116: Interior Directional LED Lamp | T116: 10.67868972 | V116: 50-70Watts Lamp | W116: 60 | Y116: =cellformula(I116) -> =ROUND((W116-T116)/1000*P116*AE116,4) | Z116: =cellformula(N116) -> =ROUND(K116*L116,4) | AA116: 2019-04-01 | AE116: 1.142822679 | AF116: Waste Heat Factor_Energy | AH116: 1.341112637 | AI116: Waste Heat Factor_Demand
A117: Income-Eligible Multi-Family | B117: ASHP Tune Up w/o RCA | C117: 276 | D117: Multi-Family | E117: HVAC | G117: per ton | H117: 35 | I117: =ROUND(AH117*AK117/1000*(1/(AQ117*AT117)-1/AQ117)+AW117*BC117/1000*(1/(AZ117*AT117)-1/AZ117),4) -> 1085.9948 | J117: Wisconsin Focus on Energy 2017 TRM | K117: =AK117/1000*(1/(AN117*AT117)-1/AN117) -> 0.2855010263 | L117: 0.9 | M117: Wisconsin Focus on Energy 2017 TRM | N117: =ROUND(K117*L117,4) -> 0.257 | O117: Wisconsin Focus on Energy 2017 TRM | R117: 3 | S117: Coil cleaning of packaged heat pump unit. | V117: The baseline condition is a heat pump system with fouled condenser coils. | Y117: =cellformula(I117) -> =ROUND(AH117*AK117/1000*(1/(AQ117*AT117)-1/AQ117)+AW117*BC117/1000*(1/(AZ117*AT117)-1/AZ117),4) | Z117: =cellformula(N117) -> =ROUND(K117*L117,4) | AA117: 2019-04-01 | AH117: 564 | AI117: Equivalent Full Load Hours for Mechanical Cooling | AJ117: IL TRM v6 | AK117: 36000 | AL117: Unit Cooling Capacity in Btu/hour | AM117: Installed Equipment; actual value | AN117: =-0.02*AQ117^2+1.12*AQ117 -> 9.2 | AO117: EER | AP117: Installed Equipment; actual nameplate EER | AQ117: 10 | AR117: SEER | AS117: Installed Equipment; actual nameplate EER | AT117: 0.932 | AU117: Condenser coil fouling efficiency degradation factor | AV117: Wisconsin Focus on Energy 2017 TRM | AW117: 1821 | AX117: Equivalent Full Load Hours for Mechanical Heating | AY117: IL TRM v6 | AZ117: 6.8 | BA117: HSPF | BB117: Installed Equipment; actual nameplate EER | BC117: 48000 | BD117: Unit Heating Capacity in Btu/hour | BE117: Installed Equipment; actual value
A118: Income-Eligible Multi-Family | B118: ASHP Tune Up w/ RCA | C118: 277 | D118: Multi-Family | E118: HVAC | G118: per ton | H118: 35 | I118: =ROUND(AH118*AK118/1000*(1/(AQ118*AT118)-1/AQ118)+AW118*BC118/1000*(1/(AZ118*AT118)-1/AZ118),4) -> 257.4128 | J118: Wisconsin Focus on Energy 2017 TRM | K118: =AK118/1000*(1/(AN118*AT118)-1/AN118) -> 0.06767216595 | L118: 0.9 | M118: Wisconsin Focus on Energy 2017 TRM | N118: =ROUND(K118*L118,4) -> 0.0609 | O118: Wisconsin Focus on Energy 2017 TRM | R118: 10 | S118: Refrigerant charging on packaged heat pump units. | V118: The baseline condition is a heat pump system with incorrect refrigerant charge. | Y118: =cellformula(I118) -> =ROUND(AH118*AK118/1000*(1/(AQ118*AT118)-1/AQ118)+AW118*BC118/1000*(1/(AZ118*AT118)-1/AZ118),4) | Z118: =cellformula(N118) -> =ROUND(K118*L118,4) | AA118: 2019-04-01 | AH118: 564 | AI118: Equivalent Full Load Hours for Mechanical Cooling | AJ118: IL TRM v6 | AK118: 36000 | AL118: Unit Cooling Capacity in Btu/hour | AM118: Installed Equipment; actual value | AN118: =-0.02*AQ118^2+1.12*AQ118 -> 9.2 | AO118: EER | AP118: Installed Equipment; actual nameplate EER | AQ118: 10 | AR118: SEER | AS118: Installed Equipment; actual nameplate EER | AT118: 0.983 | AU118: Refrigerant charge efficiency degradation factor | AV118: Wisconsin Focus on Energy 2017 TRM | AW118: 1821 | AX118: Equivalent Full Load Hours for Mechanical Heating | AY118: IL TRM v6 | AZ118: 6.8 | BA118: HSPF | BB118: Installed Equipment; actual nameplate EER | BC118: 48000 | BD118: Unit Heating Capacity in Btu/hour | BE118: Installed Equipment; actual value
A119: Income-Eligible Multi-Family | B119: Interior LED 2X4 Retrofit Kit replacing T8, T12 or T5/T5HO | C119: 322 | D119: Multi-Family | E119: Lighting | G119: per unit | H119: 145 | I119: =ROUND((W119-T119)/1000*P119*AE119,4) -> 300.1845 | J119: IL TRM v6 | K119: =(W119-T119)/1000*AH119 -> 0.08283346786 | L119: 0.6731406259 | M119: IL TRM v6 | N119: =ROUND(K119*L119,4) -> 0.0558 | O119: IL TRM v6 | P119: 4143.086565 | R119: 12 | S119: LED 2X4 Retrofit Kits | T119: 35.11981124 | V119: 2x4 T8, T12 or T5 Fluorescents | W119: 98.05714958 | Y119: =cellformula(I119) -> =ROUND((W119-T119)/1000*P119*AE119,4) | Z119: =cellformula(N119) -> =ROUND(K119*L119,4) | AA119: 2019-04-01 | AE119: 1.151213434 | AF119: Waste Heat Factor_Energy | AH119: 1.316126008 | AI119: Waste Heat Factor_Demand
A120: Income-Eligible Multi-Family | B120: ECM Auto Fan EUL Replacement - MF | C120: 389 | D120: Multi-Family | E120: Motor | G120: per unit | H120: 97 | I120: =ROUND(AE120*AN120*12*(1/AH120-1/AK120)*AT120+AW120*AZ120+BC120*BF120,4) -> 524.0553 | J120: Wisconsin Focus on Energy 2018 TRM | K120: =N120/L120 -> 0.1413235294 | L120: 0.68 | M120: IL TRM v6.0 | N120: =ROUND(AE120*12*(1/BI120-1/BL120)*L120*AT120,4) -> 0.0961 | O120: Wisconsin Focus on Energy 2018 TRM | R120: 18 | S120: ECM Blower Motor | V120: Non-ECM Blower Motor | Y120: =cellformula(I120) -> =ROUND(AE120*AN120*12*(1/AH120-1/AK120)*AT120+AW120*AZ120+BC120*BF120,4) | Z120: =cellformula(N120) -> =ROUND(AE120*12*(1/BI120-1/BL120)*L120*AT120,4) | AA120: 2019-04-01 | AE120: 2.425 | AF120: Air conditioner capacity in tons | AG120: Wisconsin Focus on Energy 2018 TRM | AH120: 12 | AI120: SEERbase | AJ120: Wisconsin Focus on Energy 2018 TRM | AK120: 13 | AL120: SEERecm | AM120: Wisconsin Focus on Energy 2018 TRM | AN120: 1035 | AO120: FLH_cooling | AP120: IL TRM v6.0 | AQ120: 0.68 | AR120: CF | AS120: IL TRM v6.0 | AT120: 0.925 | AU120: Percentage of furnaces with AC | AV120: Wisconsin Focus on Energy 2018 TRM | AW120: 1158 | AX120: Hours of heating operation | AY120: Wisconsin Focus on Energy 2018 TRM | AZ120: 0.116 | BA120: Energy savings in heating | BB120: Wisconsin Focus on Energy 2018 TRM | BC120: 1020 | BD120: Hours of fan-only operation | BE120: Wisconsin Focus on Energy 2018 TRM | BF120: 0.207 | BG120: Energy savings in fan-only | BH120: Wisconsin Focus on Energy 2018 TRM | BI120: =-0.02*AH120^2+1.12*AH120 -> 10.56 | BJ120: EERbase | BK120: Wisconsin Focus on Energy 2018 TRM | BL120: =-0.02*AK120^2+1.12*AK120 -> 11.18 | BM120: EERecm | BN120: Wisconsin Focus on Energy 2018 TRM
A121: Income-Eligible Multi-Family | B121: ECM Auto Fan Early Replacement - MF | C121: 390 | D121: Multi-Family | E121: Motor | G121: per unit | H121: 97 | I121: 1346.8467 | J121: Wisconsin Focus on Energy 2018 TRM | K121: 0.8147058824 | L121: 0.68 | M121: IL TRM v6.0 | N121: 0.554 | O121: Wisconsin Focus on Energy 2018 TRM | R121: 6 | S121: ECM Blower Motor | V121: Non-ECM Blower Motor | Y121: =cellformula(I121) -> =ROUND(AE121*AN121*12*(1/AH121-1/AK121)*AT121+AW121*AZ121+BC121*BF121,4) | Z121: =cellformula(N121) -> =ROUND(AE121*12*(1/BI121-1/BL121)*L121*AT121,4) | AA121: 2019-04-01 | AE121: 2.425 | AF121: Air conditioner capacity in tons | AG121: Wisconsin Focus on Energy 2018 TRM | AH121: 8.86 | AI121: SEERexist | AJ121: This value is from IL TRM v6.0 but should be actual equipment SEER value. | AK121: 13 | AL121: SEERecm | AM121: Wisconsin Focus on Energy 2018 TRM | AN121: 1035 | AO121: FLH_cooling | AP121: IL TRM v6.0 | AQ121: 0.68 | AR121: CF | AS121: IL TRM v6.0 | AT121: 0.925 | AU121: Percentage of furnaces with AC | AV121: Wisconsin Focus on Energy 2018 TRM | AW121: 1158 | AX121: Hours of heating operation | AY121: Wisconsin Focus on Energy 2018 TRM | AZ121: 0.116 | BA121: Energy savings in heating | BB121: Wisconsin Focus on Energy 2018 TRM | BC121: 1020 | BD121: Hours of fan-only operation | BE121: Wisconsin Focus on Energy 2018 TRM | BF121: 0.207 | BG121: Energy savings in fan-only | BH121: Wisconsin Focus on Energy 2018 TRM | BI121: 8.353208 | BJ121: EERexist | BK121: This value is from IL TRM v6.0 but should be actual equipment SEER value. | BL121: 11.18 | BM121: EERecm | BN121: Wisconsin Focus on Energy 2018 TRM
A122: Income-Eligible Multi-Family | B122: ECM Auto Fan Early Replacement (future) - MF | C122: 391 | D122: Multi-Family | E122: Motor | G122: per unit | H122: 0 | I122: 524.0553 | J122: Wisconsin Focus on Energy 2018 TRM | K122: 0.1413235294 | L122: 0.68 | M122: IL TRM v6.0 | N122: 0.0961 | O122: Wisconsin Focus on Energy 2018 TRM | R122: 12 | S122: ECM Blower Motor | V122: Non-ECM Blower Motor | Y122: =cellformula(I122) -> =ROUND(AE122*AN122*12*(1/AH122-1/AK122)*AT122+AW122*AZ122+BC122*BF122,4) | Z122: =cellformula(N122) -> =ROUND(AE122*12*(1/BI122-1/BL122)*L122*AT122,4) | AA122: 2019-04-01 | AE122: 2.425 | AF122: Air conditioner capacity in tons | AG122: Wisconsin Focus on Energy 2018 TRM | AH122: 12 | AI122: SEERbase | AJ122: Wisconsin Focus on Energy 2018 TRM | AK122: 13 | AL122: SEERecm | AM122: Wisconsin Focus on Energy 2018 TRM | AN122: 1035 | AO122: FLH_cooling | AP122: IL TRM v6.0 | AQ122: 0.68 | AR122: CF | AS122: IL TRM v6.0 | AT122: 0.925 | AU122: Percentage of furnaces with AC | AV122: Wisconsin Focus on Energy 2018 TRM | AW122: 1158 | AX122: Hours of heating operation | AY122: Wisconsin Focus on Energy 2018 TRM | AZ122: 0.116 | BA122: Energy savings in heating | BB122: Wisconsin Focus on Energy 2018 TRM | BC122: 1020 | BD122: Hours of fan-only operation | BE122: Wisconsin Focus on Energy 2018 TRM | BF122: 0.207 | BG122: Energy savings in fan-only | BH122: Wisconsin Focus on Energy 2018 TRM | BI122: 10.56 | BJ122: EERbase | BK122: Wisconsin Focus on Energy 2018 TRM | BL122: 11.18 | BM122: EERecm | BN122: Wisconsin Focus on Energy 2018 TRM
A123: Income-Eligible Multi-Family | B123: ECM Continous Fan EUL Replacement - MF | C123: 392 | D123: Multi-Family | E123: Motor | G123: per unit | H123: 97 | I123: 524.0553 | J123: Wisconsin Focus on Energy 2018 TRM | K123: 0.1413235294 | L123: 0.68 | M123: IL TRM v6.0 | N123: 0.0961 | O123: Wisconsin Focus on Energy 2018 TRM | R123: 18 | S123: ECM Blower Motor | V123: Non-ECM Blower Motor | Y123: =cellformula(I123) -> =ROUND(AE123*AN123*12*(1/AH123-1/AK123)*AT123+AW123*AZ123+BC123*BF123,4) | Z123: =cellformula(N123) -> =ROUND(AE123*12*(1/BI123-1/BL123)*L123*AT123,4) | AA123: 2019-04-01 | AE123: 2.425 | AF123: Air conditioner capacity in tons | AG123: Wisconsin Focus on Energy 2018 TRM | AH123: 12 | AI123: SEERbase | AJ123: Wisconsin Focus on Energy 2018 TRM | AK123: 13 | AL123: SEERecm | AM123: Wisconsin Focus on Energy 2018 TRM | AN123: 1035 | AO123: FLH_cooling | AP123: IL TRM v6.0 | AQ123: 0.68 | AR123: CF | AS123: IL TRM v6.0 | AT123: 0.925 | AU123: Percentage of furnaces with AC | AV123: Wisconsin Focus on Energy 2018 TRM | AW123: 1158 | AX123: Hours of heating operation | AY123: Wisconsin Focus on Energy 2018 TRM | AZ123: 0.116 | BA123: Energy savings in heating | BB123: Wisconsin Focus on Energy 2018 TRM | BC123: 1020 | BD123: Hours of fan-only operation | BE123: Wisconsin Focus on Energy 2018 TRM | BF123: 0.207 | BG123: Energy savings in fan-only | BH123: Wisconsin Focus on Energy 2018 TRM | BI123: 10.56 | BJ123: EERbase | BK123: Wisconsin Focus on Energy 2018 TRM | BL123: 11.18 | BM123: EERecm | BN123: Wisconsin Focus on Energy 2018 TRM
A124: Income-Eligible Multi-Family | B124: ECM Continous Fan Early Replacement - MF | C124: 393 | D124: Multi-Family | E124: Motor | G124: per unit | H124: 97 | I124: 1346.8467 | J124: Wisconsin Focus on Energy 2018 TRM | K124: 0.8147058824 | L124: 0.68 | M124: IL TRM v6.0 | N124: 0.554 | O124: Wisconsin Focus on Energy 2018 TRM | R124: 6 | S124: ECM Blower Motor | V124: Non-ECM Blower Motor | Y124: =cellformula(I124) -> =ROUND(AE124*AN124*12*(1/AH124-1/AK124)*AT124+AW124*AZ124+BC124*BF124,4) | Z124: =cellformula(N124) -> =ROUND(AE124*12*(1/BI124-1/BL124)*L124*AT124,4) | AA124: 2019-04-01 | AE124: 2.425 | AF124: Air conditioner capacity in tons | AG124: Wisconsin Focus on Energy 2018 TRM | AH124: 8.86 | AI124: SEERexist | AJ124: This value is from IL TRM v6.0 but should be actual equipment SEER value. | AK124: 13 | AL124: SEERecm | AM124: Wisconsin Focus on Energy 2018 TRM | AN124: 1035 | AO124: FLH_cooling | AP124: IL TRM v6.0 | AQ124: 0.68 | AR124: CF | AS124: IL TRM v6.0 | AT124: 0.925 | AU124: Percentage of furnaces with AC | AV124: Wisconsin Focus on Energy 2018 TRM | AW124: 1158 | AX124: Hours of heating operation | AY124: Wisconsin Focus on Energy 2018 TRM | AZ124: 0.116 | BA124: Energy savings in heating | BB124: Wisconsin Focus on Energy 2018 TRM | BC124: 1020 | BD124: Hours of fan-only operation | BE124: Wisconsin Focus on Energy 2018 TRM | BF124: 0.207 | BG124: Energy savings in fan-only | BH124: Wisconsin Focus on Energy 2018 TRM | BI124: 8.353208 | BJ124: EERexist | BK124: This value is from IL TRM v6.0 but should be actual equipment SEER value. | BL124: 11.18 | BM124: EERecm | BN124: Wisconsin Focus on Energy 2018 TRM
A125: Income-Eligible Multi-Family | B125: ECM Continous Fan Early Replacement (future) - MF | C125: 394 | D125: Multi-Family | E125: Motor | G125: per unit | H125: 0 | I125: 524.0553 | J125: Wisconsin Focus on Energy 2018 TRM | K125: 0.1413235294 | L125: 0.68 | M125: IL TRM v6.0 | N125: 0.0961 | O125: Wisconsin Focus on Energy 2018 TRM | R125: 12 | S125: ECM Blower Motor | V125: Non-ECM Blower Motor | Y125: =cellformula(I125) -> =ROUND(AE125*AN125*12*(1/AH125-1/AK125)*AT125+AW125*AZ125+BC125*BF125,4) | Z125: =cellformula(N125) -> =ROUND(AE125*12*(1/BI125-1/BL125)*L125*AT125,4) | AA125: 2019-04-01 | AE125: 2.425 | AF125: Air conditioner capacity in tons | AG125: Wisconsin Focus on Energy 2018 TRM | AH125: 12 | AI125: SEERbase | AJ125: Wisconsin Focus on Energy 2018 TRM | AK125: 13 | AL125: SEERecm | AM125: Wisconsin Focus on Energy 2018 TRM | AN125: 1035 | AO125: FLH_cooling | AP125: IL TRM v6.0 | AQ125: 0.68 | AR125: CF | AS125: IL TRM v6.0 | AT125: 0.925 | AU125: Percentage of furnaces with AC | AV125: Wisconsin Focus on Energy 2018 TRM | AW125: 1158 | AX125: Hours of heating operation | AY125: Wisconsin Focus on Energy 2018 TRM | AZ125: 0.116 | BA125: Energy savings in heating | BB125: Wisconsin Focus on Energy 2018 TRM | BC125: 1020 | BD125: Hours of fan-only operation | BE125: Wisconsin Focus on Energy 2018 TRM | BF125: 0.207 | BG125: Energy savings in fan-only | BH125: Wisconsin Focus on Energy 2018 TRM | BI125: 10.56 | BJ125: EERbase | BK125: Wisconsin Focus on Energy 2018 TRM | BL125: 11.18 | BM125: EERecm | BN125: Wisconsin Focus on Energy 2018 TRM
A126: Income-Eligible Multi-Family | B126: Refrigerator - Early Replacement - MF | C126: 405 | D126: Multi-Family | E126: Appliances | G126: per unit | H126: 451 | I126: =ROUND((AQ126-AN126),4) -> 696 | J126: IL TRM v6.0 | N126: =ROUND((I126/CA126)*BU126*BX126,4) -> 0.1049 | O126: IL TRM v6.0 | P126: 8766 | Q126: IL TRM v6.0 | R126: 4 | S126: UEC | T126: =AN126 -> 331.7 | U126: IL TRM v6.0 | V126: UEC | W126: =AQ126 -> 1027.7 | X126: IL TRM v6.0 | Y126: =cellformula(I126) -> =ROUND((AQ126-AN126),4) | Z126: =cellformula(N126) -> =ROUND((I126/CA126)*BU126*BX126,4) | AA126: 2019-04-01 | AE126: 14.75 | AF126: Fresh Volume_ee (ft3) | AG126: IL TRM v6.0 | AH126: 6.76 | AI126: Freezer Volume_ee (ft3) | AJ126: IL TRM v6.0 | AK126: =ROUND(AE126+1.63*AH126,2) -> 25.77 | AL126: Adjusted Volume_ee | AM126: IL TRM v6.0 | AN126: =ROUND(6.11*AK126+174.2,1) -> 331.7 | AO126: UECEE | AP126: IL TRM v6.0 | AQ126: =ROUND((83.32+(AT126*3.68)+(AW126*485.04)+(AZ126*27.15)+(BC126*406.78)+(BF126*161.86)+(BI126*BL126*15.37)+(BO126*BL126-11.07))*BR126,1) -> 1027.7 | AR126: UECEXIST | AS126: IL TRM v6.0 | AT126: 10 | AU126: Age | AV126: IL TRM v6.0 | AW126: 0 | AX126: Pre-1990 | AY126: IL TRM v6.0 | AZ126: 21.5 | BA126: Size (ft3) | BB126: IL TRM v6.0 | BC126: 1 | BD126: Side-by-side | BE126: IL TRM v6.0 | BF126: 1 | BG126: Proportion of Primary Appliances | BH126: IL TRM v6.0 | BI126: =1570/365 -> 4.301369863 | BJ126: CDD/365 | BK126: IL TRM v6.0 | BL126: 0 | BM126: Unconditioned | BN126: IL TRM v6.0 | BO126: =4379/365 -> 11.99726027 | BP126: HDD/365 | BQ126: IL TRM v6.0 | BR126: =ROUND(0.814729665,4) -> 0.8147 | BS126: Part Use Factor | BU126: 1.25 | BV126: TAF | BW126: IL TRM v6.0 | BX126: 1.057 | BY126: LSAF | BZ126: IL TRM v6.0 | CA126: 8766 | CB126: Hours | CC126: IL TRM v6.0
A127: Income-Eligible Multi-Family | B127: Refrigerator - Early Replacement (future) - MF | C127: 406 | D127: Multi-Family | E127: Appliances | G127: per measure | H127: 0 | I127: =ROUND((AQ127-AN127),4) -> 36.9 | J127: IL TRM v6.0 | N127: =ROUND((I127/AZ127)*AT127*AW127,4) -> 0.0056 | O127: IL TRM v6.0 | P127: 8766 | Q127: IL TRM v6.0 | R127: 8 | S127: UEC | T127: =AN127 -> 331.7 | U127: IL TRM v6.0 | V127: UEC | W127: =AQ127 -> 368.6 | X127: IL TRM v6.0 | Y127: =cellformula(I127) -> =ROUND((AQ127-AN127),4) | Z127: =cellformula(N127) -> =ROUND((I127/AZ127)*AT127*AW127,4) | AA127: 2019-04-01 | AE127: 14.75 | AF127: Fresh Volume_ee (ft3) | AG127: IL TRM v6.0 | AH127: 6.76 | AI127: Freezer Volume_ee (ft3) | AJ127: IL TRM v6.0 | AK127: =ROUND(AE127+1.63*AH127,2) -> 25.77 | AL127: Adjusted Volume_ee | AM127: IL TRM v6.0 | AN127: =ROUND(6.11*AK127+174.2,1) -> 331.7 | AO127: UECEE | AP127: IL TRM v6.0 | AQ127: =ROUND(6.79*AK127+193.6,1) -> 368.6 | AR127: UECBASE | AS127: IL TRM v6.0 | AT127: 1.25 | AU127: TAF | AV127: IL TRM v6.0 | AW127: 1.057 | AX127: LSAF | AY127: IL TRM v6.0 | AZ127: 8766 | BA127: Hours | BB127: IL TRM v6.0
A128: Income-Eligible Multi-Family | B128: Commercial Grade Washing Machines | C128: 407 | D128: Common Area MF | E128: Appliances | G128: per unit | H128: 65 | I128: =ROUND((AE128*1/AH128*AK128*(AN128+(AQ128*AT128)+(AW128*AZ128)))-(AE128*1/BC128*AK128*(BF128+(BI128*BL128)+(BO128*BR128))),4) -> 162.7706 | J128: IL TRM V6.0 | K128: =I128/P128 -> 0.5517647458 | L128: 0.038 | M128: IL TRM V6.0 | N128: =ROUND(I128/BU128*BX128,4) -> 0.021 | O128: IL TRM V6.0 | P128: 295 | Q128: IL TRM V6.0 | R128: 14 | S128: IMEF | T128: 2.26 | U128: IL TRM V6.0 | V128: IMEF | W128: 1.66 | X128: IL TRM V6.0 | Y128: =cellformula(I128) -> =ROUND((AE128*1/AH128*AK128*(AN128+(AQ128*AT128)+(AW128*AZ128)))-(AE128*1/BC128*AK128*(BF128+(BI128*BL128)+(BO128*BR128))),4) | Z128: =cellformula(N128) -> =ROUND(I128/BU128*BX128,4) | AA128: 2019-04-01 | AE128: 3.45 | AF128: Capacity | AG128: IL TRM V6.0 | AH128: 1.66 | AI128: IMEFbase | AJ128: IL TRM V6.0 | AK128: 295 | AL128: Ncycles | AM128: IL TRM V6.0 | AN128: 0.076 | AO128: %Cwbase | AP128: IL TRM V6.0 | AQ128: 0.312 | AR128: %DHWbase | AS128: IL TRM V6.0 | AT128: 1 | AU128: %Electric_DHW | AV128: IL TRM V6.0 | AW128: 0.612 | AX128: %Dryerbase | AY128: IL TRM V6.0 | AZ128: 1 | BA128: %Electric_dryer | BB128: IL TRM V6.0 | BC128: 2.26 | BD128: IMEFeff | BE128: IL TRM V6.0 | BF128: 0.081 | BG128: %Cweff | BH128: IL TRM V6.0 | BI128: 0.234 | BJ128: %DHWeff | BK128: IL TRM V6.0 | BL128: 1 | BM128: %Electric_DHW | BN128: IL TRM V6.0 | BO128: 0.685 | BP128: %Dryereff | BQ128: IL TRM V6.0 | BR128: 1 | BS128: %Electric_Dryer | BT128: IL TRM V6.0 | BU128: 295 | BV128: Hours | BW128: IL TRM V6.0 | BX128: 0.038 | BY128: CF | BZ128: IL TRM V6.0
A129: Income-Eligible Multi-Family | B129: Commercial Grade Dryers | C129: 408 | D129: Common Area MF | E129: Appliances | G129: per unit | H129: 152 | I129: =ROUND((AE129/AH129-AE129/AK129)*AN129*AQ129,4) -> 160.4368 | J129: IL TRM V6.0 | K129: =I129/P129 -> 0.5669144876 | L129: 0.038 | M129: IL TRM V6.0 | N129: =ROUND(I129/AT129*AW129,4) -> 0.0215 | O129: IL TRM V6.0 | P129: 283 | Q129: IL TRM V6.0 | R129: 14 | S129: CEF | T129: 3.93 | U129: IL TRM V6.0 | V129: CEF | W129: 3.11 | X129: IL TRM V6.0 | Y129: =cellformula(I129) -> =ROUND((AE129/AH129-AE129/AK129)*AN129*AQ129,4) | Z129: =cellformula(N129) -> =ROUND(I129/AT129*AW129,4) | AA129: 2019-04-01 | AE129: 8.45 | AF129: Load | AG129: IL TRM V6.0 | AH129: 3.11 | AI129: CEF_base | AJ129: IL TRM V6.0 | AK129: 3.93 | AL129: CEF_eff | AM129: IL TRM V6.0 | AN129: 283 | AO129: N_cycles | AP129: IL TRM V6.0 | AQ129: 1 | AR129: %Electric | AS129: IL TRM V6.0 | AT129: 283 | AU129: Hours | AV129: IL TRM V6.0 | AW129: 0.038 | AX129: CF | AY129: IL TRM V6.0
A130: Income-Eligible Multi-Family | B130: Shower Start 1.5 gpm electric water heater | C130: 409 | D130: Multi-Family | E130: Hot Water | G130: per unit | H130: 12 | I130: =ROUND(((W130-T130)*AH130*AK130*365.25)*AE130*AN130,4) -> 359.0933 | J130: IL TRM V.5 | K130: =I130/P130 -> 1.447956855 | L130: 0.0278 | M130: IL TRM v5 | N130: =ROUND((((W130-T130)*AH130*AK130*365.25)*AE130*AN130)/P130*L130,4) -> 0.0403 | P130: 248 | Q130: IL TRM V.5 | R130: 10 | S130: Low Flow (GPM) | T130: 1.5 | U130: EEP from ICF | V130: Standard (GPM) | W130: 2.67 | X130: IL TRM v5 | Y130: =cellformula(I130) -> =ROUND(((W130-T130)*AH130*AK130*365.25)*AE130*AN130,4) | Z130: =cellformula(N130) -> =ROUND((((W130-T130)*AH130*AK130*365.25)*AE130*AN130)/P130*L130,4) | AA130: 2019-04-01 | AE130: 0.117 | AF130: kWh per gallon hot water | AG130: IL TRM v5 | AH130: 3.6 | AI130: Showerhead Coefficient: Minutes per day * Showers per day / Showers per household | AJ130: IL TRM v5 | AK130: 2.1 | AL130: Persons per household | AM130: IL TRM v5 | AN130: 0.95 | AO130: Installation Rate | AP130: IL TRM v5
A131: Income-Eligible Multi-Family | B131: CAC Tune-up /Indoor Coil (Evaporator) Cleaning MF | C131: 410 | D131: Multi-Family | E131: HVAC | G131: per ton | H131: 63 | I131: =ROUND((AE131*AH131*(1/AK131))/1000*AN131,4) -> 56.4 | J131: IL TRM v6.0 | K131: =N131/L131 -> 0.02602941176 | L131: 0.68 | M131: IL TRM v6.0 | N131: =ROUND(AH131*(1/AQ131)/1000*AT131*AW131,4) -> 0.0177 | O131: IL TRM v6.0 | R131: 2 | S131: Sub-measure of HVAC Tune-up | V131: Existing unit that has not been serviced for at least 3 years | Y131: =cellformula(I131) -> =ROUND((AE131*AH131*(1/AK131))/1000*AN131,4) | Z131: =cellformula(N131) -> =ROUND(AH131*(1/AQ131)/1000*AT131*AW131,4) | AA131: 2019-04-01 | AE131: 940 | AF131: FLHcool | AG131: IL TRM v6.0 | AH131: 12000 | AI131: Capacity_cooling | AK131: 10 | AL131: SEER | AM131: IL TRM v6.0 | AN131: 0.05 | AO131: Mfe | AP131: IL TRM v6.0 | AQ131: =-0.02*AK131^2+1.12*AK131 -> 9.2 | AR131: EER | AS131: IL TRM v6.0 | AT131: 0.02 | AU131: MFd | AV131: IL TRM v6.0 | AW131: 0.68 | AX131: CF | AY131: IL TRM v6.0
A132: Income-Eligible Multi-Family | B132: CAC Tune-up /Outdoor Coil (Condenser) Cleaning MF | C132: 411 | D132: Multi-Family | E132: HVAC | F132: Kits | G132: per ton | H132: 31 | I132: =ROUND((AE132*AH132*(1/AK132))/1000*AN132,4) -> 56.4 | J132: IL TRM v6.0 | K132: =N132/L132 -> 0.02602941176 | L132: 0.68 | M132: IL TRM v6.0 | N132: =ROUND(AH132*(1/AQ132)/1000*AT132*AW132,4) -> 0.0177 | O132: IL TRM v6.0 | R132: 2 | S132: Sub-measure of HVAC Tune-up | V132: Existing unit that has not been serviced for at least 3 years | Y132: =cellformula(I132) -> =ROUND((AE132*AH132*(1/AK132))/1000*AN132,4) | Z132: =cellformula(N132) -> =ROUND(AH132*(1/AQ132)/1000*AT132*AW132,4) | AA132: 2019-04-01 | AE132: 940 | AF132: FLHcool | AG132: IL TRM v6.0 | AH132: 12000 | AI132: Capacity_cooling | AK132: 10 | AL132: SEER | AM132: IL TRM v6.0 | AN132: 0.05 | AO132: Mfe | AP132: IL TRM v6.0 | AQ132: =-0.02*AK132^2+1.12*AK132 -> 9.2 | AR132: EER | AS132: IL TRM v6.0 | AT132: 0.02 | AU132: MFd | AV132: IL TRM v6.0 | AW132: 0.68 | AX132: CF | AY132: IL TRM v6.0
A133: Residential Demand Response | B133: Advanced Programmable Communicating Thermostat | C133: 65 | D133: All | E133: HVAC | G133: per unit | H133: 350 | I133: =ROUND(462,4) -> 462 | N133: =ROUND(1.26,4) -> 1.26 | R133: 10 | S133: PCT | V133: No PCT | Y133: =ROUND(462,4) | Z133: =ROUND(1.26,4) | AA133: 2016-04-01 | AB133: 2019-03-31
A134: Residential Demand Response | B134: Smart Thermostat | C134: 65.1 | D134: All | E134: HVAC | G134: per unit | H134: 350 | I134: =ROUND(197,4) -> 197 | N134: =ROUND(1.44,4) -> 1.44 | R134: 10 | S134: PCT | V134: No PCT | Y134: =cellformula(I134) -> =ROUND(197,4) | Z134: =cellformula(N134) -> =ROUND(1.44,4) | AA134: 2019-04-01
A135: Residential Demand Response | B135: Smart Thermostat - BYO | C135: 311 | D135: All | E135: HVAC | G135: per unit | H135: 250 | I135: =ROUND(197,4) -> 197 | N135: =ROUND(1.44,4) -> 1.44 | R135: 10 | Y135: =cellformula(I135) -> =ROUND(197,4) | Z135: =cellformula(N135) -> =ROUND(1.44,4) | AA135: 2019-04-01
A136: Residential Demand Response | B136: DR Water Heater DLC | C136: 308 | D136: All | E136: Hot Water | G136: per customer | H136: 200 | I136: =ROUND(0.4,4) -> 0.4 | J136: MN TRM 2.2 | N136: =ROUND(0.6,4) -> 0.6 | O136: MN TRM 2.2 | R136: 1 | S136: Electric water heater during curtailment event. | V136: Electric water heater on non-curtailment event days. | Y136: =cellformula(I136) -> =ROUND(0.4,4) | Z136: =cellformula(N136) -> =ROUND(0.6,4) | AA136: 2019-04-01 | AE136: Average # of events | AF136: Average number of load control events during a typical year, provided by utility, assumed to be 2 based on MN TRM 2.2.
A137: Business Smart Thermostat | B137: Advanced Programmable Communicating Thermostat | C137: 66 | D137: All | E137: HVAC | G137: per unit | H137: 350 | I137: =ROUND(462,4) -> 462 | N137: =ROUND(1.26,4) -> 1.26 | R137: 10 | S137: PCT | V137: No PCT | Y137: =ROUND(462,4) | Z137: =ROUND(1.26,4) | AA137: 2016-04-01 | AB137: 2019-03-31
A138: Business Smart Thermostat | B138: Smart Thermostat | C138: 66.1 | D138: All | E138: HVAC | G138: per unit | H138: 350 | I138: =ROUND(197,4) -> 197 | N138: =ROUND(1.44,4) -> 1.44 | R138: 10 | S138: PCT | V138: No PCT | Y138: =cellformula(I138) -> =ROUND(197,4) | Z138: =cellformula(N138) -> =ROUND(1.44,4) | AA138: 2019-04-01
A139: Business Standard | B139: Interior Daylighting Controls Replacing No Controls | C139: 67.1 | D139: Small C&I | E139: Lighting | G139: per sensor | H139: 66 | I139: =ROUND(T139/1000*AK139*P139*AE139,4) -> 692.634 | K139: =T139/1000*AK139*AH139 -> 0.21316318 | L139: 0.66 | N139: =ROUND(K139*L139,4) -> 0.1407 | P139: 3088 | R139: 8 | S139: Photocell Occupancy Sensor | T139: 587 | V139: No Control | Y139: =ROUND(T139/1000*AK139*P139*AE139,4) | Z139: =ROUND(K139*L139,4) | AA139: 2017-04-07 | AE139: 1.41 | AF139: Waste Heat Factor | AH139: 1.34 | AI139: Waste Heat Factor | AK139: 0.271 | AL139: ESF
A140: Business Standard | B140: LED Exit Sign | C140: 68.1 | D140: Small C&I | E140: Lighting | F140: Direct Install | G140: per unit | H140: 30 | I140: =ROUND((W140-T140)/1000*P140*AE140*AK140,4) -> 55.6972 | J140: IL TRM V.5 & Navigant field work | K140: =(W140-T140)/1000*AH140*AK140 -> 0.007227757089 | L140: 0.9337378093 | M140: Navigant field work | N140: 0.0067 | O140: IL TRM V.5 & Navigant field work | P140: 7706.016549 | Q140: Navigant field work | R140: 16 | S140: LED (watts) | T140: 2 | U140: IL TRM V.5 & Navigant field work | V140: Fluorescent (watts) | W140: 7.666666667 | X140: IL TRM V.5 | Y140: =ROUND((W140-T140)/1000*P140*AE140*AK140,4) | Z140: =ROUND(K140*L140,4) | AA140: 2018-04-01 | AE140: 1.29 | AF140: Waste Heat Factor for energy | AG140: Navigant field work | AH140: 1.29 | AI140: Waste Heat Factor for demand | AJ140: Navigant field work | AK140: 0.9887492598 | AL140: ISR - in service rate | AM140: Navigant field work
A141: Business Standard | B141: High‐Bay Fluorescent Fixture T5 > 4 Lamps w/ HE Electronic Ballast Replacing HID Fixture | C141: 69.1 | D141: Small C&I | E141: Lighting | G141: per fixture | H141: 100 | I141: =ROUND((W141-T141)/1000*P141*AE141,4) -> 701.0069 | K141: =(W141-T141)/1000*AH141 -> 0.21574 | L141: 0.66 | N141: 0.1424 | P141: 3088 | R141: 15 | S141: High Bay T5 (>4 lamps, wattage) | T141: 295 | V141: Metal Halide (watts) | W141: 456 | Y141: =ROUND((W141-T141)/1000*P141*AE141,4) | Z141: =ROUND(K141*L141,4) | AA141: 2017-04-07 | AE141: 1.41 | AF141: Waste Heat Factor | AH141: 1.34 | AI141: Waste Heat Factor
A142: Business Standard | B142: Interior Directional LED Lamp replacing 71-110W Lamp | C142: 70.1 | D142: Small C&I | E142: Lighting | G142: per lamp | H142: 50 | I142: 230.7662 | K142: 0.07102 | L142: 0.66 | N142: 0.0469 | P142: 3088 | R142: 11 | S142: LED (watts) | T142: 22 | V142: Incandescent (watts) | W142: 75 | Y142: =ROUND((W142-T142)/1000*P142*AE142,4) | Z142: =ROUND(K142*L142,4) | AA142: 2017-04-07 | AE142: 1.41 | AF142: Waste Heat Factor | AH142: 1.34 | AI142: Waste Heat Factor
A143: Business Standard | B143: Remove 4ft Lamp from T8 or T12 system | C143: 72.1 | D143: Small C&I | E143: Lighting | G143: per lamp | H143: 12 | I143: 121.9142 | K143: 0.03752 | L143: 0.66 | N143: 0.0248 | P143: 3088 | R143: 11 | S143: Remove T8 | T143: 0 | V143: T8 4 ft (watts) | W143: 28 | Y143: =ROUND((W143-T143)/1000*P143*AE143,4) | Z143: =ROUND(K143*L143,4) | AA143: 2017-04-07 | AE143: 1.41 | AF143: Waste Heat Factor | AH143: 1.34 | AI143: Waste Heat Factor
A144: Business Standard | B144: Heat Pump Water Heater | C144: 74 | D144: C&I | E144: Hot Water | G144: per unit | H144: 1000 | I144: =ROUND(((1/W144-1/T144)*AH144*AE144*365.25),4) -> 1993.08 | L144: 0.12 | N144: =ROUND(0.297621384273147,4) -> 0.2976 | P144: 2533 | R144: 10 | S144: Efficient EF | T144: 2 | V144: Baseline EF | W144: 0.95 | Y144: =ROUND(((1/W144-1/T144)*AH144*AE144*365.25),4) | Z144: =ROUND(0.297621384273147,4) | AA144: 2016-04-01 | AB144: 2019-03-31 | AE144: 55 | AF144: gallons used per day | AH144: 0.179529623 | AI144: Water Heating Coefficient
A145: Business Standard | B145: Low Flow Faucet Aerator Kitchen | C145: 251 | D145: C&I | E145: Hot Water | F145: Kitchen | G145: per unit | H145: 8.35 | I145: =ROUND(1*(W145-T145)/W145*AE145*AH145*AK145,4) -> 89.064 | J145: IL TRM V.5 | L145: 0.01015910868 | M145: Illinois TRM V.5. | N145: =ROUND(I145/AN145*L145,4) -> 0.0219 | O145: IL TRM V.5 | R145: 9 | S145: Low Flow (GPM) | T145: 1.41 | U145: Illinois TRM V.5. | V145: Standard (GPM) | W145: 1.826 | X145: https://www.usgbc.org/credits/we2 | Y145: =ROUND(1*(W145-T145)/W145*AE145*AH145*AK145,4) | Z145: =ROUND(I145/AN145*L145,4) | AA145: 2018-04-01 | AE145: 4246.804441 | AF145: Usage - Estimated usage of mixed water (mixture of hot water from water heater line and cold water line) per faucet (gallons per year) | AG145: IL TRM V.5 | AH145: 0.0969 | AI145: EPG_electric - Energy per gallon of mixed water used by faucet (electric water heater) | AJ145: IL TRM V.5 | AK145: 0.95 | AL145: ISR - in service rate | AM145: IL TRM V.5 | AN145: =AE145*0.545/56 -> 41.3305075 | AO145: Annual Recovery Hours - Annual electric DHW recovery hours for faucet use
A146: Business Standard | B146: Low Flow Faucet Aerator Bathroom | C146: 252 | D146: C&I | E146: Hot Water | F146: Bathroom | G146: per unit | H146: 8.35 | I146: =ROUND(1*(W146-T146)/W146*AE146*AH146*AK146,4) -> 155.6274 | J146: IL TRM V.5 | L146: 0.01015910868 | M146: Illinois TRM V.5. | N146: =ROUND(I146/AN146*L146,4) -> 0.0383 | O146: IL TRM V.5 | R146: 9 | S146: Low Flow (GPM) | T146: 0.94 | U146: Illinois TRM V.5. | V146: Standard (GPM) | W146: 1.826 | X146: United States Energy Policy Act of 1992 | Y146: =ROUND(1*(W146-T146)/W146*AE146*AH146*AK146,4) | Z146: =ROUND(I146/AN146*L146,4) | AA146: 2018-04-01 | AE146: 4246.804441 | AF146: Usage - Estimated usage of mixed water (mixture of hot water from water heater line and cold water line) per faucet (gallons per year) | AG146: IL TRM V.5 | AH146: 0.0795 | AI146: EPG_electric - Energy per gallon of mixed water used by faucet (electric water heater) | AJ146: IL TRM V.5 | AK146: 0.95 | AL146: ISR - in service rate | AM146: IL TRM V.5 | AN146: =AE146*0.545/56 -> 41.3305075 | AO146: Annual Recovery Hours - Annual electric DHW recovery hours for faucet use
A147: Business Standard | B147: Pipe Wrap/Insulation | C147: 76 | D147: C&I | E147: Hot Water | G147: per unit | H147: 47.17 | I147: =ROUND(224,4) -> 224 | K147: =I147/P147 -> 0.02557077626 | N147: =ROUND(0.2779713001086,4) -> 0.278 | P147: 8760 | R147: 6 | S147: 5 linear feet of insulation | V147: none | Y147: =ROUND(224,4) | Z147: =ROUND(0.2779713001086,4) | AA147: 2016-04-01
A148: Business Standard | B148: Pre-Rinse Spray Valves Small | C148: 253 | D148: C&I | E148: Hot Water | F148: Small, quick- service restaurants | G148: per unit | H148: 100 | I148: =ROUND((W148-T148)*60*AK148*312*8.33*1*AE148*1/AH148/3413*1,4) -> 2769.6198 | J148: IL TRM V.5 | N148: =ROUND(0,4) -> 0 | R148: 5 | S148: Low Flow (GPM) | T148: 1.06 | U148: IL TRM V.5 | V148: Standard (GPM) | W148: 1.9 | X148: IL TRM V.5 | Y148: =ROUND((W148-T148)*60*AK148*312*8.33*1*AE148*1/AH148/3413*1,4) | Z148: =ROUND(0,4) | AA148: 2018-04-01 | AE148: 70 | AF148: Temp difference between water heater outlet water temperature | AG148: IL TRM V.5 | AH148: 0.97 | AI148: EFF_Elec - Efficiency of electric water heater supplying hot water to pre-rinse spray valve | AJ148: IL TRM V.5 | AK148: 1 | AL148: Hours per day that the pre-rinse spray valve is used at the site - Hours/day | AM148: IL TRM V.5
A149: Business Standard | B149: Pre-Rinse Spray Valves Medium | C149: 254 | D149: C&I | E149: Hot Water | F149: Medium-sized casual dining restaurants | G149: per unit | H149: 100 | I149: =ROUND((W149-T149)*60*AK149*312*8.33*1*AE149*1/AH149/3413*1,4) -> 4154.4296 | J149: IL TRM V.5 | N149: =ROUND(0,4) -> 0 | R149: 5 | S149: Low Flow (GPM) | T149: 1.06 | U149: IL TRM V.5 | V149: Standard (GPM) | W149: 1.9 | X149: IL TRM V.5 | Y149: =ROUND((W149-T149)*60*AK149*312*8.33*1*AE149*1/AH149/3413*1,4) | Z149: =ROUND(0,4) | AA149: 2018-04-01 | AE149: 70 | AF149: Temp difference between water heater outlet water temperature | AG149: IL TRM V.5 | AH149: 0.97 | AI149: EFF_Elec - Efficiency of electric water heater supplying hot water to pre-rinse spray valve | AJ149: IL TRM V.5 | AK149: 1.5 | AL149: Hours per day that the pre-rinse spray valve is used at the site - Hours/day | AM149: IL TRM V.5
A150: Business Standard | B150: Pre-Rinse Spray Valves Large | C150: 255 | D150: C&I | E150: Hot Water | F150: Large institutional establishments with cafeteria | G150: per unit | H150: 100 | I150: =ROUND((W150-T150)*60*AK150*312*8.33*1*AE150*1/AH150/3413*1,4) -> 8308.8593 | J150: IL TRM V.5 | N150: =ROUND(0,4) -> 0 | R150: 5 | S150: Low Flow (GPM) | T150: 1.06 | U150: IL TRM V.5 | V150: Standard (GPM) | W150: 1.9 | X150: IL TRM V.5 | Y150: =ROUND((W150-T150)*60*AK150*312*8.33*1*AE150*1/AH150/3413*1,4) | Z150: =ROUND(0,4) | AA150: 2018-04-01 | AE150: 70 | AF150: Temp difference between water heater outlet water temperature | AG150: IL TRM V.5 | AH150: 0.97 | AI150: EFF_Elec - Efficiency of electric water heater supplying hot water to pre-rinse spray valve | AJ150: IL TRM V.5 | AK150: 3 | AL150: Hours per day that the pre-rinse spray valve is used at the site - Hours/day | AM150: IL TRM V.5
A151: Business Standard | B151: High Efficiency Pool Pump | C151: 78 | D151: C&I | E151: Pools | G151: per unit | H151: 273.32 | I151: =ROUND(1301.24777183601,4) -> 1301.2478 | L151: 1 | N151: =ROUND(0.148544266191325,4) -> 0.1485 | R151: 10 | S151: High Efficiency | V151: Standard Pool Pump | Y151: =ROUND(1301.24777183601,4) | Z151: =ROUND(0.148544266191325,4) | AA151: 2016-04-01
A152: Business Standard | B152: Pool Pump VSD | C152: 79 | D152: C&I | E152: Pools | G152: per unit | H152: 579 | I152: =ROUND(2461.44821213111,4) -> 2461.4482 | L152: 1 | N152: =ROUND(0.280987238827752,4) -> 0.281 | R152: 10 | S152: VSD | V152: Standard Pool Pump | Y152: =ROUND(2461.44821213111,4) | Z152: =ROUND(0.280987238827752,4) | AA152: 2016-04-01
A153: Business Standard | B153: ENERGY STAR Beverage Machine w/o software | C153: 256 | D153: C&I | E153: Refrigeration | F153: kWh savings per machine w/o software | G153: per unit | H153: 500 | I153: =ROUND(1310,4) -> 1310 | J153: IL TRM V.5 | N153: =ROUND(0,4) -> 0 | O153: IL TRM V.5 | R153: 14 | S153: Efficient Operating Watts | V153: Watts Base | Y153: =ROUND(1310,4) | Z153: =ROUND(0,4) | AA153: 2018-04-01
A154: Business Standard | B154: ENERGY STAR Beverage Machine w/ software | C154: 257 | D154: C&I | E154: Refrigeration | F154: kWh savings per machine w/ software | G154: per unit | H154: 500 | I154: =ROUND(1842,4) -> 1842 | J154: IL TRM V.5 | N154: =ROUND(0,4) -> 0 | O154: IL TRM V.5 | R154: 14 | S154: Efficient Operating Watts | V154: Watts Base | Y154: =ROUND(1842,4) | Z154: =ROUND(0,4) | AA154: 2018-04-01
A155: Business Standard | B155: High Efficiency Reach-In Refrigerator | C155: 258 | D155: C&I | E155: Refrigeration | F155: No unique savings for this measure. The savings is based on actual chilled or frozen compartment volume of the efficient unit. This measure life is for refrigerator | G155: per unit | H155: 164 | I155: =ROUND((W155-T155)*365.25,4) -> 286.7213 | J155: IL TRM V.5. Assumes 15 ft^3 of actual chilled or frozen compartment volume. | L155: 0.937 | M155: IL TRM V.5 | N155: =ROUND(I155/P155*L155,4) -> 0.0306 | O155: IL TRM V.5 | P155: 8766 | Q155: IL TRM v5 | R155: 12 | S155: High Efficiency kWh/day | T155: =0.037*15+2.2 -> 2.755 | U155: IL TRM V.5 | V155: Standard kWh/day | W155: =0.1*15+2.04 -> 3.54 | X155: IL TRM V.5 | Y155: =ROUND((W155-T155)*365.25,4) | Z155: =ROUND(I155/P155*L155,4) | AA155: 2018-04-01
A156: Business Standard | B156: High Efficiency Reach-In Freezer | C156: 259 | D156: C&I | E156: Refrigeration | F156: No unique savings for this measure. The savings is based on actual chilled or frozen compartment volume of the efficient unit. This measure life is for freezer | G156: per unit | H156: 166 | I156: =ROUND((W156-T156)*365.25,4) -> 869.295 | J156: IL TRM V.5. Assumes 15 ft^3 of actual chilled or frozen compartment volume. | L156: 0.937 | M156: IL TRM V.5 | N156: =ROUND(I156/P156*L156,4) -> 0.0929 | O156: IL TRM V.5 | P156: 8766 | Q156: IL TRM v5 | R156: 12 | S156: High Efficiency kWh/day | T156: =0.4*15-1 -> 5 | U156: IL TRM V.5 | V156: Standard kWh/day | W156: =0.4*15+1.38 -> 7.38 | X156: IL TRM V.5 | Y156: =ROUND((W156-T156)*365.25,4) | Z156: =ROUND(I156/P156*L156,4) | AA156: 2018-04-01
A157: Business Standard | B157: Strip Curtains Freezer | C157: 260 | D157: C&I | E157: Refrigeration | F157: per freezer with curtains installed | G157: per unit | H157: 286.16 | I157: =ROUND(2974,4) -> 2974 | J157: IL TRM V.5 | L157: 1 | N157: =ROUND(0.34,4) -> 0.34 | O157: IL TRM V.5 | R157: 6 | S157: Strip Curtain | V157: No strip curtain | Y157: =ROUND(2974,4) | Z157: =ROUND(0.34,4) | AA157: 2018-04-01
A158: Business Standard | B158: Strip Curtains Cooler | C158: 261 | D158: C&I | E158: Refrigeration | F158: per cooler with curtains installed | G158: per unit | H158: 286.16 | I158: =ROUND(422,4) -> 422 | J158: IL TRM V.5 | L158: 1 | N158: =ROUND(0.05,4) -> 0.05 | O158: IL TRM V.5 | R158: 6 | S158: Strip Curtain | V158: No strip curtain | Y158: =ROUND(422,4) | Z158: =ROUND(0.05,4) | AA158: 2018-04-01
A159: Business Standard | B159: LED Refrigerator Case Light | C159: 84.1 | D159: C&I | E159: Refrigeration | G159: per unit | H159: 133 | I159: =ROUND((W159-T159)/1000*P159*AE159*AK159,4) -> 224.9713 | J159: IL TRM V.5 | K159: =(W159-T159)/1000*AH159*AK159 -> 0.03877479097 | L159: 0.69 | M159: IL TRM V.5 | N159: =ROUND(K159*L159,4) -> 0.0268 | O159: IL TRM V.5 | P159: 5802 | Q159: IL TRM V.5 | R159: 10 | S159: LED Display Lighting (watts) | T159: =4*7.6 -> 30.4 | U159: IL TRM V.5 Assume 4 ft lamp | V159: Base Refrigeration - Standard (watts) | W159: =15.2*4 -> 60.8 | X159: IL TRM V.5. Assume 4 ft lamp | Y159: =ROUND((W159-T159)/1000*P159*AE159*AK159,4) | Z159: =ROUND(K159*L159,4) | AA159: 2018-04-01 | AE159: 1.29 | AF159: Waste Heat Factor for Energy | AG159: IL TRM V.5 | AH159: 1.29 | AI159: Waste Heat Factor for Demand | AJ159: IL TRM V.5 | AK159: 0.9887492598 | AL159: ISR | AM159: Navigant field work
A160: Business Standard | B160: ECM Motors Walk-In Coolers & Freezers | C160: 85 | D160: C&I | E160: Refrigeration | G160: per motor | H160: 50 | I160: =ROUND(401,4) -> 401 | L160: 1 | N160: =ROUND(0.042,4) -> 0.042 | R160: 15 | S160: ECM Motor | V160: Standard Motor | Y160: =ROUND(401,4) | Z160: =ROUND(0.042,4) | AA160: 2016-04-01
A161: Business Standard | B161: High Efficiency PTAC/PTHP | C161: 86 | D161: C&I | E161: HVAC | G161: per ton | H161: 12.26 | I161: =ROUND(((1/W161-1/T161)*AC161 + AK161*AD161)*AE161/AH161,4) -> 30.0701 | L161: 0.91 | N161: =ROUND(0.0118300668666732,4) -> 0.0118 | R161: 15 | S161: EER | T161: 12 | V161: EER | W161: 10.2 | Y161: =ROUND(((1/W161-1/T161)*AC161 + AK161*AD161)*AE161/AH161,4) | Z161: =ROUND(0.0118300668666732,4) | AA161: 2016-04-01 | AC161: 1325 | AD161: 5249 | AE161: 12000 | AF161: Btu/hr | AH161: 11535.60828 | AI161: Coefficient | AK161: =(1/8.2-1/8.5)*0.417 -> 0.001794835007 | AL161: HSPF improvement factor
A162: Business Standard | B162: Programmable Thermostat Controls | C162: 87 | D162: C&I | E162: HVAC | G162: per ton | H162: 5.895056403 | I162: =ROUND(126.052734375,4) -> 126.0527 | N162: =ROUND(0,4) -> 0 | R162: 8 | S162: Programmable Tstat | V162: No Tstat | Y162: =ROUND(126.052734375,4) | Z162: =ROUND(0,4) | AA162: 2016-04-01
A163: Business Standard | B163: ASHP <65 kBtuh | C163: 88 | D163: C&I | E163: HVAC | G163: per ton | H163: 120 | I163: =ROUND(((1/W163-1/T163)*AC163 + AK163*AD163)*AE163/AH163,4) -> 157.6937 | L163: 0.91 | N163: =ROUND(0.194113768584357,4) -> 0.1941 | P163: 816 | R163: 15 | S163: SEER | T163: 14 | V163: SEER | W163: 13 | Y163: =ROUND(((1/W163-1/T163)*AC163 + AK163*AD163)*AE163/AH163,4) | Z163: =ROUND(0.194113768584357,4) | AA163: 2016-04-01 | AB163: 2019-03-31 | AC163: 1325 | AD163: 5249 | AE163: 12000 | AF163: Btu/hr | AH163: 2194.403872 | AI163: Coefficient | AK163: =(1/7.7-1/8.5)*0.33599 -> 0.004106829641 | AL163: HSPF improvement factor
A164: Business Standard | B164: ASHP 65<135 kBtuh | C164: 89 | D164: C&I | E164: HVAC | G164: per ton | H164: 100 | I164: =ROUND(((1/W164-1/T164)*AC164 + AK164*AD164)*AE164/AH164,4) -> 91.3304 | K164: =I164/P164 -> 0.1119245098 | L164: 0.91 | N164: =ROUND(0.124089536699636,4) -> 0.1241 | P164: 816 | R164: 15 | S164: SEER | T164: 14 | V164: SEER | W164: 13 | Y164: =ROUND(((1/W164-1/T164)*AC164 + AK164*AD164)*AE164/AH164,4) | Z164: =ROUND(0.124089536699636,4) | AA164: 2016-04-01 | AB164: 2019-03-31 | AC164: 1325 | AD164: 5249 | AE164: 12000 | AF164: Btu/hr | AH164: 2194.403872 | AI164: Coefficient | AK164: =(1/8.2-1/8.5)*0.417 -> 0.001794835007 | AL164: HSPF improvement factor
A165: Business Standard | B165: CAC <65 kBtuh | C165: 90 | D165: C&I | E165: HVAC | G165: per ton | H165: 120 | I165: =ROUND((1/W165-1/T165)*AC165*AE165/AH165,4) -> 81.56 | K165: =I165/P165 -> 0.08156 | L165: 0.91 | N165: =ROUND(0.065934065934066,4) -> 0.0659 | P165: 1000 | R165: 15 | S165: EER | T165: 14 | V165: EER | W165: 13 | Y165: =ROUND((1/W165-1/T165)*AC165*AE165/AH165,4) | Z165: =ROUND(0.065934065934066,4) | AA165: 2016-04-01 | AC165: 1325 | AD165: 5249 | AE165: 12000 | AF165: Btu/hr | AH165: 1071.145482 | AI165: Coefficient
A166: Business Standard | B166: CAC 65<135 kBtuh | C166: 91 | D166: C&I | E166: HVAC | G166: per ton | H166: 100 | I166: =ROUND((1/W166-1/T166)*AC166*AE166/AH166,4) -> 56.6389 | K166: =I166/P166 -> 0.0566389 | L166: =N166/K166 -> 0.8086315236 | N166: =ROUND(0.0457875457875458,4) -> 0.0458 | P166: 1000 | R166: 15 | S166: EER | T166: 11.7 | V166: EER | W166: 11.2 | Y166: =ROUND((1/W166-1/T166)*AC166*AE166/AH166,4) | Z166: =ROUND(0.0457875457875458,4) | AA166: 2016-04-01 | AC166: 1325 | AD166: 5249 | AE166: 12000 | AF166: Btu/hr | AH166: 1071.145482 | AI166: Coefficient
A167: Business Standard | B167: CAC 135<240 kBtuh | C167: 92 | D167: C&I | E167: HVAC | G167: per ton | H167: 100 | I167: =ROUND((1/W167-1/T167)*AC167*AE167/AH167,4) -> 80.7362 | K167: =I167/P167 -> 0.0807362 | L167: =N167/K167 -> 0.808806954 | N167: =ROUND(0.0652680652680653,4) -> 0.0653 | P167: 1000 | R167: 15 | S167: EER | T167: 11.7 | V167: EER | W167: 11 | Y167: =ROUND((1/W167-1/T167)*AC167*AE167/AH167,4) | Z167: =ROUND(0.0652680652680653,4) | AA167: 2016-04-01 | AC167: 1325 | AD167: 5249 | AE167: 12000 | AF167: Btu/hr | AH167: 1071.145482 | AI167: Coefficient
A168: Business Standard | B168: CAC >240 kBtuh | C168: 93 | D168: C&I | E168: HVAC | G168: per ton | H168: 100 | I168: =ROUND((1/W168-1/T168)*AC168*AE168/AH168,4) -> 70.6853 | K168: =I168/P168 -> 0.0706853 | L168: =N168/K168 -> 0.8078058663 | N168: =ROUND(0.0571428571428573,4) -> 0.0571 | P168: 1000 | R168: 15 | S168: EER | T168: 10.5 | V168: EER | W168: 10 | Y168: =cellformula(I168) -> =ROUND((1/W168-1/T168)*AC168*AE168/AH168,4) | Z168: =cellformula(N168) -> =ROUND(0.0571428571428573,4) | AA168: 2016-04-01 | AC168: 1325 | AD168: 5249 | AE168: 12000 | AF168: Btu/hr | AH168: 1071.145482 | AI168: Coefficient
A169: Business Standard | B169: Interior Directional LED Lamp replacing 50-70W Lamp | C169: 96.2 | D169: C&I | E169: Lighting | G169: per lamp | H169: 40 | I169: =ROUND((W169-T169)/1000*P169*AE169,4) -> 223.6691 | J169: IL TRM v5 | K169: =(W169-T169)/1000*AH169 -> 0.0688358 | L169: 0.6193 | M169: IL TRM v5 | N169: =ROUND(K169*L169,4) -> 0.0426 | O169: IL TRM v5 | P169: 3088 | Q169: IL TRM v5 | R169: 11 | S169: LED (watts) | T169: 13.63 | U169: IL TRM v5 | V169: Incandescent (watts) | W169: 65 | X169: IL TRM v5 | Y169: =cellformula(I169) -> =ROUND((W169-T169)/1000*P169*AE169,4) | Z169: =cellformula(N169) -> =ROUND(K169*L169,4) | AA169: 2018-04-01 | AB169: 2019-03-31 | AE169: 1.41 | AF169: Waste Heat Factor Energy | AG169: IL TRM v5 | AH169: 1.34 | AI169: Waste Heat Factor Demand | AJ169: IL TRM v5
A170: Business Standard | B170: Interior Directional LED Lamp replacing 50-70W Lamp | C170: 96.3 | D170: C&I | E170: Lighting | G170: per lamp | H170: 40 | I170: 241.6514 | J170: IL TRM v5 | K170: 0.07437 | L170: 0.6193 | M170: IL TRM v5 | N170: 0.0461 | O170: IL TRM v5 | P170: 3088 | Q170: IL TRM v5 | R170: 11 | S170: LED (watts) | T170: 9.5 | U170: IL TRM v5 | V170: Incandescent (watts) | W170: 65 | X170: IL TRM v5 | Y170: =cellformula(I170) -> =ROUND((W170-T170)/1000*P170*AE170,4) | Z170: =cellformula(N170) -> =ROUND(K170*L170,4) | AA170: 2019-04-01 | AE170: 1.41 | AF170: Waste Heat Factor Energy | AG170: IL TRM v5 | AH170: 1.34 | AI170: Waste Heat Factor Demand | AJ170: IL TRM v5
A171: Business Standard | B171: Interior Directional LED Lamp replacing 71-110W Lamp | C171: 97.2 | D171: C&I | E171: Lighting | G171: per lamp | H171: 50 | I171: =ROUND((W171-T171)/1000*P171*AE171,4) -> 306.5272 | J171: IL TRM v5 | K171: =(W171-T171)/1000*AH171 -> 0.094336 | L171: 0.6193 | M171: IL TRM v5 | N171: =ROUND(K171*L171,4) -> 0.0584 | O171: IL TRM v5 | P171: 3088 | Q171: IL TRM v5 | R171: 11 | S171: LED (watts) | T171: 19.6 | U171: IL TRM v5 | V171: Incandescent (watts) | W171: 90 | X171: IL TRM v5 | Y171: =cellformula(I171) -> =ROUND((W171-T171)/1000*P171*AE171,4) | Z171: =cellformula(N171) -> =ROUND(K171*L171,4) | AA171: 2018-04-01 | AE171: 1.41 | AF171: Waste Heat Factor Energy | AG171: IL TRM v5 | AH171: 1.34 | AI171: Waste Heat Factor Demand | AJ171: IL TRM v5
A172: Business Standard | B172: High Performance High-Bay Fluorescent Fixture T8 > 4 Lamps Replacing HID Fixture | C172: 98.1 | D172: C&I | E172: Lighting | G172: per fixture | H172: 200 | I172: =ROUND((W172-T172)/1000*P172*AE172,4) -> 1084.1659 | K172: =(W172-T172)/1000*AH172 -> 0.33366 | L172: 0.66 | N172: =ROUND(K172*L172,4) -> 0.2202 | P172: 3088 | R172: 15 | S172: High Bay T8 (>4 lamps, wattage) | T172: 206 | V172: Metal Halide (watts) | W172: 455 | Y172: =ROUND((W172-T172)/1000*P172*AE172,4) | Z172: =ROUND(K172*L172,4) | AA172: 2017-04-07 | AE172: 1.41 | AF172: Waste Heat Factor | AH172: 1.34 | AI172: Waste Heat Factor
A173: Business Standard | B173: High Bay Fluorescent Fixture (HP T8 <=4 lamps) | C173: 99 | D173: C&I | E173: Lighting | G173: per fixture | H173: 225 | I173: 648.7579 | K173: 0.19966 | L173: 0.66 | N173: =ROUND(K173*L173,4) -> 0.1318 | P173: 3088 | R173: 15 | S173: High Bay T8 (≤4 lamps, wattage) | T173: 146 | V173: Metal Halide (watts) | W173: 295 | Y173: =ROUND((W173-T173)/1000*P173*AE173,4) | Z173: =ROUND(K173*L173,4) | AA173: 2016-04-01 | AE173: 1.41 | AF173: Waste Heat Factor | AH173: 1.34 | AI173: Waste Heat Factor
A174: Business Standard | B174: High-Bay Fluorescent Fixture T5 > 4 Lamps w/ HE Electronic Ballast Replacing HID Fixture | C174: 100.1 | D174: C&I | E174: Lighting | G174: per fixture | H174: 100 | I174: 701.0069 | K174: 0.21574 | L174: 0.66 | N174: =ROUND(K174*L174,4) -> 0.1424 | P174: 3088 | R174: 15 | S174: High Bay T5 (>4 lamps, wattage) | T174: 295 | V174: Metal Halide (watts) | W174: 456 | Y174: =ROUND((W174-T174)/1000*P174*AE174,4) | Z174: =ROUND(K174*L174,4) | AA174: 2017-04-07 | AE174: 1.41 | AF174: Waste Heat Factor | AH174: 1.34 | AI174: Waste Heat Factor
A175: Business Standard | B175: High-Bay Fluorescent Fixture T5 <= 4 Lamps w/ HE Electronic Ballast Replacing HID Fixture | C175: 101.1 | D175: C&I | E175: Lighting | G175: per fixture | H175: 100 | I175: 404.9294 | K175: 0.12462 | L175: 0.66 | N175: =ROUND(K175*L175,4) -> 0.0822 | P175: 3088 | R175: 15 | S175: High Bay T5 (≤4 lamps, wattage) | T175: 117 | V175: Metal Halide (watts) | W175: 210 | Y175: =ROUND((W175-T175)/1000*P175*AE175,4) | Z175: =ROUND(K175*L175,4) | AA175: 2017-04-07 | AE175: 1.41 | AF175: Waste Heat Factor | AH175: 1.34 | AI175: Waste Heat Factor
A176: Business Standard | B176: LED Exit Sign | C176: 102.1 | D176: C&I | E176: Lighting | G176: per lamp | H176: 30 | I176: =ROUND((W176-T176)/1000*P176*AE176*AK176,4) -> 50.5988 | J176: IL TRM V.5 and Navigant Field Work | K176: =(W176-T176)/1000*AH176*AK176 -> 0.01182117718 | L176: 0.6910322129 | M176: Navigant field work | N176: 0.0082 | O176: IL TRM V.5 and Navigant Field Work | P176: 5079.677101 | Q176: Navigant field work | R176: 16 | S176: LED (watts) | T176: 2.079150579 | U176: IL TRM V.5 and Navigant field work | V176: Fluorescent (watts) | W176: 11 | X176: IL TRM V.5 | Y176: =ROUND((W176-T176)/1000*P176*AE176*AK176,4) | Z176: =ROUND(K176*L176,4) | AA176: 2018-04-01 | AE176: 1.129306801 | AF176: Waste Heat Factor | AG176: Navigant Field Work | AH176: 1.34019609 | AI176: Waste Heat Factor | AJ176: Navigant Field Work | AK176: 0.9887492598 | AL176: ISR | AM176: Navigant field work
A177: Business Standard | B177: LED Flood Light (<15W) | C177: 103 | D177: C&I | E177: Lighting | G177: per lamp | H177: 35 | I177: =ROUND((W177-T177)/1000*P177*AE177,4) -> 210.829 | K177: =(W177-T177)/1000*AH177 -> 0.043 | L177: 0 | N177: 0 | P177: 4903 | R177: 10 | S177: LED (watts) | T177: 8.7 | V177: Metal Halide (watts) | W177: 51.7 | Y177: =ROUND((W177-T177)/1000*P177*AE177,4) | Z177: =ROUND(K177*L177,4) | AA177: 2016-04-01 | AE177: 1 | AF177: Waste Heat Factor | AH177: 1 | AI177: Waste Heat Factor
A178: Business Standard | B178: LED Flood Light (>=15W) | C178: 104 | D178: C&I | E178: Lighting | G178: per lamp | H178: 45 | I178: 236.3246 | K178: 0.0482 | L178: 0 | N178: 0 | P178: 4903 | R178: 10 | S178: LED (watts) | T178: 16.2 | V178: Metal Halide (watts) | W178: 64.4 | Y178: =ROUND((W178-T178)/1000*P178*AE178,4) | Z178: =ROUND(K178*L178,4) | AA178: 2016-04-01 | AE178: 1 | AF178: Waste Heat Factor | AH178: 1 | AI178: Waste Heat Factor
A179: Business Standard | B179: LED Recessed Fixture (1 ft x 4 ft) | C179: 106 | D179: C&I | E179: Lighting | G179: per fixture | H179: 36.17 | I179: 116.6893 | K179: 0.035912 | L179: 0.66 | N179: 0.0237 | P179: 3088 | R179: 11 | S179: Linear style LED (watts) | T179: 32.2 | V179: Standard T8 (watts) | W179: 59 | Y179: =ROUND((W179-T179)/1000*P179*AE179,4) | Z179: =ROUND(K179*L179,4) | AA179: 2016-04-01 | AE179: 1.41 | AF179: Waste Heat Factor | AH179: 1.34 | AI179: Waste Heat Factor
A180: Business Standard | B180: LED Recessed Fixture (2 ft x 2 ft) | C180: 107 | D180: C&I | E180: Lighting | G180: per fixture | H180: 22.55 | I180: 70.1007 | K180: 0.021574 | L180: 0.66 | N180: 0.0142 | P180: 3088 | R180: 11 | S180: Linear style LED (watts) | T180: 44.9 | V180: T8 U-tube (watts) | W180: 61 | Y180: =ROUND((W180-T180)/1000*P180*AE180,4) | Z180: =ROUND(K180*L180,4) | AA180: 2016-04-01 | AE180: 1.41 | AF180: Waste Heat Factor | AH180: 1.34 | AI180: Waste Heat Factor
A181: Business Standard | B181: LED Recessed Fixture (2 ft x 4 ft) | C181: 108 | D181: C&I | E181: Lighting | G181: per fixture | H181: 55.5 | I181: 149.7804 | K181: 0.046096 | L181: 0.66 | N181: 0.0304 | P181: 3088 | R181: 11 | S181: Linear style LED (watts) | T181: 53.6 | V181: Standard T8 (watts) | W181: 88 | Y181: =ROUND((W181-T181)/1000*P181*AE181,4) | Z181: =ROUND(K181*L181,4) | AA181: 2016-04-01 | AE181: 1.41 | AF181: Waste Heat Factor | AH181: 1.34 | AI181: Waste Heat Factor
A182: Business Standard | B182: Remove 4ft Lamp from T8 or T12 system | C182: 109.1 | D182: C&I | E182: Lighting | G182: per lamp | H182: 12 | I182: 121.9142 | K182: 0.03752 | L182: 0.66 | N182: 0.0248 | P182: 3088 | R182: 11 | S182: Remove T8 | T182: 0 | V182: T8 4 ft (watts) | W182: 28 | Y182: =ROUND((W182-T182)/1000*P182*AE182,4) | Z182: =ROUND(K182*L182,4) | AA182: 2017-04-07 | AE182: 1.41 | AF182: Waste Heat Factor | AH182: 1.34 | AI182: Waste Heat Factor
A183: Business Standard | B183: Remove 8ft Lamp from T8 or T12 System | C183: 110.1 | D183: C&I | E183: Lighting | G183: per lamp | H183: 16 | I183: =ROUND((W183-T183)/1000*P183*AE183,4) -> 252.5366 | K183: =(W183-T183)/1000*AH183 -> 0.07772 | L183: 0.66 | N183: 0.0513 | P183: 3088 | R183: 11 | S183: Remove T8 | T183: 0 | V183: T8 8 ft (watts) | W183: 58 | Y183: =ROUND((W183-T183)/1000*P183*AE183,4) | Z183: =ROUND(K183*L183,4) | AA183: 2017-04-07 | AE183: 1.41 | AF183: Waste Heat Factor | AH183: 1.34 | AI183: Waste Heat Factor
A184: Business Standard | B184: Interior Omnidirectional LED Lamp replacing 40-60W Lamp | C184: 112.2 | D184: C&I | E184: Lighting | G184: per lamp | H184: 28.75 | I184: =ROUND((W184-T184)/1000*P184*AE184,4) -> 117.3425 | J184: IL TRM v5 | K184: =(W184-T184)/1000*AH184 -> 0.036113 | L184: 0.6193 | M184: IL TRM v5 | N184: 0.0224 | O184: IL TRM v5 | P184: 3088 | Q184: IL TRM v5 | R184: 8 | S184: LED (watts) | T184: 9.05 | U184: IL TRM v5 | V184: EISA tier 1 compliant Halogen (watts) | W184: 36 | X184: IL TRM v5 | Y184: =cellformula(I184) -> =ROUND((W184-T184)/1000*P184*AE184,4) | Z184: =cellformula(N184) -> =ROUND(K184*L184,4) | AA184: 2018-04-01 | AB184: 2019-03-31 | AE184: 1.41 | AF184: Waste Heat Factor Energy | AG184: IL TRM v5 | AH184: 1.34 | AI184: Waste Heat Factor Demand | AJ184: IL TRM v5
A185: Business Standard | B185: Interior Omnidirectional LED Lamp replacing 40-60W Lamp | C185: 112.3 | D185: C&I | E185: Lighting | G185: per lamp | H185: 28.75 | I185: 178.2996 | J185: IL TRM v5 | K185: 0.054873 | L185: 0.6193 | M185: IL TRM v5 | N185: 0.034 | O185: IL TRM v5 | P185: 3088 | Q185: IL TRM v5 | R185: 8 | S185: LED (watts) | T185: 9.05 | U185: IL TRM v5 | V185: EISA tier 1 compliant Halogen (watts) | W185: 50 | X185: IL TRM v5 | Y185: =cellformula(I185) -> =ROUND((W185-T185)/1000*P185*AE185,4) | Z185: =cellformula(N185) -> =ROUND(K185*L185,4) | AA185: 2019-04-01 | AE185: 1.41 | AF185: Waste Heat Factor Energy | AG185: IL TRM v5 | AH185: 1.34 | AI185: Waste Heat Factor Demand | AJ185: IL TRM v5
A186: Business Standard | B186: Interior Omnidirectional LED Lamp replacing 61-100W Lamp | C186: 113.2 | D186: C&I | E186: Lighting | G186: per lamp | H186: 38.75 | I186: =ROUND((W186-T186)/1000*P186*AE186,4) -> 160.6656 | J186: IL TRM v5 | K186: =(W186-T186)/1000*AH186 -> 0.049446 | L186: 0.6193 | M186: IL TRM v5 | N186: 0.0306 | O186: IL TRM v5 | P186: 3088 | Q186: IL TRM v5 | R186: 8 | S186: LED (watts) | T186: 16.1 | U186: IL TRM v5 | V186: EISA tier 1 compliant Halogen (watts) | W186: 53 | X186: IL TRM v5 | Y186: =cellformula(I186) -> =ROUND((W186-T186)/1000*P186*AE186,4) | Z186: =cellformula(N186) -> =ROUND(K186*L186,4) | AA186: 2018-04-01 | AB186: 2019-03-31 | AE186: 1.41 | AF186: Waste Heat Factor Energy | AG186: IL TRM v5 | AH186: 1.34 | AI186: Waste Heat Factor Demand | AJ186: IL TRM v5
A187: Business Standard | B187: Interior Omnidirectional LED Lamp replacing 61-100W Lamp | C187: 113.3 | D187: C&I | E187: Lighting | G187: per lamp | H187: 38.75 | I187: 296.0774 | J187: IL TRM v5 | K187: 0.09112 | L187: 0.6193 | M187: IL TRM v5 | N187: 0.0564 | O187: IL TRM v5 | P187: 3088 | Q187: IL TRM v5 | R187: 8 | S187: LED (watts) | T187: 12 | U187: IL TRM v5 | V187: EISA tier 1 compliant Halogen (watts) | W187: 80 | X187: IL TRM v5 | Y187: =cellformula(I187) -> =ROUND((W187-T187)/1000*P187*AE187,4) | Z187: =cellformula(N187) -> =ROUND(K187*L187,4) | AA187: 2019-04-01 | AE187: 1.41 | AF187: Waste Heat Factor Energy | AG187: IL TRM v5 | AH187: 1.34 | AI187: Waste Heat Factor Demand | AJ187: IL TRM v5
A188: Business Standard | B188: Interior Daylighting Controls Replacing No Controls | C188: 114.1 | D188: C&I | E188: Lighting | G188: per sensor | H188: 66 | I188: =ROUND(T188/1000*AK188*P188*AE188,4) -> 692.634 | K188: =T188/1000*AK188*AH188 -> 0.21316318 | L188: 0.66 | N188: 0.1407 | P188: 3088 | R188: 8 | S188: Photocell Occupancy Sensor | T188: 587 | V188: No Control | Y188: =ROUND(T188/1000*AK188*P188*AE188,4) | Z188: =ROUND(K188*L188,4) | AA188: 2017-04-07 | AE188: 1.41 | AF188: Waste Heat Factor | AH188: 1.34 | AI188: Waste Heat Factor | AK188: 0.271 | AL188: ESF
A189: Business Standard | B189: Interior Occupancy or Vacancy Sensor Replacing No Controls | C189: 115.1 | D189: C&I | E189: Lighting | G189: per sensor | H189: 42 | I189: =ROUND(T189/1000*AK189*P189*AE189,4) -> 457.1784 | K189: =T189/1000*AK189*AH189 -> 0.1407 | L189: 0.66 | N189: 0.0929 | P189: 3088 | R189: 8 | S189: Wall-Mount Occupancy Sensor | T189: 350 | V189: No Control | Y189: =ROUND(T189/1000*AK189*P189*AE189,4) | Z189: =ROUND(K189*L189,4) | AA189: 2017-04-07 | AE189: 1.41 | AF189: Waste Heat Factor | AH189: 1.34 | AI189: Waste Heat Factor | AK189: 0.3 | AL189: ESF
A190: Business Standard | B190: High Volume Low Speed Fans (20ft Diameter) | C190: 116 | D190: C&I | E190: Pumps/Fans | G190: per fan | H190: 4150 | I190: =ROUND(6577,4) -> 6577 | N190: =ROUND(2.4,4) -> 2.4 | R190: 10 | Y190: =ROUND(6577,4) | Z190: =ROUND(2.4,4) | AA190: 2016-04-01
A191: Business Standard | B191: High Volume Low Speed Fans (22ft Diameter) | C191: 117 | D191: C&I | E191: Pumps/Fans | G191: per fan | H191: 4180 | I191: =ROUND(8543,4) -> 8543 | N191: =ROUND(3.1,4) -> 3.1 | R191: 10 | Y191: =ROUND(8543,4) | Z191: =ROUND(3.1,4) | AA191: 2016-04-01
A192: Business Standard | B192: High Volume Low Speed Fans (24ft Diameter) | C192: 118 | D192: C&I | E192: Pumps/Fans | G192: per fan | H192: 4225 | I192: =ROUND(10018,4) -> 10018 | N192: =ROUND(3.7,4) -> 3.7 | R192: 10 | Y192: =ROUND(10018,4) | Z192: =ROUND(3.7,4) | AA192: 2016-04-01
A193: Business Standard | B193: Compressed Air - Engineered Nozzle 1/4" | C193: 119 | D193: C&I | E193: Pumps/Fans | G193: per unit | H193: 57 | I193: =ROUND(1086.638,4) -> 1086.638 | N193: =ROUND(0.511,4) -> 0.511 | R193: 15 | Y193: =ROUND(1086.638,4) | Z193: =ROUND(0.511,4) | AA193: 2016-04-01
A194: Business Standard | B194: Compressed Air - Engineered Nozzle 1/8" | C194: 120 | D194: C&I | E194: Pumps/Fans | G194: per unit | H194: 42 | I194: =ROUND(393.438,4) -> 393.438 | N194: =ROUND(0.163,4) -> 0.163 | R194: 15 | Y194: =ROUND(393.438,4) | Z194: =ROUND(0.163,4) | AA194: 2016-04-01
A195: Business Standard | B195: Compressed Air - No Loss Condensate Drain/Valve | C195: 121.1 | D195: C&I | E195: Pumps/Fans | G195: per unit | H195: 700 | I195: =ROUND(1969.65,4) -> 1969.65 | N195: =ROUND(0.30495,4) -> 0.305 | O195: IL TRM V.5 | R195: 15 | Y195: =ROUND(1969.65,4) | Z195: =ROUND(0.30495,4) | AA195: 2018-04-01
A196: Business Standard | B196: Variable Speed Drive Compressor - 1 shift weekdays | C196: 122 | D196: C&I | E196: Pumps/Fans | G196: per HP | H196: 140.37 | I196: =ROUND(329,4) -> 329 | N196: =ROUND(0.15818,4) -> 0.1582 | R196: 10 | Y196: =ROUND(329,4) | Z196: =ROUND(0.15818,4) | AA196: 2016-04-01
A197: Business Standard | B197: Variable Speed Drive Compressor - 2 shift weekdays | C197: 123 | D197: C&I | E197: Pumps/Fans | G197: per HP | H197: 140.37 | I197: =ROUND(658,4) -> 658 | N197: =ROUND(0.15818,4) -> 0.1582 | R197: 10 | Y197: =ROUND(658,4) | Z197: =ROUND(0.15818,4) | AA197: 2016-04-01
A198: Business Standard | B198: Variable Speed Drive Compressor - 3 shift weekdays | C198: 124 | D198: C&I | E198: Pumps/Fans | G198: per HP | H198: 140.37 | I198: =ROUND(987,4) -> 987 | N198: =ROUND(0.15818,4) -> 0.1582 | R198: 10 | Y198: =ROUND(987,4) | Z198: =ROUND(0.15818,4) | AA198: 2016-04-01
A199: Business Standard | B199: Variable Speed Drive Compressor - 3 shift weekdays plus weekends | C199: 125 | D199: C&I | E199: Pumps/Fans | G199: per HP | H199: 140.37 | I199: =ROUND(1385.3,4) -> 1385.3 | N199: =ROUND(0.15818,4) -> 0.1582 | R199: 10 | Y199: =ROUND(1385.3,4) | Z199: =ROUND(0.15818,4) | AA199: 2016-04-01
A200: Business Standard | B200: Advanced Rooftop Unit Controls, 2000-4000 annual hours occupancy | C200: 137 | D200: C&I | E200: HVAC | G200: per ton | H200: 400 | I200: =ROUND(420,4) -> 420 | N200: =ROUND(0.15,4) -> 0.15 | R200: 15 | Y200: =ROUND(420,4) | Z200: =ROUND(0.15,4) | AA200: 2016-04-01
A201: Business Standard | B201: Advanced Rooftop Unit Controls, > 4000 annual hours occupancy | C201: 138 | D201: C&I | E201: HVAC | G201: per ton | H201: 400 | I201: =ROUND(700,4) -> 700 | N201: =ROUND(0.15,4) -> 0.15 | R201: 15 | Y201: =ROUND(700,4) | Z201: =ROUND(0.15,4) | AA201: 2016-04-01
... 192 more rows
